{"text_format":"3","workbook":"xlsx","n_sheets":5,"sheets":["表1 機關別勞務標","表2 機關別工程標","表3勞務標(工程類別)","表4工程標(工程類別)","節能減碳檢核明細"],"not_rendered":{"defined_names":8},"read":"whole","date_system":"1900"}

{"sheet":"表1 機關別勞務標","index":0,"n_rows":46,"n_cols":15,"rows_kept":46,"merged":[[0,0,0,1],[0,2,0,7],[0,8,1,14],[1,0,2,0],[1,1,2,1],[1,2,2,2],[1,3,1,5],[1,6,1,7]]}
[null,null,"應辦理節能減碳檢核辦理情形統計",{"$nulls":5},"不需辦理節能減碳檢核原因統計(原因可複選)"]
["機關別","決標\n總件數\n(A)\n(A = C+D+F)","應辦理件數(B)\n(B = A-F)","已依規定辦理情形",null,null,"未依規定辦理情形"]
[{"$nulls":3},"依規定辦理節能減碳檢核之件數\n(C)","計畫提報核定階段納入辦理節能減碳檢核件數","規劃設計階段納入辦理節能減碳檢核件數","未依規定於計畫提報核定、規劃設計階段納入辦理節能減碳檢核件數\n(D)","未依規定辦理節能減碳檢核件數比率%(E)\n(E = D/B)","不需辦理節能減碳檢核之件數\n(F)","非中央政府辦理新臺幣一億元以上之公共工程之件數","非受中央政府補助比率逾工程建造經費百分之五十且補助經費達新臺幣一億元以上之個案公共工程之件數","災後緊急處理、搶修、搶險之件數","災後原地復建之件數","整修工程、拆除工程、疏濬工程、結構補強工程之件數","規劃取得綠建築標章之建築工程之件數"]
["總統府",1,0,0,0,0,0,{"$f":"IF(D4+G4=0,0,G4/(D4+G4))","v":{"v":0,"d":"0%"}},1,0,0,0,0,1,0]
["中央研究院",1,0,0,0,0,0,{"$f":"IF(D5+G5=0,0,G5/(D5+G5))","v":{"v":0,"d":"0%"}},1,1,1,0,0,0,0]
["內政部",13,1,1,1,1,0,{"v":0,"d":"0%"},12,7,4,2,0,6,2]
["國防部",11,1,1,0,1,0,{"v":0,"d":"0%"},10,9,2,0,0,2,0]
["財政部",7,0,0,0,0,0,{"v":0,"d":"0%"},7,2,4,0,0,2,0]
["教育部",49,1,1,0,1,0,{"v":0,"d":"0%"},48,26,12,1,0,27,2]
["法務部",1,0,0,0,0,0,{"v":0,"d":"0%"},1,0,0,0,0,1,0]
["經濟部",21,1,1,0,1,0,{"v":0,"d":"0%"},20,16,7,0,0,3,2]
["交通部",39,4,4,1,4,0,{"v":0,"d":"0%"},35,17,12,2,1,11,2]
["行政院農業委員會",22,3,3,1,2,0,{"v":0,"d":"0%"},19,14,4,1,1,6,0]
["衛生福利部",4,0,0,0,0,0,{"v":0,"d":"0%"},4,4,2,0,0,3,0]
["文化部",4,0,0,0,0,0,{"v":0,"d":"0%"},4,2,0,0,0,2,0]
["國家科學及技術委員會",1,0,0,0,0,0,{"v":0,"d":"0%"},1,1,0,0,0,0,0]
["國家發展委員會",1,0,0,0,0,0,{"v":0,"d":"0%"},1,1,0,0,0,0,0]
["國軍退除役官兵輔導委員會",5,0,0,0,0,0,{"v":0,"d":"0%"},5,0,0,0,0,5,0]
["行政院主計總處",1,0,0,0,0,0,{"v":0,"d":"0%"},1,0,0,0,0,1,0]
["行政院原子能委員會",1,0,0,0,0,0,{"v":0,"d":"0%"},1,1,0,0,0,1,0]
["臺灣高等法院",1,0,0,0,0,0,{"v":0,"d":"0%"},1,0,0,0,0,1,0]
["法官學院",1,0,0,0,0,0,{"v":0,"d":"0%"},1,0,0,1,0,0,0]
["臺北市政府",29,1,1,1,0,0,{"v":0,"d":"0%"},28,14,15,1,0,15,2]
["高雄市政府",24,1,1,0,1,0,{"v":0,"d":"0%"},23,16,8,1,0,6,1]
["新北市政府",51,0,0,0,0,0,{"v":0,"d":"0%"},51,37,20,2,1,10,0]
["宜蘭縣政府",13,1,1,1,1,0,{"v":0,"d":"0%"},12,11,0,1,0,3,1]
["桃園市政府",27,0,0,0,0,0,{"v":0,"d":"0%"},27,9,12,0,0,8,2]
["新竹縣政府",14,0,0,0,0,0,{"v":0,"d":"0%"},14,5,1,0,0,8,2]
["苗栗縣政府",27,0,0,0,0,0,{"v":0,"d":"0%"},27,21,13,1,1,4,1]
["彰化縣政府",14,0,0,0,0,0,{"v":0,"d":"0%"},14,5,11,0,0,4,0]
["南投縣政府",20,1,1,0,1,0,{"v":0,"d":"0%"},19,14,9,0,0,6,1]
["雲林縣政府",23,0,0,0,0,0,{"v":0,"d":"0%"},23,20,7,0,0,5,1]
["嘉義縣政府",4,0,0,0,0,0,{"v":0,"d":"0%"},4,0,1,0,0,1,2]
["屏東縣政府",25,0,0,0,0,0,{"v":0,"d":"0%"},25,13,9,0,0,12,0]
["臺東縣政府",1,0,0,0,0,0,{"v":0,"d":"0%"},1,1,0,0,0,0,0]
["花蓮縣政府",4,0,0,0,0,0,{"v":0,"d":"0%"},4,1,0,1,0,1,1]
["澎湖縣政府",7,0,0,0,0,0,{"v":0,"d":"0%"},7,4,3,0,0,1,0]
["基隆市政府",5,0,0,0,0,0,{"v":0,"d":"0%"},5,4,1,0,0,2,0]
["新竹市政府",12,0,0,0,0,0,{"v":0,"d":"0%"},12,7,5,0,0,6,0]
["臺中市政府",48,0,0,0,0,0,{"v":0,"d":"0%"},48,21,12,0,1,20,4]
["嘉義市政府",11,0,0,0,0,0,{"v":0,"d":"0%"},11,5,7,1,1,2,1]
["臺南市政府",28,2,2,2,0,0,{"v":0,"d":"0%"},26,8,9,1,1,10,1]
["連江縣政府",2,0,0,0,0,0,{"v":0,"d":"0%"},2,1,1,0,0,0,1]
["金門縣政府",2,0,0,0,0,0,{"v":0,"d":"0%"},2,1,1,0,0,1,0]
["其他(法人團體)",11,1,1,0,1,0,{"v":0,"d":"0%"},10,4,2,0,0,5,0]
["合計",{"$f":"SUM(B4:B45)","v":586},{"$f":"B46-I46","v":18},{"$f":"SUM(D4:D45)","v":18},7,14,0,0,568,323,195,16,7,202,29]

{"sheet":"表2 機關別工程標","index":1,"n_rows":23,"n_cols":16,"rows_kept":23,"merged":[[0,0,0,1],[0,2,0,7],[0,8,1,14],[0,15,1,15],[1,0,2,0],[1,1,2,1],[1,2,2,2],[1,3,1,5],[1,6,1,7]]}
[null,null,"應辦理節能減碳檢核辦理情形統計",{"$nulls":5},"不需辦理節能減碳檢核原因統計(原因可複選)",{"$nulls":6},"備註"]
["機關別","決標\n總件數\n(A)\n(A = C+D+F)","應辦理件數(B)\n(B = A-F)","已依規定辦理情形",null,null,"未依規定辦理情形"]
[{"$nulls":3},"依規定辦理節能減碳檢核之件數\n(C)","計畫提報核定階段納入辦理節能減碳檢核件數","規劃設計階段納入辦理節能減碳檢核件數","未依規定於計畫提報核定、規劃設計階段納入辦理節能減碳檢核件數\n(D)","未依規定辦理節能減碳檢核件數比率%(E)\n(E = D/B)","不需辦理節能減碳檢核之件數\n(F)","非中央政府辦理新臺幣一億元以上之公共工程之件數","非受中央政府補助比率逾工程建造經費百分之五十且補助經費達新臺幣一億元以上之個案公共工程之件數","災後緊急處理、搶修、搶險之件數","災後原地復建之件數","整修工程、拆除工程、疏濬工程、結構補強工程之件數","規劃取得綠建築標章之建築工程之件數","為公共工程節能減碳檢核注意事項公布前核定案件"]
["教育部 ",2,0,0,0,0,0,{"$f":"IF(D4+G4=0,0,G4/(D4+G4))","v":{"v":0,"d":"0%"}},2,1,1,0,0,1,1,0]
["經濟部 ",17,6,6,0,6,0,{"$f":"IF(D5+G5=0,0,G5/(D5+G5))","v":{"v":0,"d":"0%"}},11,6,5,1,0,2,1,0]
["交通部 ",11,5,5,0,5,0,{"v":0,"d":"0%"},6,0,0,0,0,4,2,0]
["行政院農業委員會 ",1,1,1,1,0,0,{"v":0,"d":"0%"},0,0,0,0,0,0,0,0]
["文化部 ",1,0,0,0,0,0,{"v":0,"d":"0%"},1,0,0,0,0,1,0,0]
["國軍退除役官兵輔導委員會 ",1,0,0,0,0,0,{"v":0,"d":"0%"},1,0,0,0,0,0,1,0]
["臺北市政府 ",4,0,0,0,0,0,{"v":0,"d":"0%"},4,1,3,0,0,1,0,0]
["高雄市政府 ",1,1,1,0,1,0,{"v":0,"d":"0%"},0,0,0,0,0,0,0,0]
["新北市政府 ",5,2,2,1,1,0,{"v":0,"d":"0%"},3,1,3,0,0,0,0,0]
["宜蘭縣政府 ",1,0,0,0,0,0,{"v":0,"d":"0%"},1,1,0,0,0,0,0,0]
["桃園市政府 ",4,1,1,0,1,0,{"v":0,"d":"0%"},3,0,1,0,0,0,2,0]
["苗栗縣政府 ",1,0,0,0,0,0,{"v":0,"d":"0%"},1,0,0,0,0,0,1,0]
["彰化縣政府 ",2,1,1,0,1,0,{"v":0,"d":"0%"},1,0,0,0,0,0,0,1]
["屏東縣政府 ",1,0,0,0,0,0,{"v":0,"d":"0%"},1,0,0,0,0,1,0,0]
["澎湖縣政府 ",1,0,0,0,0,0,{"v":0,"d":"0%"},1,0,0,0,0,1,0,0]
["新竹市政府 ",1,0,0,0,0,0,{"v":0,"d":"0%"},1,0,0,0,0,1,0,0]
["臺中市政府 ",3,1,0,0,0,1,{"v":1,"d":"100%"},2,1,2,0,0,0,1,0]
["臺南市政府 ",1,1,1,1,1,0,{"v":0,"d":"0%"},0,0,0,0,0,0,0,0]
["連江縣政府 ",1,0,0,0,0,0,{"v":0,"d":"0%"},1,0,0,0,0,0,1,0]
["合計",{"$f":"SUM(B4:B22)","v":59},{"$f":"B23-I23","v":19},{"$f":"SUM(D3:D22)","v":18},{"$f":"SUM(E3:E22)","v":3},{"$f":"SUM(F3:F22)","v":16},{"$f":"SUM(G3:G22)","v":1},{"$f":"IF(D23+G23=0,0,G23/(D23+G23))","v":{"v":0.05263157894736842,"d":"5%"}},{"$f":"SUM(I3:I22)","v":40},11,15,1,0,12,10,1]

{"sheet":"表3勞務標(工程類別)","index":2,"n_rows":11,"n_cols":15,"rows_kept":11,"merged":[[0,0,0,1],[0,2,0,7],[0,8,1,14],[1,0,2,0],[1,1,2,1],[1,2,2,2],[1,3,1,5],[1,6,1,7],[10,0,10,14]]}
[null,null,"應辦理節能減碳檢核辦理情形統計",{"$nulls":5},"不需辦理節能減碳檢核原因統計(原因可複選)"]
["機關別","決標\n總件數\n(A)\n(A = C+D+F)","應辦理件數(B)\n(B = A-F)","已依規定辦理情形",null,null,"未依規定辦理情形"]
[{"$nulls":3},"依規定辦理節能減碳檢核之件數\n(C)","計畫提報核定階段納入辦理節能減碳檢核件數\n","規劃設計階段納入辦理節能減碳檢核件數\n","未依規定於計畫提報核定、規劃設計階段納入辦理節能減碳檢核件數\n(D)","未依規定辦理節能減碳檢核件數比率%\n(E)\n(E = D/B)","不需辦理節能減碳檢核之件數\n(F)","非中央政府辦理新臺幣一億元以上之公共工程之件數","非受中央政府補助比率逾工程建造經費百分之五十且補助經費達新臺幣一億元以上之個案公共工程之件數","災後緊急處理、搶修、搶險之件數","災後原地復建之件數","整修工程、拆除工程、疏濬工程、結構補強工程之件數","規劃取得綠建築標章之建築工程之件數"]
["建築服務",153,3,3,1,3,0,{"$f":"IF(D4+G4=0,0,G4/(D4+G4))","v":{"v":0,"d":"0%"}},150,66,39,1,1,65,18]
["工程服務",347,13,13,5,10,0,{"$f":"IF(D5+G5=0,0,G5/(D5+G5))","v":{"v":0,"d":"0%"}},334,196,121,14,6,124,8]
["綜合工程服務",40,2,2,1,1,0,{"$f":"IF(D6+G6=0,0,G6/(D6+G6))","v":{"v":0,"d":"0%"}},38,27,12,1,0,10,1]
["都市計劃及景觀建築服務",46,0,0,0,0,0,{"$f":"IF(D7+G7=0,0,G7/(D7+G7))","v":{"v":0,"d":"0%"}},46,34,23,0,0,3,2]
["合計",{"$f":"SUM(B4:B7)","v":586},18,18,7,14,0,{"$f":"IF(D8+G8=0,0,G8/(D8+G8))","v":{"v":0,"d":"0%"}},{"$f":"SUM(I4:I7)","v":568},323,195,16,7,{"$f":"SUM(N4:N7)","v":202},{"$f":"SUM(O4:O7)","v":29}]
[]
[]
["備註：\n1.標的分類為「8671建築服務」、「8672工程服務」、「8673綜合工程服務」、「8674都市計劃及景觀建築服務」。\n2.各機關節能減碳檢核辦理情形係依據各機關所填之決標公告。"]

{"sheet":"表4工程標(工程類別)","index":3,"n_rows":11,"n_cols":16,"rows_kept":11,"merged":[[0,0,0,1],[0,2,0,7],[0,8,1,14],[0,15,1,15],[1,0,2,0],[1,1,2,1],[1,2,2,2],[1,3,1,5],[1,6,1,7],[10,0,10,14]]}
[null,null,"應辦理節能減碳檢核辦理情形統計",{"$nulls":5},"不需辦理節能減碳檢核原因統計(原因可複選)",{"$nulls":6},"備註"]
["機關別","決標\n總件數\n(A)\n(A = C+D+F)","應辦理件數(B)\n(B = A-F)","已依規定辦理情形",null,null,"未依規定辦理情形"]
[{"$nulls":3},"依規定辦理節能減碳檢核之件數\n(C)","計畫提報核定階段納入辦理節能減碳檢核件數\n","規劃設計階段納入辦理節能減碳檢核件數\n","未依規定於計畫提報核定、規劃設計階段納入辦理節能減碳檢核件數\n(D)","未依規定辦理節能減碳檢核件數比率%\n(E)\n(E = D/B)","不需辦理節能減碳檢核之件數\n(F)","非中央政府辦理新臺幣一億元以上之公共工程之件數","非受中央政府補助比率逾工程建造經費百分之五十且補助經費達新臺幣一億元以上之個案公共工程之件數","災後緊急處理、搶修、搶險之件數","災後原地復建之件數","整修工程、拆除工程、疏濬工程、結構補強工程之件數","規劃取得綠建築標章之建築工程之件數","為公共工程節能減碳檢核注意事項公布前核定案件"]
["交通工程",12,5,5,1,4,0,{"$f":"IF(D4+G4=0,0,G4/(D4+G4))","v":{"v":0,"d":"0%"}},7,2,2,0,0,4,0,0]
["水利工程",9,8,8,2,7,0,{"$f":"IF(D5+G5=0,0,G5/(D5+G5))","v":{"v":0,"d":"0%"}},1,0,0,0,0,1,0,0]
["建築工程",30,4,4,0,4,0,{"$f":"IF(D6+G6=0,0,G6/(D6+G6))","v":{"v":0,"d":"0%"}},26,7,11,1,0,6,9,0]
["其他土木工程",8,2,1,0,1,1,{"$f":"IF(D7+G7=0,0,G7/(D7+G7))","v":{"v":0.5,"d":"50%"}},6,2,2,0,0,1,1,1]
["合計",{"$f":"SUM(B4:B7)","v":59},19,18,3,16,1,{"$f":"IF(D8+G8=0,0,G8/(D8+G8))","v":{"v":0.05263157894736842,"d":"5%"}},{"$f":"SUM(I4:I7)","v":40},11,15,1,0,{"$f":"SUM(N4:N7)","v":12},{"$f":"SUM(O4:O7)","v":10},{"$f":"SUM(P4:P7)","v":1}]
[]
[]
["備註：\n1.交通工程類：依政府採購標的分類代碼表，代碼5131~5132。\n2.水利工程類：依政府採購標的分類代碼表，代碼5133。\n3.建築工程類：依政府採購標的分類代碼表，代碼5121~5129、5153、5161~5165、5171~5175、5177~5180。\n4.其他土木工程類：依政府採購標的分類代碼表，代碼5134~5137、5139~5140、5151~5152、5154~5159、5166、5169、5176。\n5.各機關節能減碳檢核辦理情形係依據各機關所填之決標公告。"]

{"sheet":"節能減碳檢核明細","index":4,"n_rows":640,"n_cols":15,"rows_kept":640}
["項次","主管機關","機關名稱","補助機關","標案名稱","採購性質","標的分類名稱","預算金額","決標金額","決標日期","決標公告日期","履約地點","節能減碳檢核狀態","已依規定辦理節能減碳檢核","不需辦理節能減碳檢核原因"]
["1","中央研究院 ","中央研究院 ","無 ","中央研究院細胞與個體生物學研究所中庭採光罩及屋頂鋼樑補強工程補強設計監造案 ","勞務","工程服務 ","332304","300000","112/07/14","112/07/18","臺北市－全區 ","否","","非中央政府辦理新臺幣一億元以上之公共工程,非受中央政府補助比率逾工程建造經費百分之五十且補助經費達新臺幣一億元以上之個案公共工程 "]
["2","內政部 ","臺灣警察專科學校 ","無 ","大禮堂視聽設備整修案 ","勞務","工程服務 ","1497300","1453000","112/07/13","112/07/28","臺北市－全區 ","否","","整修工程、拆除工程、疏濬工程、結構補強工程 "]
["3","內政部 ","內政部營建署 ","無 ","國家考試闈場及數位多功能考場大樓新建工程委託規劃設計及監造技術服務採購案 ","勞務","建築服務 ","50254818","50254818","112/07/11","112/07/21","北部地區－全區 ","否","","規劃取得綠建築標章之建築工程 "]
["4","內政部 ","內政部營建署 ","無 ","「國立屏東高級中學宿舍及未來領航大樓統包工程」委託監造服務 ","勞務","建築服務 ","11089232","11089232","112/07/20","112/07/24","南部地區－全區 ","否","","規劃取得綠建築標章之建築工程 "]
["5","內政部 ","內政部營建署 ","無 ","建築物耐震能力詳細評估工作共同供應契約 ","勞務","工程服務 ","600000000","600000000","112/06/17","112/07/13","北部地區－全區,中部地區－全區,南部地區－全區,東部地區－全區,離島地區－全區 ","否","","整修工程、拆除工程、疏濬工程、結構補強工程 "]
["6","內政部 ","墾丁國家公園管理處 ","無 ","鵝鑾鼻公園賣店新建工程委託規劃設計監造技術服務 ","勞務","建築服務 ","16000000","16000000","112/07/25","112/07/27","屏東縣－恆春 ","已依規定納入辦理節能減碳檢核 ","計畫提報核定階段納入辦理節能減碳檢核;規劃設計階段納入辦理節能減碳檢核 ",""]
["7","內政部 ","玉山國家公園管理處 ","無 ","八通關越道東段登山入口空間規劃設計施作勞務採購案 ","勞務","都市計劃及景觀建築服務 ","3000000","2980000","112/06/28","112/07/04","花蓮縣－卓溪 ","否","","非中央政府辦理新臺幣一億元以上之公共工程,非受中央政府補助比率逾工程建造經費百分之五十且補助經費達新臺幣一億元以上之個案公共工程 "]
["8","內政部 ","太魯閣國家公園管理處 ","無 ","洛韶山莊及周邊設施改善工程委託技術服務案 ","勞務","都市計劃及景觀建築服務 ","1377085","1377085","112/07/11","112/07/18","花蓮縣－秀林 ","否","","非中央政府辦理新臺幣一億元以上之公共工程,整修工程、拆除工程、疏濬工程、結構補強工程 "]
["9","內政部 ","太魯閣國家公園管理處 ","無 ","奇萊稜線山屋工程委託規劃設計及監造服務案 ","勞務","建築服務 ","1488000","1488000","112/07/13","112/07/18","花蓮縣－秀林 ","否","","非中央政府辦理新臺幣一億元以上之公共工程 "]
["10","內政部 ","雪霸國家公園管理處 ","無 ","觀霧地區供水系統改善工程暨113年度觀霧地區委託設計監造技術服務開口契約 ","勞務","工程服務 ","1398600","1326672","112/07/20","112/07/25","苗栗縣－泰安 ","否","","非中央政府辦理新臺幣一億元以上之公共工程,非受中央政府補助比率逾工程建造經費百分之五十且補助經費達新臺幣一億元以上之個案公共工程,災後緊急處理、搶修、搶險,整修工程、拆除工程、疏濬工程、結構補強工程 "]
["11","內政部 ","雪霸國家公園管理處 ","無 ","汶水服務區木平台及網球場整修工程暨113年度汶水服務區及雪見地區委託設計監造技術服務開口契約 ","勞務","工程服務 ","1361220","1304178","112/07/13","112/07/17","苗栗縣－大湖,苗栗縣－泰安 ","否","","非中央政府辦理新臺幣一億元以上之公共工程,非受中央政府補助比率逾工程建造經費百分之五十且補助經費達新臺幣一億元以上之個案公共工程,災後緊急處理、搶修、搶險,整修工程、拆除工程、疏濬工程、結構補強工程 "]
["12","內政部 ","台江國家公園管理處 ","無 ","112年台江學園遊客中心設施改善工程委託規劃設計監造技術服務案 ","勞務","工程服務 ","1090536","1030557","112/07/18","112/07/19","臺南市－安南區 ","否","","非中央政府辦理新臺幣一億元以上之公共工程,整修工程、拆除工程、疏濬工程、結構補強工程 "]
["13","內政部 ","國家自然公園管理處 ","內政部營建署 ","高雄都會公園整建計畫工程人力服務 ","勞務","工程服務 ","1117290","1074458","112/07/04","112/07/06","南部地區－全區 ","否","","非受中央政府補助比率逾工程建造經費百分之五十且補助經費達新臺幣一億元以上之個案公共工程 "]
["14","內政部 ","內政部營建署城鄉發展分署 ","無 ","變更東港都市計畫(都市計畫圖重製專案通盤檢討)案 ","勞務","都市計劃及景觀建築服務 ","9660000","9650000","112/06/27","112/07/14","臺北市－松山區 ","否","","非中央政府辦理新臺幣一億元以上之公共工程 "]
["15","文化部 ","文化部 ","無 ","「空總臺灣當代文化實驗場福利大樓等四棟建物拆除工程委託設計及監造技術服務」第一次契約變更 ","勞務","建築服務 ","572000","540000","112/07/07","112/07/12","臺北市－全區 ","否","","非中央政府辦理新臺幣一億元以上之公共工程 "]
["16","文化部 ","文化部 ","無 ","嘉義文化創意產業園區酒文化館Q棟、傳統藝術區建物變更使用執照及創意工坊S棟2樓室內裝修技術服務採購案 ","勞務","建築服務 ","1490000","1486000","112/06/27","112/07/03","嘉義市－全區 ","否","","非中央政府辦理新臺幣一億元以上之公共工程 "]
["17","文化部 ","國立中正紀念堂管理處 ","無 ","主堂體演藝廳環境改善及設備更新-委託規劃設計暨監造技術服務案 ","勞務","工程服務 ","4110000","3860000","112/07/10","112/07/12","北部地區－全區 ","否","","整修工程、拆除工程、疏濬工程、結構補強工程 "]
["18","文化部 ","國立臺灣美術館 ","無 ","國立臺灣美術館兒童繪本區空間設計、規劃及施作勞務採購案 ","勞務","工程服務 ","1957000","1938000","112/06/20","112/07/05","臺中市－西區 ","否","","整修工程、拆除工程、疏濬工程、結構補強工程 "]
["19","文化部 ","國家鐵道博物館籌備處 ","無 ","國定古蹟臺北機廠柴電工場、舊技工養成所等建物修復及再利用工程 ","工程","其他用途建築工程 ","227152590","224131460","112/07/14","112/07/18","臺北市－信義區 ","否","","整修工程、拆除工程、疏濬工程、結構補強工程 "]
["20","交通部 ","交通部民用航空局臺北國際航空站 ","無 ","航廈消防防火暨排煙改善工程委託規劃設計及監造技術服務-第1次契約變更 ","勞務","建築服務 ","644114","611500","112/07/18","112/07/21","臺北市－松山區 ","否","","非中央政府辦理新臺幣一億元以上之公共工程 "]
["21","交通部 ","交通部民用航空局花蓮航空站 ","無 ","航廈連座椅汰換整體規劃設計監造委託技術服務案 ","勞務","都市計劃及景觀建築服務 ","450000","450000","112/06/30","112/07/20","花蓮縣－全區 ","否","","非中央政府辦理新臺幣一億元以上之公共工程,非受中央政府補助比率逾工程建造經費百分之五十且補助經費達新臺幣一億元以上之個案公共工程 "]
["22","交通部 ","交通部民用航空局南竿航空站 ","無 ","南竿航空站航廈及宿舍屋頂隔熱防水與人行道整修工程委託規劃設計及監造技術服務案 ","勞務","工程服務 ","1827000","1516410","112/07/05","112/07/07","連江縣－南竿 ","否","","整修工程、拆除工程、疏濬工程、結構補強工程 "]
["23","交通部 ","交通部中央氣象局 ","無 ","苗栗離岸海氣象觀測樁結構體再利用可行性評估及相關環境調查案 ","勞務","工程服務 ","14163975","13800000","112/07/21","112/07/25","其他－其他 ","否","","非中央政府辦理新臺幣一億元以上之公共工程,非受中央政府補助比率逾工程建造經費百分之五十且補助經費達新臺幣一億元以上之個案公共工程 "]
["24","交通部 ","交通部中央氣象局 ","無 ","國定古蹟「原台南測候所」致災風險分析因應計畫 ","勞務","建築服務 ","650000","638000","112/06/29","112/07/03","臺南市－中西區 ","否","","非中央政府辦理新臺幣一億元以上之公共工程,非受中央政府補助比率逾工程建造經費百分之五十且補助經費達新臺幣一億元以上之個案公共工程 "]
["25","交通部 ","交通部觀光局 ","無 ","2024台灣燈會燈區配電設施租賃與裝配作業之設計與監造案 ","勞務","工程服務 ","900000","880000","112/06/14","112/07/17","臺北市－大安區 ","否","","非中央政府辦理新臺幣一億元以上之公共工程 "]
["26","交通部 ","交通部觀光局雲嘉南濱海國家風景區管理處 ","無 ","布袋好美里新設公廁暨休憩賣店暨周邊環境改善工程等技術服務開口契約 ","勞務","工程服務 ","8500000","8415000","112/07/03","112/07/05","嘉義縣－布袋 ","否","","規劃取得綠建築標章之建築工程 "]
["27","交通部 ","交通部臺灣鐵路管理局 ","無 ","「臺南市北門路舊倉庫群之新舊建築整體規劃設計及提送文資審議」委託技術服務案  ","勞務","建築服務 ","1400000","1400000","112/07/11","112/07/13","臺北市－中正區 ","否","","非中央政府辦理新臺幣一億元以上之公共工程,非受中央政府補助比率逾工程建造經費百分之五十且補助經費達新臺幣一億元以上之個案公共工程 "]
["28","交通部 ","交通部公路總局第一區養護工程處 ","無 ","111年度機電、消防設施新建、改善及維護委託專案管理計畫(第1次變更-後續擴充) ","勞務","工程服務 ","365820","365820","112/06/30","112/07/25","基隆市－全區,新北市－全區,桃園市－全區,新竹市－全區,新竹縣－全區 ","否","","非中央政府辦理新臺幣一億元以上之公共工程 "]
["29","交通部 ","交通部公路總局第一區養護工程處 ","無 ","112年第一區養護工程處因應氣候變遷橋梁安全維持檢測工作(景美段、中和段、基隆段)(第1次新增項目) ","勞務","工程服務 ","300000","288000","112/07/13","112/07/17","基隆市－全區,新北市－全區 ","否","","非中央政府辦理新臺幣一億元以上之公共工程 "]
["30","交通部 ","交通部公路總局第三區養護工程處 ","無 ","屏、澎地區112年度工務段轄線道路養護勞務工作(追加金額第1次變更) ","勞務","工程服務 ","528300","528300","112/07/24","112/07/26","澎湖縣－全區,屏東縣－全區 ","否","","非中央政府辦理新臺幣一億元以上之公共工程 "]
["31","交通部 ","交通部公路總局第三區養護工程處 ","無 ","台9線池上大橋(310K+080～311k+420)改建工程」及代辦發包自來水公司、電信公司、電力公司及陸軍管線附掛工程 ","工程","快速道路(不含高架快速道路), 街道, 馬路, 鐵路及機場跑道 ","1875358407","1875358407","112/07/20","112/07/21","臺東縣－池上 ","已依規定納入辦理節能減碳檢核 ","規劃設計階段納入辦理節能減碳檢核 ",""]
["32","交通部 ","交通部公路總局第三區養護工程處 ","無 ","台23線39K+850災害修復工程委託監造服務工作 ","勞務","工程服務 ","34464166","34464166","112/07/25","112/07/27","臺東縣－全區 ","否",null,"災後原地復建"]
["33","交通部 ","交通部公路總局第四區養護工程處 ","無 ","台7線86K+400災害復建工程委託設計、測量及地質探查服務工作 ","勞務","工程服務 ","18452785","18452785","112/07/04","112/07/10","宜蘭縣－大同 ","否","","災後緊急處理、搶修、搶險 "]
["34","交通部 ","交通部公路總局第五區養護工程處 ","無 ","新營工務段台1線､台19線､台19甲線等部分路面改善工程(預估) ","工程","快速道路(不含高架快速道路), 街道, 馬路, 鐵路及機場跑道 ","151169862","123880000","112/07/18","112/07/20","臺南市－官田區,臺南市－新營區,臺南市－後壁區,臺南市－下營區,臺南市－柳營區,臺南市－鹽水區 ","否","","整修工程、拆除工程、疏濬工程、結構補強工程 "]
["35","交通部 ","交通部公路總局第五區養護工程處 ","無 ","新化工務段建築物整修工程委託設計、監造服務工作 ","勞務","工程服務 ","1333500","1333500","112/07/11","112/07/20","臺南市－新化區 ","否","","整修工程、拆除工程、疏濬工程、結構補強工程 "]
["36","交通部 ","交通部公路總局蘇花公路改善工程處 ","無 ","「代辦南方澳跨港大橋重建工程委託設計工作服務契約」第1次契約變更新增項目 ","勞務","工程服務 ","1798359","1798359","112/07/07","112/07/14","宜蘭縣－蘇澳 ","否","","災後緊急處理、搶修、搶險 "]
["37","交通部 ","交通部公路總局蘇花公路改善工程處 ","無 ","『台9線蘇花公路安全提升計畫』委託綜合規劃及環境影響評估服務工作」第4次契約變更(新增項目) ","勞務","工程服務 ","2006118","1995118","112/07/13","112/07/28","宜蘭縣－蘇澳,宜蘭縣－南澳,花蓮縣－秀林 ","已依規定納入辦理節能減碳檢核 ","計畫提報核定階段納入辦理節能減碳檢核;規劃設計階段納入辦理節能減碳檢核 ",""]
["38","交通部 ","交通部公路總局蘇花公路改善工程處 ","無 ","台9線282K+100～284K+221(三民至三軒段)道路拓寬工程 ","工程","橋樑, 高架快速道路, 隧道及地鐵 ","471603387","471344725","112/07/24","112/07/28","花蓮縣－全區 ","已依規定納入辦理節能減碳檢核 ","規劃設計階段納入辦理節能減碳檢核 ",""]
["39","交通部 ","交通部航港局 ","無 ","112-113年度基隆市中山區協和段11-2地號等27筆土地(含集水區)坡地巡檢工作委託技術服務 ","勞務","工程服務 ","922350","900000","112/06/27","112/07/12","其他－其他 ","否","","非中央政府辦理新臺幣一億元以上之公共工程,非受中央政府補助比率逾工程建造經費百分之五十且補助經費達新臺幣一億元以上之個案公共工程 "]
["40","交通部 ","交通部航港局 ","無 ","鼻頭角燈塔道路邊坡土石滑落修復工程委託設計監造技術服務 ","勞務","工程服務 ","1395649","1348000","112/06/27","112/07/20","其他－其他 ","否","","整修工程、拆除工程、疏濬工程、結構補強工程 "]
["41","交通部 ","交通部高速公路局 ","無 ","臺灣桃園國際機場第三跑道及基礎設施計畫工程細部設計及監造委託技術服務 ","勞務","工程服務 ","2229043000","2229043000","112/06/29","112/07/10","桃園市－大園區 ","已依規定納入辦理節能減碳檢核 ","規劃設計階段納入辦理節能減碳檢核 ",""]
["42","交通部 ","交通部高速公路局 ","無 ","臺灣桃園國際機場第三跑道及基礎設施計畫第一階段工程(第X002X標) ","工程","快速道路(不含高架快速道路), 街道, 馬路, 鐵路及機場跑道 ","6189442460","6189000000","112/07/21","112/07/31","桃園市－大園區 ","已依規定納入辦理節能減碳檢核 ","規劃設計階段納入辦理節能減碳檢核 ",""]
["43","交通部 ","交通部高速公路局 ","無 ","國道3號增設金城交流道工程(第I306S標) ","工程","橋樑, 高架快速道路, 隧道及地鐵 ","2727738377","2720000000","112/07/18","112/07/26","新北市－土城區 ","已依規定納入辦理節能減碳檢核 ","規劃設計階段納入辦理節能減碳檢核 ",""]
["44","交通部 ","交通部高速公路局北區養護工程分局 ","無 ","111~112年度北區養護工程分局邊坡自動化監測委託技術服務工作CCO-02 ","勞務","工程服務 ","570843","550000","112/07/17","112/07/18","臺北市－全區 ","否","","非中央政府辦理新臺幣一億元以上之公共工程,非受中央政府補助比率逾工程建造經費百分之五十且補助經費達新臺幣一億元以上之個案公共工程 "]
["45","交通部 ","交通部高速公路局北區養護工程分局 ","無 ","112年度中壢段邊坡監測及巡查委託技術服務工作CCO-01 ","勞務","工程服務 ","3402600","3350000","112/07/24","112/07/25","桃園市－中壢區 ","否","","非中央政府辦理新臺幣一億元以上之公共工程,非受中央政府補助比率逾工程建造經費百分之五十且補助經費達新臺幣一億元以上之個案公共工程 "]
["46","交通部 ","交通部高速公路局中區養護工程分局 ","無 "," 臺中工務段庫房及宿舍增修建工程委託設計監造技術服務工作 ","勞務","建築服務 ","4697596","4613700","112/07/06","112/07/10","臺中市－后里區 ","否","","非中央政府辦理新臺幣一億元以上之公共工程,非受中央政府補助比率逾工程建造經費百分之五十且補助經費達新臺幣一億元以上之個案公共工程 "]
["47","交通部 ","交通部高速公路局中區養護工程分局 ","無 ","國道6號邊坡補強工程委託設計監造技術服務工作 ","勞務","工程服務 ","8122319","8053700","112/06/29","112/07/06","南投縣－全區 ","否","","非中央政府辦理新臺幣一億元以上之公共工程,非受中央政府補助比率逾工程建造經費百分之五十且補助經費達新臺幣一億元以上之個案公共工程 "]
["48","交通部 ","交通部高速公路局南區養護工程分局 ","無 ","屏東與岡山段轄區邊坡監測及巡查委託技術服務工作(112-113)-第1次契約變更(新增工項) ","勞務","工程服務 ","16319520","16121000","112/06/21","112/07/20","屏東縣－全區 ","否","","非中央政府辦理新臺幣一億元以上之公共工程 "]
["49","交通部 ","交通部高速公路局南區養護工程分局 ","無 ","「古坑服務區後院音樂廣場等改善工程」委託規劃設計及監造技術服務工作(112) ","勞務","工程服務 ","1084886","1060000","112/07/14","112/07/21","南部地區－全區 ","否","","非中央政府辦理新臺幣一億元以上之公共工程 "]
["50","交通部 ","交通部鐵道局 ","無 ","CE03標鐵道技術研究及驗證中心C3檢測驗證設備廠房土建工程 ","工程","其他用途建築工程 ","322588779","292358000","112/07/17","112/07/20","高雄市－燕巢區 ","否","","規劃取得綠建築標章之建築工程 "]
["51","交通部 ","交通部鐵道局 ","無 ","CU05施工標A14車站土建、水環工程 ","工程","快速道路(不含高架快速道路), 街道, 馬路, 鐵路及機場跑道 ","2112341383","2112341383","112/07/25","112/07/31","桃園市－大園區 ","否","","整修工程、拆除工程、疏濬工程、結構補強工程 "]
["52","交通部 ","交通部鐵道局 ","無 ","代辦臺鐵局「高鐵彰化站與臺鐵轉乘接駁計畫」田中支線鐵路新建工程委託設計及監造技術服務 ","勞務","工程服務 ","176070670","176070670","112/07/10","112/07/12","彰化縣－全區 ","已依規定納入辦理節能減碳檢核 ","規劃設計階段納入辦理節能減碳檢核 ",""]
["53","交通部 ","交通部鐵道局北部工程處 ","無 ","臺鐵都會區捷運化桃園段地下化建設計畫DJ01標北段鐵路工程設計及監造工作委託技術服務第3次契約變更 ","勞務","工程服務 ","1162219","1160000","112/05/29","112/07/04","新北市－全區 ","已依規定納入辦理節能減碳檢核 ","規劃設計階段納入辦理節能減碳檢核 ",""]
["54","交通部 ","交通部鐵道局東部工程處 ","無 ","CF02標臺鐵內獅至南州車站美學工程 ","工程","快速道路(不含高架快速道路), 街道, 馬路, 鐵路及機場跑道 ","142000000","124960000","112/07/03","112/07/05","屏東縣－南州,屏東縣－獅子 ","否","","整修工程、拆除工程、疏濬工程、結構補強工程 "]
["55","交通部 ","中華郵政股份有限公司臺中郵局 ","教育部國民及學前教育署 ","臺中南屯路郵局職場教保中心委外規劃設計及監造技術服務 ","勞務","建築服務 ","854487","845597","112/07/12","112/07/14","中部地區－全區 ","否","","非中央政府辦理新臺幣一億元以上之公共工程,非受中央政府補助比率逾工程建造經費百分之五十且補助經費達新臺幣一億元以上之個案公共工程 "]
["56","交通部 ","中華郵政股份有限公司高雄郵局 ","無 ","高雄郵局111年度營繕工程委託監造技術服務(後續擴充) ","勞務","工程服務 ","1320210","1320210","112/06/17","112/07/21","高雄市－全區 ","否","","整修工程、拆除工程、疏濬工程、結構補強工程 "]
["57","交通部 ","桃園國際機場股份有限公司 ","無 ","臺灣桃園國際機場園區綱要計畫暨實施計畫（第三版）委託技術服務 ","勞務","都市計劃及景觀建築服務 ","60000000","57800000","112/07/14","112/07/25","桃園市－大園區 ","否","","非受中央政府補助比率逾工程建造經費百分之五十且補助經費達新臺幣一億元以上之個案公共工程 "]
["58","交通部 ","桃園國際機場股份有限公司 ","無 ","桃園國際機場室內空間及廁所改善計畫技術服務案 ","勞務","建築服務 ","36112664","35077209","112/06/30","112/07/04","桃園市－大園區 ","否","","整修工程、拆除工程、疏濬工程、結構補強工程 "]
["59","交通部 ","桃園國際機場股份有限公司 ","無 ","焚化爐整建工程委託設計監造暨雙爐運轉環差分析及未來廢棄物處理可行性研究技術服務 ","勞務","工程服務 ","37656008","36800000","112/07/12","112/07/14","桃園市－大園區 ","否","","整修工程、拆除工程、疏濬工程、結構補強工程 "]
["60","交通部 ","臺灣港務股份有限公司基隆港務分公司 ","無 ","基隆港西16號碼頭後線興建多功能倉庫委託設計監造第四次契約變更 ","勞務","綜合工程服務 ","1920622","1920622","112/07/14","112/07/17","基隆市－全區 ","否","","規劃取得綠建築標章之建築工程 "]
["61","交通部 ","臺灣港務股份有限公司臺中港務分公司 ","無 ","『臺中港港區公共道路拓寬及新(整)建工程』設計及監造委託技術服務 ","勞務","工程服務 ","46770000","46770000","112/07/06","112/07/11","臺中市－梧棲區 ","否","","整修工程、拆除工程、疏濬工程、結構補強工程 "]
["62","交通部 ","臺灣港務股份有限公司高雄港務分公司 ","無 ","「高雄港第七貨櫃中心計畫-S1～S3碼頭護岸及新生地填築工程」第4次變更設計 ","工程","水道、海港、水壩及其他水利工程 ","110928178","110510000","112/07/13","112/07/21","高雄市－小港區 ","已依規定納入辦理節能減碳檢核 ","規劃設計階段納入辦理節能減碳檢核 ",""]
["63","交通部 ","臺灣港務股份有限公司高雄港務分公司 ","無 ","棧8-2及9-2屋頂防水牆面整修及優化旅運功能整合工程 ","工程","其他土木工程 ","555005048","555000000","112/07/24","112/07/27","高雄市－鼓山區 ","否","","規劃取得綠建築標章之建築工程 "]
["64","交通部 ","臺灣港務股份有限公司高雄港務分公司 ","無 ","高雄港港區鋪面改善及通道整修工程 ","工程","快速道路(不含高架快速道路), 街道, 馬路, 鐵路及機場跑道 ","335500000","335000000","112/06/30","112/07/05","高雄市－全區 ","否","","整修工程、拆除工程、疏濬工程、結構補強工程 "]
["65","交通部 ","臺灣港務股份有限公司高雄港務分公司 ","無 ","「布袋港務大樓裝修統包工程」監造工作委託技術服務 ","勞務","工程服務 ","2256660","2240000","112/07/06","112/07/18","嘉義縣－布袋 ","否","","整修工程、拆除工程、疏濬工程、結構補強工程 "]
["66","交通部 ","臺灣港務股份有限公司高雄港務分公司 ","無 ","「高雄港第五貨櫃中心碼頭改建工程」設計及監造工作委託技術服務 ","勞務","工程服務 ","116976559","109300000","112/06/21","112/07/13","高雄市－全區 ","否","","整修工程、拆除工程、疏濬工程、結構補強工程 "]
["67","交通部 ","臺灣港務股份有限公司花蓮港務分公司 ","無 ","112年港區電力設備定期巡檢與維修換 裝 ( 開口契約) ( 第1 次契約變更含後續擴充)  ","勞務","工程服務 ","871629","870000","112/07/21","112/07/25","花蓮縣－花蓮 ","否","","整修工程、拆除工程、疏濬工程、結構補強工程 "]
["68","交通部 ","臺灣港務股份有限公司花蓮港務分公司 ","無 ","花蓮港#1~#4遊憩區倉庫建築物優化整建委託規劃與設計監造技術服務 ","勞務","建築服務 ","11013039","11013039","112/07/13","112/07/20","花蓮縣－花蓮 ","否","","整修工程、拆除工程、疏濬工程、結構補強工程 "]
["69","行政院主計總處 ","行政院主計總處 ","無 ","行政院主計總處廣博大樓防水、地坪及圍牆改善統包工程委託監造服務勞務採購案 ","勞務","工程服務 ","800000","795000","112/07/05","112/07/10","臺北市－中正區 ","否","","整修工程、拆除工程、疏濬工程、結構補強工程 "]
["70","行政院原子能委員會 ","行政院原子能委員會核能研究所 ","無 ","027館地下室變壓器及配電盤等設備更換委託設計監造 ","勞務","綜合工程服務 ","570000","520000","112/07/17","112/07/19","桃園市－龍潭區 ","否","","非中央政府辦理新臺幣一億元以上之公共工程,整修工程、拆除工程、疏濬工程、結構補強工程 "]
["71","行政院農業委員會 ","行政院農業委員會林務局羅東林區管理處 ","無 ","國有林治理工程構造物檢測工作 ","勞務","工程服務 ","1000000","1000000","112/07/18","112/07/26","臺北市－全區,基隆市－全區,新北市－全區,宜蘭縣－全區 ","否",null,"非中央政府辦理新臺幣一億元以上之公共工程,非受中央政府補助比率逾工程建造經費百分之五十且補助經費達新臺幣一億元以上之個案公共工程"]
["72","行政院農業委員會 ","行政院農業委員會林務局嘉義林區管理處 ","無 ","玉井區第101林班草山坑內防砂治理工程等3件委託規劃設計監造技術服務案 ","勞務","工程服務 ","3900000","3900000","112/07/20","112/07/25","南部地區－全區 ","否","","非中央政府辦理新臺幣一億元以上之公共工程,非受中央政府補助比率逾工程建造經費百分之五十且補助經費達新臺幣一億元以上之個案公共工程 "]
["73","行政院農業委員會 ","行政院農業委員會林務局屏東林區管理處 ","無 ","112-113年度本處旗山工作站等轄內治理工程委託設計及監造技術服務 ","勞務","工程服務 ","6865000","6693375","112/06/26","112/07/06","高雄市－杉林區,高雄市－甲仙區 ","已依規定納入辦理節能減碳檢核 ","規劃設計階段納入辦理節能減碳檢核 ",""]
["74","行政院農業委員會 ","行政院農業委員會林務局阿里山林業鐵路及文化資產管理處 ","無 ","阿里山林業村焙房修復及再利用工程委託規劃設計(含因應計畫及工作報告書)暨監造技術服務案 ","勞務","建築服務 ","3634600","3634600","112/07/06","112/07/07","嘉義市－全區 ","否","","整修工程、拆除工程、疏濬工程、結構補強工程 "]
["75","行政院農業委員會 ","行政院農業委員會水土保持局臺中分局 ","無 ","112年度臺中分局防災道路路網調查與編號農路構造物體檢 ","勞務","工程服務 ","2400000","2350000","112/07/07","112/07/10","苗栗縣－全區,臺中市－全區 ","否",null,"非中央政府辦理新臺幣一億元以上之公共工程,非受中央政府補助比率逾工程建造經費百分之五十且補助經費達新臺幣一億元以上之個案公共工程"]
["76","行政院農業委員會 ","行政院農業委員會水土保持局臺南分局 ","無 ","112-114年度屏東縣水土保持工程委託設計監造(A) ","勞務","工程服務 ","18900000","18049500","112/07/10","112/07/12","屏東縣－全區 ","否","","災後緊急處理、搶修、搶險,災後原地復建,整修工程、拆除工程、疏濬工程、結構補強工程 "]
["77","行政院農業委員會 ","行政院農業委員會水土保持局臺南分局 ","無 ","112年度臺南分局防災道路路網調查與編號農路構造物體檢 ","勞務","工程服務 ","2400000","2315000","112/07/12","112/07/13","臺南市－全區,高雄市－全區,屏東縣－全區,其他－其他 ","否","","非中央政府辦理新臺幣一億元以上之公共工程 "]
["78","行政院農業委員會 ","行政院農業委員會農業試驗所 ","無 ","多重環境逆境模擬溫室延續工程委託規劃設計監造 ","勞務","工程服務 ","975000","960000","112/07/10","112/07/13","臺中市－霧峰區 ","否","","非中央政府辦理新臺幣一億元以上之公共工程,整修工程、拆除工程、疏濬工程、結構補強工程 "]
["79","行政院農業委員會 ","行政院農業委員會林業試驗所 ","無 ","林業試驗所太麻里研究中心4棟既存建物補辦建築執照及使用執照服務 ","勞務","建築服務 ","748000","710000","112/07/03","112/07/07","臺東縣－全區 ","否","","非中央政府辦理新臺幣一億元以上之公共工程 "]
["80","行政院農業委員會 ","行政院農業委員會水產試驗所 ","無 ","七股海水魚介類種原庫統包工程變更使用執照申請 ","勞務","建築服務 ","250000","248000","112/07/20","112/07/20","南部地區－全區 ","否","","非中央政府辦理新臺幣一億元以上之公共工程,非受中央政府補助比率逾工程建造經費百分之五十且補助經費達新臺幣一億元以上之個案公共工程"]
["81","行政院農業委員會 ","行政院農業委員會農田水利署 ","無 ","埔中及松柏嶺地區擴大灌溉服務可行性規劃 ","勞務","工程服務 ","9950000","9800000","112/07/06","112/07/18","南投縣－名間 ","否","","非中央政府辦理新臺幣一億元以上之公共工程,非受中央政府補助比率逾工程建造經費百分之五十且補助經費達新臺幣一億元以上之個案公共工程 "]
["82","行政院農業委員會 ","行政院農業委員會農田水利署 ","無 ","菁埔圳制水閘改建工程委託設計監造技術服務 ","勞務","工程服務 ","2805000","2664750","112/07/19","112/07/25","彰化縣－埤頭 ","否","","非中央政府辦理新臺幣一億元以上之公共工程,非受中央政府補助比率逾工程建造經費百分之五十且補助經費達新臺幣一億元以上之個案公共工程,整修工程、拆除工程、疏濬工程、結構補強工程 "]
["83","行政院農業委員會 ","行政院農業委員會農田水利署 ","無 ","111~112年度農田水利設施改善工程委託設計監造技術服務後續擴充案 ","勞務","工程服務 ","6500000","6500000","112/07/10","112/07/20","宜蘭縣－全區 ","否","","非中央政府辦理新臺幣一億元以上之公共工程 "]
["84","行政院農業委員會 ","行政院農業委員會農田水利署 ","無 ","苗栗縣通霄地區等擴大灌溉服務推動計畫委託技術服務 ","勞務","工程服務 ","16380000","16000000","112/07/24","112/07/28","苗栗縣－通霄 ","否","","非受中央政府補助比率逾工程建造經費百分之五十且補助經費達新臺幣一億元以上之個案公共工程 "]
["85","行政院農業委員會 ","行政院農業委員會農田水利署 ","無 ","112年新北市金山、三芝區二期擴大灌溉服務推動計畫 ","勞務","工程服務 ","4100000","3960000","112/07/04","112/07/10","北部地區－全區 ","否","","非中央政府辦理新臺幣一億元以上之公共工程 "]
["86","行政院農業委員會 ","行政院農業委員會農田水利署 ","無 ","臺中市大里、太平區之擴大灌溉服務可行性評估計畫 ","勞務","工程服務 ","4200000","4050000","112/07/03","112/07/04","臺中市－太平區,臺中市－大里區 ","否","","非中央政府辦理新臺幣一億元以上之公共工程 "]
["87","行政院農業委員會 ","行政院農業委員會農田水利署 ","無 ","池上萬安圳興建調蓄水池工程委託設計 ","勞務","工程服務 ","9985000","9000000","112/07/07","112/07/27","臺東縣－池上 ","已依規定納入辦理節能減碳檢核 ","規劃設計階段納入辦理節能減碳檢核 ",""]
["88","行政院農業委員會 ","行政院農業委員會農田水利署 ","無 ","知本圳進水口韌性工程委託設計監造服務 ","勞務","工程服務 ","9200000","8464000","112/07/07","112/07/17","臺東縣－卑南 ","已依規定納入辦理節能減碳檢核 ","規劃設計階段納入辦理節能減碳檢核 ",""]
["89","行政院農業委員會 ","行政院農業委員會農田水利署 ","無 ","「桃園大圳2-16號池強化工程及8-1-3號池等4件清淤工程」委託設計監造案 ","勞務","工程服務 ","8500000","8200000","112/07/18","112/07/26","桃園市－中壢區,桃園市－新屋區,桃園市－觀音區,桃園市－大園區 ","否","","整修工程、拆除工程、疏濬工程、結構補強工程 "]
["90","行政院農業委員會 ","行政院農業委員會農田水利署 ","無 ","112年度「桃園大圳水路及埤塘水文監測建置委託設計監造技術服務計畫案」 ","勞務","工程服務 ","1730000","1700000","112/05/24","112/07/04","桃園市－中壢區 ","否","","整修工程、拆除工程、疏濬工程、結構補強工程 "]
["91","行政院農業委員會 ","行政院農業委員會農田水利署 ","無 ","溝心埤倒伏堰等改善工程 ","工程","水道、海港、水壩及其他水利工程 ","205870000","190000000","112/07/07","112/07/10","雲林縣－大埤 ","已依規定納入辦理節能減碳檢核 ","計畫提報核定階段納入辦理節能減碳檢核 ",""]
["92","行政院農業委員會 ","行政院農業委員會農田水利署 ","無 ","112年度大埤站等6口抗旱井緊急開鑿鑿井工程委託規劃設計及監造技術服務 ","勞務","工程服務 ","1710000","1710000","112/07/26","112/07/27","雲林縣－全區 ","否","","非中央政府辦理新臺幣一億元以上之公共工程 "]
["93","行政院農業委員會 ","行政院農業委員會農田水利署 ","無 ","濁幹線北港溪渡槽工程委託專案管理技術服務 ","勞務","工程服務 ","12294000","12294000","112/07/21","112/07/24","雲林縣－全區 ","否","","非中央政府辦理新臺幣一億元以上之公共工程 "]
["94","其他(法人團體) ","新竹肉品市場股份有限公司 ","行政院農業委員會、新竹縣政府 ","肉品冷凍(藏)及加工食品廠新建工程委託規劃設計及監造服務 ","勞務","工程服務 ","7000000","7000000","112/07/13","112/07/14","新竹縣－竹北 ","否","","非中央政府辦理新臺幣一億元以上之公共工程 "]
["95","其他(法人團體) ","大南汽車股份有限公司 ","臺北市公共運輸處 ","北捷北投機廠電動公車場站及共享充電場域委託規劃設計服務採購案 ","勞務","工程服務 ","4450000","4400000","112/07/07","112/07/10","臺北市－北投區 ","否","","非受中央政府補助比率逾工程建造經費百分之五十且補助經費達新臺幣一億元以上之個案公共工程 "]
["96","其他(法人團體) ","臺南市肉品市場股份有限公司 ","無 ","112安南場毛豬屠宰設施設備修繕設計監造 ","勞務","綜合工程服務 ","364641","290000","112/07/17","112/07/18","臺南市－全區 ","否","","整修工程、拆除工程、疏濬工程、結構補強工程 "]
["97","其他(法人團體) ","南投縣農產運銷股份有限公司 ","行政院農業委員會 ","分切室汰舊更新工程委託規畫設計及監造 ","勞務","工程服務 ","990000","970000","112/07/04","112/07/05","南投縣－全區 ","否","","整修工程、拆除工程、疏濬工程、結構補強工程 "]
["98","其他(法人團體) ","南投縣農產運銷股份有限公司 ","南投縣政府 ","預冷庫庫體及冷凍機組設備更新規劃設計及監造 ","勞務","工程服務 ","990000","970000","112/07/03","112/07/03","中部地區－全區 ","否","","整修工程、拆除工程、疏濬工程、結構補強工程 "]
["99","其他(法人團體) ","萬里區漁會 ","台灣電力股份有限公司、新北市政府農業局 ","野柳漁港漁業綜合辦公大樓改善工程勞務採購 ","勞務","工程服務 ","294899","294899","112/07/20","112/07/24","新北市－萬里區 ","否","","整修工程、拆除工程、疏濬工程、結構補強工程 "]
["100","其他(法人團體) ","桃園市新屋區農會 ","無 ","112年度桃園市新屋區農會公糧乾燥機及流程設備更新倉庫工程 -基本規劃設計及監造案 ","勞務","工程服務 ","1000000","818168","112/07/11","112/07/11","桃園市－新屋區 ","否","","非中央政府辦理新臺幣一億元以上之公共工程,非受中央政府補助比率逾工程建造經費百分之五十且補助經費達新臺幣一億元以上之個案公共工程 "]
["101","其他(法人團體) ","台中市大安區肉品市場 ","行政院農業委員會、臺中市政府農業局 ","建構肉品批發市場現代化屠宰及冷鏈設施設備計畫-增設冷凍庫工程委託監造技術服務案 ","勞務","建築服務 ","3448804","3270000","112/07/26","112/07/27","臺中市－大安區 ","已依規定納入辦理節能減碳檢核 ","規劃設計階段納入辦理節能減碳檢核 ",""]
["102","其他(法人團體) ","台中市大安區肉品市場 ","行政院農業委員會、臺中市政府農業局 ","建構肉品批發市場現代化屠宰及冷鏈設施設備計畫-增購屠體預冷室冷藏機組4組-規劃設計監造 ","勞務","工程服務 ","596429","238572","112/07/26","112/07/26","臺中市－大安區 ","否","","非中央政府辦理新臺幣一億元以上之公共工程 "]
["103","其他(法人團體) ","台中市大安區肉品市場 ","行政院農業委員會、臺中市政府農業局 ","建構肉品批發市場現代化屠宰及冷鏈設施設備計畫-電宰場區電路重整規劃-規劃設計監造 ","勞務","工程服務 ","250000","230000","112/07/26","112/07/26","臺中市－大安區 ","否","","非中央政府辦理新臺幣一億元以上之公共工程 "]
["104","其他(法人團體) ","馬祖連江航業有限公司 ","連江縣政府 ","臺馬輪留守維護與管理 ","勞務","工程服務 ","8686437","8500000","112/07/14","112/07/25","基隆市－全區 ","否","","整修工程、拆除工程、疏濬工程、結構補強工程 "]
["105","宜蘭縣政府 ","宜蘭縣政府 ","交通部公路總局 ","宜61線（0K+000～4K+070）及宜26線（9K+500～12K+550）道路改善工程 ","工程","快速道路(不含高架快速道路), 街道, 馬路, 鐵路及機場跑道 ","219451569","206500000","112/07/25","112/07/26","宜蘭縣－員山,宜蘭縣－羅東,宜蘭縣－三星,宜蘭縣－冬山 ","否","","非中央政府辦理新臺幣一億元以上之公共工程 "]
["106","宜蘭縣政府 ","宜蘭縣政府 ","無 ","「龍潭湖旅遊服務站周邊景觀改善工程委託監造及出流管制計畫案(BTSL112013第1次後續擴充案)」 ","勞務","工程服務 ","3607841","3591841","112/06/30","112/07/04","宜蘭縣－礁溪 ","否","","非中央政府辦理新臺幣一億元以上之公共工程 "]
["107","宜蘭縣政府 ","宜蘭縣政府 ","無 ","宜蘭縣政府112年度公共設施及災修等工程集中採購水利工程委託技術服務(後續擴充) ","勞務","綜合工程服務 ","9500000","9500000","112/06/30","112/07/05","宜蘭縣－全區 ","否","","非中央政府辦理新臺幣一億元以上之公共工程,災後緊急處理、搶修、搶險 "]
["108","宜蘭縣政府 ","宜蘭縣政府 ","經濟部 ","五結防潮閘門改善工程委託監造技術服務 ","勞務","綜合工程服務 ","28844587","28267695","112/07/12","112/07/14","宜蘭縣－五結,宜蘭縣－冬山 ","已依規定納入辦理節能減碳檢核 ","計畫提報核定階段納入辦理節能減碳檢核;規劃設計階段納入辦理節能減碳檢核 ",""]
["109","宜蘭縣政府 ","宜蘭縣政府文化局 ","文化部文化資產局 ","歷史建築「二結王公廟」修復規劃設計及臨時保護措施設計與保護措施工程監造 ","勞務","建築服務 ","1800000","1711000","112/06/29","112/07/21","宜蘭縣－五結 ","否","","非中央政府辦理新臺幣一億元以上之公共工程,整修工程、拆除工程、疏濬工程、結構補強工程 "]
["110","宜蘭縣政府 ","宜蘭縣政府消防局 ","無 ","宜蘭縣政府消防局（含災害應變中心）及宜蘭消防分隊辨公廳舍預定用地個案變更委託技術服務案 ","勞務","都市計劃及景觀建築服務 ","1450000","1450000","112/06/27","112/07/10","宜蘭縣－宜蘭 ","否","","非中央政府辦理新臺幣一億元以上之公共工程 "]
["111","宜蘭縣政府 ","宜蘭縣羅東鎮公所 ","教育部 ","宜蘭縣羅東鎮立幼兒園園舍新建工程委託辦理申請候選綠建築證書作業 ","勞務","建築服務 ","250000","250000","112/07/06","112/07/13","宜蘭縣－羅東 ","否","","非中央政府辦理新臺幣一億元以上之公共工程,規劃取得綠建築標章之建築工程 "]
["112","宜蘭縣政府 ","宜蘭縣羅東鎮公所 ","無 ","羅東鎮九號公園二期改善工程委託設計監造技術服務 ","勞務","工程服務 ","498000","463140","112/07/06","112/07/13","宜蘭縣－羅東 ","否","","非中央政府辦理新臺幣一億元以上之公共工程 "]
["113","宜蘭縣政府 ","宜蘭縣羅東鎮公所 ","衛生福利部 ","宜蘭縣羅東鎮托嬰暨托育資源中心(親子館)裝修工程委託規劃設計監造技術服務 ","勞務","建築服務 ","451600","429020","112/07/11","112/07/18","宜蘭縣－羅東 ","否","","非中央政府辦理新臺幣一億元以上之公共工程 "]
["114","宜蘭縣政府 ","宜蘭縣壯圍鄉公所 ","無 ","「壯圍鄉順和社區活動中心新建工程委託規劃設計監造技術服務」第1次變更設計新增項目 ","勞務","工程服務 ","74442","70063","112/06/17","112/07/04","宜蘭縣－壯圍 ","否","","非中央政府辦理新臺幣一億元以上之公共工程 "]
["115","宜蘭縣政府 ","宜蘭縣三星鄉公所 ","無 ","三星鄉112年公共設施工程統合委託設計監造技術服務-第一次後續擴充 ","勞務","工程服務 ","3300000","3300000","112/07/21","112/07/25","宜蘭縣－三星 ","否","","非中央政府辦理新臺幣一億元以上之公共工程 "]
["116","宜蘭縣政府 ","宜蘭縣三星鄉公所 ","經濟部水利署第一河川局 ","安平路五段及安農北路等路面損壞修復工程委託設計監造技術服務案 ","勞務","工程服務 ","650000","650000","112/07/07","112/07/10","宜蘭縣－三星 ","否","","非中央政府辦理新臺幣一億元以上之公共工程 "]
["117","宜蘭縣政府 ","宜蘭縣南澳鄉公所 ","國家發展委員會 ","宜蘭縣南澳鄉公所辦理112年度段木香菇巴萊體驗館（生態旅遊服務中心）工程委託設計監造技術服務採購案 ","勞務","工程服務 ","704174","704174","112/06/27","112/07/11","宜蘭縣－南澳 ","否","","非中央政府辦理新臺幣一億元以上之公共工程,整修工程、拆除工程、疏濬工程、結構補強工程 "]
["118","宜蘭縣政府 ","宜蘭縣宜蘭市中山國民小學 ","教育部體育署、宜蘭縣政府 ","宜蘭縣中山國小室外球場整修工程委託規劃、設計、監造服務採購案 ","勞務","工程服務 ","360000","360000","112/06/29","112/07/05","宜蘭縣－宜蘭 ","否","","整修工程、拆除工程、疏濬工程、結構補強工程 "]
["119","法官學院 ","法官學院 ","無 ","法官學院石材外牆安全檢查工作採購案 ","勞務","工程服務 ","488400","480000","112/07/12","112/07/12","臺北市－士林區 ","否","","災後緊急處理、搶修、搶險 "]
["120","法務部 ","法務部矯正署臺東監獄 ","法務部矯正署 ","靜思舍及男少年觀護所補辦使用執照改善工程委託監造技術服務 ","勞務","建築服務 ","490000","410000","112/07/21","112/07/27","臺東縣－臺東 ","否","","整修工程、拆除工程、疏濬工程、結構補強工程 "]
["121","花蓮縣政府 ","花蓮縣政府 ","無 ","花蓮縣112年農業災後復建與搶修險工程委託技術服務開口契約 ","勞務","工程服務 ","19950000","19950000","112/06/15","112/07/21","東部地區－全區 ","否","","災後緊急處理、搶修、搶險 "]
["122","花蓮縣政府 ","花蓮縣衛生局 ","無 ","花蓮縣衛生局建築物公共安全檢查改善工程委託設計監造案 ","勞務","工程服務 ","458033","458000","112/07/12","112/07/12","花蓮縣－花蓮 ","否","","整修工程、拆除工程、疏濬工程、結構補強工程 "]
["123","花蓮縣政府 ","花蓮縣鳳林鎮公所 ","無 ","112年度各項工程委託測設及監造開口契約 ","勞務","工程服務 ","4585000","4126500","112/07/03","112/07/11","花蓮縣－鳳林 ","否","","非中央政府辦理新臺幣一億元以上之公共工程 "]
["124","花蓮縣政府 ","花蓮縣新城鄉公所 ","無 ","新城鄉新辦公大樓設施改善工程委託規劃設計契約 ","勞務","建築服務 ","190000","188100","112/07/12","112/07/13","臺東縣－全區,花蓮縣－新城 ","否","","規劃取得綠建築標章之建築工程 "]
["125","金門縣政府 ","金門縣採購招標所 ","金門縣政府 ","112年度本所轄管自行車步道修繕工程監造服務案 ","勞務","綜合工程服務 ","250000","242500","112/07/20","112/07/28","金門縣－金寧,金門縣－金城 ","否","","整修工程、拆除工程、疏濬工程、結構補強工程 "]
["126","金門縣政府 ","金門縣金湖鎮金湖國民小學 ","無 ","金湖國小附設幼兒園臨時教學活動空間補領使用執照 ","勞務","建築服務 ","604000","600000","112/07/07","112/07/12","金門縣－金湖 ","否","","非中央政府辦理新臺幣一億元以上之公共工程,非受中央政府補助比率逾工程建造經費百分之五十且補助經費達新臺幣一億元以上之個案公共工程 "]
["127","南投縣政府 ","南投縣政府 ","內政部營建署 ","112年度加強綠建築推動計畫 ","勞務","建築服務 ","1250000","1250000","112/06/15","112/07/04","南投縣－全區 ","否","","非中央政府辦理新臺幣一億元以上之公共工程 "]
["128","南投縣政府 ","南投縣政府 ","原住民族委員會 "," 112年南投縣部落永續建設藍圖規劃委託技術服務案 ","勞務","工程服務 ","7120000","6930000","112/07/20","112/07/27","南投縣－信義 ","已依規定納入辦理節能減碳檢核 ","規劃設計階段納入辦理節能減碳檢核 ",""]
["129","南投縣政府 ","南投縣政府 ","教育部國民及學前教育署 ","「112年度南投市德興國小老舊校舍整建工程」委託規劃設計及監造服務 ","勞務","建築服務 ","7389862","7094268","112/07/11","112/07/13","南投縣－南投 ","否","","規劃取得綠建築標章之建築工程 "]
["130","南投縣政府 ","南投縣政府 ","教育部國民及學前教育署 ","「112年度育英國小設置學校社區共讀站工程」委託設計及監造服務 ","勞務","工程服務 ","102707","99000","112/07/11","112/07/12","南投縣－埔里 ","否","","非受中央政府補助比率逾工程建造經費百分之五十且補助經費達新臺幣一億元以上之個案公共工程,整修工程、拆除工程、疏濬工程、結構補強工程 "]
["131","南投縣政府 ","南投縣政府 ","教育部國民及學前教育署 ","「112年度延和國中設置學校社區共讀站工程」委託設計及監造服務 ","勞務","工程服務 ","106193","100000","112/07/04","112/07/06","南投縣－竹山 ","否","","非中央政府辦理新臺幣一億元以上之公共工程,非受中央政府補助比率逾工程建造經費百分之五十且補助經費達新臺幣一億元以上之個案公共工程 "]
["132","南投縣政府 ","南投縣政府 ","教育部國民及學前教育署 ","112年度名崗國小設置學校社區共讀站工程委託監造服務 ","勞務","工程服務 ","89459","85000","112/07/20","112/07/24","南投縣－南投 ","否","","非受中央政府補助比率逾工程建造經費百分之五十且補助經費達新臺幣一億元以上之個案公共工程 "]
["133","南投縣政府 ","南投縣政府 ","無 ","信義鄉東埔溫泉資源開發工程(111060411)委託設計監造技術服務 ","勞務","工程服務 ","2969140","2880066","112/06/29","112/07/03","南投縣－信義 ","否","","非中央政府辦理新臺幣一億元以上之公共工程,非受中央政府補助比率逾工程建造經費百分之五十且補助經費達新臺幣一億元以上之個案公共工程 "]
["134","南投縣政府 ","南投縣政府 ","無 ","建築物昇降設備安全檢查及機械停車設備安全檢查結果抽驗作業 ","勞務","綜合工程服務 ","399600","332000","112/06/30","112/07/04","南投縣－全區 ","否","","非中央政府辦理新臺幣一億元以上之公共工程 "]
["135","南投縣政府 ","南投縣政府 ","無 ","「112年度南投殯儀館修繕工程」委託規劃設計及監造服務 ","勞務","建築服務 ","813000","802431","112/07/20","112/07/25","南投縣－南投 ","否","","非中央政府辦理新臺幣一億元以上之公共工程,整修工程、拆除工程、疏濬工程、結構補強工程 "]
["136","南投縣政府 ","南投縣政府 ","無 ","112年度南投縣農路及村里聯絡道路技術服務案件開口契約擴充 ","勞務","工程服務 ","3040000","3040000","112/06/28","112/07/13","南投縣－南投,南投縣－中寮,南投縣－草屯,南投縣－埔里,南投縣－水里,南投縣－魚池,南投縣－竹山 ","否","","非中央政府辦理新臺幣一億元以上之公共工程 "]
["137","南投縣政府 ","南投縣政府 ","無 ","里山部落創生營造計畫規劃案 ","勞務","工程服務 ","1472000","1450000","112/06/17","112/07/10","南投縣－全區 ","否","","非受中央政府補助比率逾工程建造經費百分之五十且補助經費達新臺幣一億元以上之個案公共工程 "]
["138","南投縣政府 ","南投縣政府 ","經濟部中央地質調查所 ","南投縣110年度土壤液化調查與風險評估計畫委託技術服務 ","勞務","綜合工程服務 ","17732000","17732000","112/07/05","112/07/13","南投縣－全區 ","否","","非中央政府辦理新臺幣一億元以上之公共工程,非受中央政府補助比率逾工程建造經費百分之五十且補助經費達新臺幣一億元以上之個案公共工程 "]
["139","南投縣政府 ","南投縣家畜疾病防治所 ","無 ","南投縣親善動物育樂園區整體規劃案 ","勞務","工程服務 ","700000","693000","112/07/05","112/07/07","中部地區－全區 ","否","","非中央政府辦理新臺幣一億元以上之公共工程,非受中央政府補助比率逾工程建造經費百分之五十且補助經費達新臺幣一億元以上之個案公共工程 "]
["140","南投縣政府 ","南投縣政府文化局 ","無 ","南投縣立美術館可行性評估及規劃案 ","勞務","建築服務 ","2400000","2318000","112/07/11","112/07/18","南投縣－南投 ","否","","非中央政府辦理新臺幣一億元以上之公共工程,非受中央政府補助比率逾工程建造經費百分之五十且補助經費達新臺幣一億元以上之個案公共工程 "]
["141","南投縣政府 ","南投縣草屯鎮公所 ","內政部營建署 ","南投縣草屯鎮敦和國小校園周邊道路改善工程-委託設計及監造 ","勞務","工程服務 ","1246000","1246000","112/07/06","112/07/06","南投縣－草屯 ","否","","非中央政府辦理新臺幣一億元以上之公共工程,整修工程、拆除工程、疏濬工程、結構補強工程 "]
["142","南投縣政府 ","南投縣草屯鎮公所 ","內政部營建署 ","南投縣草屯鎮炎峰、草屯、虎山國小校園周邊道路改善工程-委託設計及監造 ","勞務","工程服務 ","1388000","1388000","112/07/06","112/07/06","南投縣－草屯 ","否","","非中央政府辦理新臺幣一億元以上之公共工程,整修工程、拆除工程、疏濬工程、結構補強工程 "]
["143","南投縣政府 ","南投縣草屯鎮公所 ","無 ","草屯鎮御富路、東山路、僑光街與中正路粉寮巷暨週邊巷道等路面修復工程-委託設計及監造 ","勞務","工程服務 ","741800","741800","112/07/13","112/07/13","南投縣－草屯 ","否","","非中央政府辦理新臺幣一億元以上之公共工程,整修工程、拆除工程、疏濬工程、結構補強工程 "]
["144","南投縣政府 ","南投縣竹山鎮公所 ","內政部營建署 ","112南投縣竹山鎮竹山國小校園周邊暨行車道路改善工程委託設計及監造 ","勞務","工程服務 ","1790351","1731850","112/07/11","112/07/14","中部地區－全區 ","否","","非中央政府辦理新臺幣一億元以上之公共工程 "]
["145","南投縣政府 ","南投縣集集鎮公所 ","無 ","南投縣集集鎮第三公墓興建殯儀館暨納骨塔興辦事業計畫及水土保計畫勞務委託專業技術服務案 ","勞務","工程服務 ","4600000","4500000","112/06/27","112/07/06","南投縣－全區 ","否","","非中央政府辦理新臺幣一億元以上之公共工程,非受中央政府補助比率逾工程建造經費百分之五十且補助經費達新臺幣一億元以上之個案公共工程 "]
["146","南投縣政府 ","南投縣魚池鄉公所 ","原住民族委員會 ","日月浮嶼文化島「日月浮嶼文化島展售與文化場域修繕建置」規劃設計監造案 ","勞務","建築服務 ","297600","297600","112/07/12","112/07/12","南投縣－魚池 ","否","","整修工程、拆除工程、疏濬工程、結構補強工程 "]
["147","屏東縣政府 ","屏東縣政府 ","內政部營建署 ","六塊厝水資源回收中心放流管線改道工程委託設計及監造技術服務 ","勞務","工程服務 ","3410880","3294600","112/07/11","112/07/13","屏東縣－屏東 ","否","","非中央政府辦理新臺幣一億元以上之公共工程,非受中央政府補助比率逾工程建造經費百分之五十且補助經費達新臺幣一億元以上之個案公共工程 "]
["148","屏東縣政府 ","屏東縣政府 ","客家委員會 ","萬巒成德京兆堂宋氏宗祠調查研究及修復再利用計畫 ","勞務","建築服務 ","1500000","1450000","112/07/18","112/07/20","屏東縣－萬巒 ","否","","整修工程、拆除工程、疏濬工程、結構補強工程 "]
["149","屏東縣政府 ","屏東縣政府 ","無 ","屏東縣公正國中社會福利服務場地共融活化委託規劃設計暨履約監造 ","勞務","工程服務 ","2797340","2769367","112/07/13","112/07/17","屏東縣－屏東 ","否","","非中央政府辦理新臺幣一億元以上之公共工程,非受中央政府補助比率逾工程建造經費百分之五十且補助經費達新臺幣一億元以上之個案公共工程 "]
["150","屏東縣政府 ","屏東縣政府 ","無 ","屏東縣立美術館歷史建築修復及再利用工程 ","工程","其他用途建築工程 ","237000000","236988888","112/07/25","112/07/26","屏東縣－屏東 ","否","","整修工程、拆除工程、疏濬工程、結構補強工程 "]
["151","屏東縣政府 ","屏東縣政府警察局 ","無 ","112年度交通號誌新設工程開口契約委託監造技術服務 ","勞務","工程服務 ","890006","890006","112/07/12","112/07/14","屏東縣－全區 ","否","","非受中央政府補助比率逾工程建造經費百分之五十且補助經費達新臺幣一億元以上之個案公共工程 "]
["152","屏東縣政府 ","屏東縣政府警察局 ","無 ","112年度交通號誌維修暨改善等相關工程開口契約委託監造技術服務 ","勞務","工程服務 ","616925","616925","112/07/12","112/07/14","屏東縣－全區 ","否","","非中央政府辦理新臺幣一億元以上之公共工程,整修工程、拆除工程、疏濬工程、結構補強工程 "]
["153","屏東縣政府 ","屏東縣政府警察局 ","無 ","變更屏東縣屏東市民生段73地號暨周邊土地都市計畫委託技術服務 ","勞務","都市計劃及景觀建築服務 ","1305906","1273600","112/06/16","112/07/10","屏東縣－屏東 ","否","","非中央政府辦理新臺幣一億元以上之公共工程,整修工程、拆除工程、疏濬工程、結構補強工程 "]
["154","屏東縣政府 ","屏東縣東港鎮公所 ","行政院環境保護署 ","屏東縣東港鎮鎮海公園公廁新建工程委託規劃設計監造技術服務 ","勞務","建築服務 ","435000","435000","112/07/12","112/07/17","屏東縣－東港 ","否","","非中央政府辦理新臺幣一億元以上之公共工程,非受中央政府補助比率逾工程建造經費百分之五十且補助經費達新臺幣一億元以上之個案公共工程 "]
["155","屏東縣政府 ","屏東縣恆春鎮公所 ","內政部營建署 ","112年度屏東縣恆春鎮西屏山古道改善委託設計監造技術服務 ","勞務","工程服務 ","825000","808500","112/06/20","112/07/04","屏東縣－恆春 ","否","","非中央政府辦理新臺幣一億元以上之公共工程 "]
["156","屏東縣政府 ","屏東縣恆春鎮公所 ","內政部營建署 ","屏東縣恆春鎮僑勇國小校園周邊道路及步道環境改善工程委託設計監造技術服務 ","勞務","工程服務 ","1418199","1347289","112/06/28","112/07/03","屏東縣－恆春 ","否","","非中央政府辦理新臺幣一億元以上之公共工程 "]
["157","屏東縣政府 ","屏東縣恆春鎮公所 ","屏東縣政府 ","屏東縣恆春鎮立圖書館耐震能力改善工程委託設計監造技術服務 ","勞務","建築服務 ","450408","439148","112/07/19","112/07/26","屏東縣－恆春 ","否","","非中央政府辦理新臺幣一億元以上之公共工程,整修工程、拆除工程、疏濬工程、結構補強工程 "]
["158","屏東縣政府 ","屏東縣萬丹鄉公所 ","教育部 ","「屏東縣萬丹鄉立圖書館耐震能力改善工程」委託設計監造技術服務 ","勞務","建築服務 ","808400","770800","112/06/29","112/07/03","屏東縣－萬丹 ","否","","整修工程、拆除工程、疏濬工程、結構補強工程 "]
["159","屏東縣政府 ","屏東縣麟洛鄉公所 ","無 ","112年麟洛鄉基礎道路及農路建設委託設計及監造(開口契約) ","勞務","工程服務 ","1450000","1450000","112/07/14","112/07/17","屏東縣－麟洛 ","否","","非中央政府辦理新臺幣一億元以上之公共工程,非受中央政府補助比率逾工程建造經費百分之五十且補助經費達新臺幣一億元以上之個案公共工程 "]
["160","屏東縣政府 ","屏東縣九如鄉公所 ","行政院農業委員會水土保持局 ","豐年路15巷社區及側溝農路改善工程委託設計監造技術服務採購案 ","勞務","工程服務 ","334362","311600","112/07/05","112/07/06","屏東縣－全區 ","否","","整修工程、拆除工程、疏濬工程、結構補強工程 "]
["161","屏東縣政府 ","屏東縣內埔鄉公所 ","客家委員會 ","內埔鄉立圖書館暨六堆300年紀念館新建工程委託專案管理(含監造)技術服務 ","勞務","工程服務 ","9880000","9680000","112/06/16","112/07/17","屏東縣－內埔 ","否","","非受中央政府補助比率逾工程建造經費百分之五十且補助經費達新臺幣一億元以上之個案公共工程 "]
["162","屏東縣政府 ","屏東縣枋寮鄉公所 ","行政院農業委員會水土保持局臺南分局 ","「112年度強化社區農路韌性基礎建設計畫」委託設計暨監造技術服務 ","勞務","工程服務 ","981679","934932","112/07/13","112/07/13","屏東縣－枋寮 ","否","","整修工程、拆除工程、疏濬工程、結構補強工程 "]
["163","屏東縣政府 ","屏東縣崁頂鄉公所 ","無 ","112年度崁頂鄉各村基礎建設工程委託設計、監造工作(開口契約) ","勞務","工程服務 ","1450000","1319500","112/07/13","112/07/17","南部地區－全區 ","否","","非受中央政府補助比率逾工程建造經費百分之五十且補助經費達新臺幣一億元以上之個案公共工程 "]
["164","屏東縣政府 ","屏東縣車城鄉公所 ","國防部海軍司令部 ","「溫泉村文化路巷道路面及排水溝改善」委託設計監造技術服務 ","勞務","工程服務 ","266584","266584","112/07/25","112/07/26","屏東縣－車城 ","否","","整修工程、拆除工程、疏濬工程、結構補強工程 "]
["165","屏東縣政府 ","屏東縣車城鄉公所 ","國防部海軍司令部 ","「保力村小門仔區域排水工程」委託設計監造技術服務 ","勞務","工程服務 ","221000","210476","112/07/12","112/07/13","屏東縣－車城 ","否","","整修工程、拆除工程、疏濬工程、結構補強工程 "]
["166","屏東縣政府 ","屏東縣車城鄉公所 ","國防部陸軍司令部 ","「海口公墓區周邊及老人會活動中心整修工程」委託設計監造技術服務 ","勞務","工程服務 ","405139","385847","112/07/12","112/07/13","屏東縣－車城 ","否","","整修工程、拆除工程、疏濬工程、結構補強工程 "]
["167","屏東縣政府 ","屏東縣枋山鄉公所 ","無 ","112年度變更「枋山鄉楓港地區遊憩設施建設計畫」興辦事業計畫案 ","勞務","都市計劃及景觀建築服務 ","900000","880000","112/07/19","112/07/20","南部地區－全區 ","否","","非中央政府辦理新臺幣一億元以上之公共工程,非受中央政府補助比率逾工程建造經費百分之五十且補助經費達新臺幣一億元以上之個案公共工程 "]
["168","屏東縣政府 ","屏東縣泰武鄉公所 ","原住民族委員會 ","泰武鄉武潭傳統祭儀場地改善工程委託測設監造 ","勞務","工程服務 ","167185","125389","112/07/25","112/07/26","屏東縣－泰武 ","否","","整修工程、拆除工程、疏濬工程、結構補強工程 "]
["169","屏東縣政府 ","屏東縣立潮州國民中學 ","屏東縣政府 ","屏東縣立潮州國民中學半戶外球場修繕工程委託規劃設計監造服務採購案 ","勞務","建築服務 ","285078","285078","112/07/10","112/07/12","屏東縣－潮州 ","否","","整修工程、拆除工程、疏濬工程、結構補強工程 "]
["170","屏東縣政府 ","屏東縣枋寮鄉僑德國民小學 ","屏東縣政府 ","113年全民運賽會場館整建可行性評估工作委託技術服務 ","勞務","工程服務 ","2520000","2500000","112/07/20","112/07/25","屏東縣－枋寮 ","否","","非中央政府辦理新臺幣一億元以上之公共工程 "]
["171","屏東縣政府 ","屏東縣三地門鄉賽嘉國民小學 ","教育部國民及學前教育署 ","賽嘉國民小學設置學校社區共讀站工程委託設計暨履約監造技術服務 ","勞務","工程服務 ","159771","157000","112/05/26","112/07/25","屏東縣－三地門 ","否","","非中央政府辦理新臺幣一億元以上之公共工程 "]
["172","苗栗縣政府 ","苗栗縣政府 ","內政部營建署 ","112年苗栗縣三義鄉勝興車站周邊鐵路輕旅空間改善計畫委託規劃、設計及監造技術服務案 ","勞務","都市計劃及景觀建築服務 ","823330","810980","112/07/26","112/07/26","苗栗縣－全區 ","否","","非中央政府辦理新臺幣一億元以上之公共工程 "]
["173","苗栗縣政府 ","苗栗縣政府 ","內政部營建署 ","「112年度苗栗縣政府環境景觀總顧問計畫」委託專業服務案 ","勞務","都市計劃及景觀建築服務 ","3900000","3800700","112/07/20","112/07/21","全部地區－全區 ","否","","非中央政府辦理新臺幣一億元以上之公共工程,非受中央政府補助比率逾工程建造經費百分之五十且補助經費達新臺幣一億元以上之個案公共工程 "]
["174","苗栗縣政府 ","苗栗縣政府 ","交通部 ","「140線2K+870~5K+470道路拓寬工程」委託規劃設計監造技術服務 ","勞務","工程服務 ","17149246","16806261","112/07/05","112/07/07","全部地區－全區 ","否","","整修工程、拆除工程、疏濬工程、結構補強工程 "]
["175","苗栗縣政府 ","苗栗縣政府 ","交通部公路總局 ","通霄鎮拱天宮南側聯絡道路新建工程用地取得及委託設計監造技術服務工作 ","勞務","工程服務 ","26982976","26333402","112/07/03","112/07/05","全部地區－全區 ","否","","非中央政府辦理新臺幣一億元以上之公共工程 "]
["176","苗栗縣政府 ","苗栗縣政府 ","交通部公路總局 ","西湖溪河堤共構4期(延伸至台13線)可行性研究計畫委託技術服務 ","勞務","工程服務 ","8120000","7925000","112/07/19","112/07/21","全部地區－全區 ","否","","非中央政府辦理新臺幣一億元以上之公共工程,非受中央政府補助比率逾工程建造經費百分之五十且補助經費達新臺幣一億元以上之個案公共工程 "]
["177","苗栗縣政府 ","苗栗縣政府 ","無 ","苗栗縣竹南鎮全民運動館興建工程 ","工程","健身用建築工程 ","194009447","194009447","112/07/19","112/07/21","全部地區－全區 ","否","","規劃取得綠建築標章之建築工程 "]
["178","苗栗縣政府 ","苗栗縣政府 ","無 ","苗栗縣立照南國中(文中七分校)新建教學大樓委託規劃設計(後續擴充監造)技術服務工作 ","勞務","工程服務 ","4213488","4136218","112/07/05","112/07/07","全部地區－全區 ","否","","規劃取得綠建築標章之建築工程 "]
["179","苗栗縣政府 ","苗栗縣政府 ","無 ","苗栗縣「前瞻基礎建設計畫-水環境建設-無自來水地區供水改善計畫第四期」-「112年度原住民族地區簡易自來水系統營運計畫」 ","勞務","工程服務 ","2693000","2610000","112/07/05","112/07/07","全部地區－全區 ","否","","非受中央政府補助比率逾工程建造經費百分之五十且補助經費達新臺幣一億元以上之個案公共工程 "]
["180","苗栗縣政府 ","苗栗縣政府 ","無 ","112年度原住民族部落特色道路改善計畫委託規劃設計監造（開口契約）後續擴充 ","勞務","工程服務 ","3618583","3618583","112/07/26","112/07/27","全部地區－全區 ","否","","非受中央政府補助比率逾工程建造經費百分之五十且補助經費達新臺幣一億元以上之個案公共工程 "]
["181","苗栗縣政府 ","苗栗縣政府環境保護局 ","無 ","苗栗縣政府環境保護局行政大樓公共藝術設置計畫 ","勞務","都市計劃及景觀建築服務 ","2255000","2255000","112/07/19","112/07/25","苗栗縣－後龍 ","否","","非受中央政府補助比率逾工程建造經費百分之五十且補助經費達新臺幣一億元以上之個案公共工程 "]
["182","苗栗縣政府 ","苗栗縣苗栗市公所 ","無 ","「苗栗市高架橋商場改善工程」委託設計及監造技術服務案 ","勞務","建築服務 ","555269","533058","112/06/30","112/07/03","苗栗縣－苗栗 ","否","","非中央政府辦理新臺幣一億元以上之公共工程 "]
["183","苗栗縣政府 ","苗栗縣苑裡鎮公所 ","苗栗縣政府 ","112年度苑裡鎮鄉道養護工程委託規劃設計暨監造技術服務 ","勞務","工程服務 ","158579","150650","112/07/18","112/07/19","苗栗縣－苑裡 ","否","","非中央政府辦理新臺幣一億元以上之公共工程,非受中央政府補助比率逾工程建造經費百分之五十且補助經費達新臺幣一億元以上之個案公共工程,災後緊急處理、搶修、搶險,災後原地復建 "]
["184","苗栗縣政府 ","苗栗縣竹南鎮公所 ","無 ","苗栗縣竹南鎮苗1線3K+030~3K+730、苗2線0K+000~0K+450及0K+520~2K+670部分路面改善工程委託設計監造技術服務 ","勞務","工程服務 ","1863550","1789008","112/07/04","112/07/05","苗栗縣－竹南 ","否","","非中央政府辦理新臺幣一億元以上之公共工程 "]
["185","苗栗縣政府 ","苗栗縣竹南鎮公所 ","無 ","竹南鎮公用路燈汰換工程委託設計監造技術服務 ","勞務","工程服務 ","870461","835643","112/07/05","112/07/05","苗栗縣－竹南 ","否","","非中央政府辦理新臺幣一億元以上之公共工程,整修工程、拆除工程、疏濬工程、結構補強工程 "]
["186","苗栗縣政府 ","苗栗縣竹南鎮公所 ","無 ","苗栗縣竹南鎮中興商工通學暨周邊路口安全改善計畫委託設計監造技術服務 ","勞務","工程服務 ","1563377","1500842","112/07/20","112/07/21","苗栗縣－竹南 ","否","","非中央政府辦理新臺幣一億元以上之公共工程 "]
["187","苗栗縣政府 ","苗栗縣後龍鎮公所 ","行政院公共工程委員會 ","後龍鎮南港里6鄰農路災後復建工程委託設計監造案 ","勞務","工程服務 ","246479","234742","112/07/04","112/07/04","苗栗縣－後龍 ","否","","非中央政府辦理新臺幣一億元以上之公共工程 "]
["188","苗栗縣政府 ","苗栗縣頭屋鄉公所 ","無 ","112年頭屋鄉災害復建工程及其他公共工程開口契約委託設計、監造第一次後續擴充變更契約 ","勞務","工程服務 ","990000","990000","112/07/06","112/07/18","苗栗縣－頭屋 ","否","","非中央政府辦理新臺幣一億元以上之公共工程 "]
["189","苗栗縣政府 ","苗栗縣三義鄉公所 ","行政院環境保護署 ","三義鄉雙潭遊客中心廁所改建工程委託設計技術服務案 ","勞務","工程服務 ","176235","167423","112/07/12","112/07/14","苗栗縣－三義 ","否","","非中央政府辦理新臺幣一億元以上之公共工程,非受中央政府補助比率逾工程建造經費百分之五十且補助經費達新臺幣一億元以上之個案公共工程 "]
["190","苗栗縣政府 ","苗栗縣三義鄉公所 ","經濟部水利署中區水資源局 ","112年度鯉魚潭水庫營運及清淤公益支出工程委託設計監造案 ","勞務","工程服務 ","360013","321212","112/06/21","112/07/03","苗栗縣－三義 ","否","","非中央政府辦理新臺幣一億元以上之公共工程,非受中央政府補助比率逾工程建造經費百分之五十且補助經費達新臺幣一億元以上之個案公共工程 "]
["191","苗栗縣政府 ","苗栗縣三義鄉公所 ","經濟部水利署第三河川局 ","112年第三河川局全鄉公益支出工程委託設計監造案 ","勞務","工程服務 ","386408","367088","112/07/11","112/07/12","苗栗縣－三義 ","否","","非中央政府辦理新臺幣一億元以上之公共工程,非受中央政府補助比率逾工程建造經費百分之五十且補助經費達新臺幣一億元以上之個案公共工程 "]
["192","苗栗縣政府 ","苗栗縣造橋鄉公所 ","教育部 ","苗栗縣造橋鄉立圖書館耐震補強工程委託設計監造技術服務工作 ","勞務","綜合工程服務 ","302350","296303","112/07/18","112/07/24","苗栗縣－造橋 ","否","","非中央政府辦理新臺幣一億元以上之公共工程 "]
["193","苗栗縣政府 ","苗栗縣三灣鄉公所 ","無 ","112年度辦公廳舍周邊設施及環境改善工程委託設計、監造案 ","勞務","工程服務 ","1124138","1067931","112/07/05","112/07/05","苗栗縣－三灣 ","否","","非中央政府辦理新臺幣一億元以上之公共工程 "]
["194","苗栗縣政府 ","苗栗縣三灣鄉公所 ","無 ","112年度三灣鄉道路修護改善工程委託設計、監造服務 ","勞務","工程服務 ","176768","159091","112/07/26","112/07/26","苗栗縣－三灣 ","否","","非中央政府辦理新臺幣一億元以上之公共工程,非受中央政府補助比率逾工程建造經費百分之五十且補助經費達新臺幣一億元以上之個案公共工程,整修工程、拆除工程、疏濬工程、結構補強工程 "]
["195","苗栗縣政府 ","苗栗縣獅潭鄉公所 ","無 ","112年度獅潭鄉百壽村圳頭道路及百壽道路改善工程(委託設計及監造) ","勞務","工程服務 ","249780","244784","112/07/11","112/07/11","苗栗縣－獅潭 ","否","","非中央政府辦理新臺幣一億元以上之公共工程 "]
["196","苗栗縣政府 ","苗栗縣泰安鄉公所 ","苗栗縣政府 ","112年度泰安鄉鄉道養護計畫-側溝清淤及路容整理 ","勞務","工程服務 ","800000","760000","112/06/28","112/07/03","苗栗縣－泰安 ","否","","整修工程、拆除工程、疏濬工程、結構補強工程 "]
["197","苗栗縣政府 ","苗栗縣立建國國民中學 ","教育部國民及學前教育署、苗栗縣政府 ","112-113年度校園社區化改造計畫-設置學校社區共讀站技術服務採購案 ","勞務","建築服務 ","264059","264059","112/07/11","112/07/13","中部地區－全區 ","否","","非中央政府辦理新臺幣一億元以上之公共工程,非受中央政府補助比率逾工程建造經費百分之五十且補助經費達新臺幣一億元以上之個案公共工程 "]
["198","苗栗縣政府 ","苗栗縣頭份市六合國民小學 ","苗栗縣政府 ","六合國小112年度增班安置計畫委託設計監造技術服務 ","勞務","工程服務 ","260479","259177","112/07/27","112/07/27","苗栗縣－頭份 ","否","","非中央政府辦理新臺幣一億元以上之公共工程,非受中央政府補助比率逾工程建造經費百分之五十且補助經費達新臺幣一億元以上之個案公共工程 "]
["199","苗栗縣政府 ","苗栗縣頭份市蟠桃國民小學 ","苗栗縣政府 ","苗栗縣蟠桃國小新建活動中心工程公共藝術設置計畫 ","勞務","都市計劃及景觀建築服務 ","663350","663350","112/07/26","112/07/28","苗栗縣－全區 ","否","","非中央政府辦理新臺幣一億元以上之公共工程,非受中央政府補助比率逾工程建造經費百分之五十且補助經費達新臺幣一億元以上之個案公共工程 "]
["200","桃園市政府 ","桃園市立八德國民中學 ","無 ","活動中心改善工程委託規劃設計監造技術服務 ","勞務","工程服務 ","252690","252690","112/07/10","112/07/17","桃園市－八德區 ","否","","非中央政府辦理新臺幣一億元以上之公共工程,非受中央政府補助比率逾工程建造經費百分之五十且補助經費達新臺幣一億元以上之個案公共工程 "]
["201","桃園市政府 ","桃園市桃園區中山國民小學 ","桃園市政府教育局 ","無障礙昇降梯增設工程-規劃設計及監造勞務採購 ","勞務","建築服務 ","519865","519865","112/06/05","112/07/21","桃園市－桃園區 ","否","","非中央政府辦理新臺幣一億元以上之公共工程 "]
["202","桃園市政府 ","桃園市桃園區文山國民小學 ","桃園市政府教育局 ","活動中心冷氣額外項安裝勞務採購 ","勞務","工程服務 ","467612","467612","112/07/13","112/07/14","桃園市－桃園區 ","否","","非受中央政府補助比率逾工程建造經費百分之五十且補助經費達新臺幣一億元以上之個案公共工程 "]
["203","桃園市政府 ","桃園市平鎮區宋屋國民小學 ","桃園市政府教育局 ","112年度改善無障礙校園環境(東棟校舍新建無障礙電梯)工程委託技術服務採購案 ","勞務","工程服務 ","326169","322377","112/07/21","112/07/24","桃園市－全區 ","否","","非中央政府辦理新臺幣一億元以上之公共工程 "]
["204","桃園市政府 ","桃園市平鎮區東安國民小學 ","桃園市政府 ","地下室配電盤遷移工程─委託規劃設計監造服務 ","勞務","工程服務 ","174110","174110","112/06/16","112/07/11","桃園市－平鎮區 ","否","","整修工程、拆除工程、疏濬工程、結構補強工程 "]
["205","桃園市政府 ","桃園市觀音區新坡國民小學 ","教育部 ","北棟老舊校舍整建計畫工程委託規劃設計監造服務 ","勞務","工程服務 ","9508206","9293473","112/07/12","112/07/14","桃園市－觀音區 ","否","","規劃取得綠建築標章之建築工程 "]
["206","桃園市政府 ","桃園市觀音區草漯國民小學 ","無 ","增班調整視聽教室隔間裝修工程規劃設計監造 ","勞務","工程服務 ","234937","230000","112/07/28","112/07/31","桃園市－觀音區 ","否","","整修工程、拆除工程、疏濬工程、結構補強工程 "]
["207","桃園市政府 ","桃園市政府工務局 ","教育部國民及學前教育署 ","桃園市桃園區龍山國民小學春風樓校舍拆除整建工程 ","工程","其他用途建築工程 ","211894292","211880000","112/07/12","112/07/18","桃園市－桃園區 ","否","","規劃取得綠建築標章之建築工程 "]
["208","桃園市政府 ","桃園市政府工務局 ","教育部體育署 ","桃園市龍岡全民運動館新建工程 ","工程","其他用途建築工程 ","390764089","390700000","112/06/29","112/07/11","桃園市－中壢區 ","否","","規劃取得綠建築標章之建築工程 "]
["209","桃園市政府 ","桃園市政府工務局 ","無 ","「桃園市特定工廠專用區專案通盤檢討案」委託技術服務案 ","勞務","都市計劃及景觀建築服務 ","5000000","4950000","112/06/29","112/07/07","桃園市－全區 ","否","","非中央政府辦理新臺幣一億元以上之公共工程 "]
["210","桃園市政府 ","桃園市政府工務局 ","無 ","桃園市蘆竹區A10基地及大興段新建社會住宅統包工程 ","工程","多棟式住宅建築工程 ","3663960000","3663960000","112/07/14","112/07/18","桃園市－蘆竹區 ","否","","非受中央政府補助比率逾工程建造經費百分之五十且補助經費達新臺幣一億元以上之個案公共工程 "]
["211","桃園市政府 ","桃園市政府工務局 ","無 ","桃園市政府新建工程處結構暨外掛式構造審查委託專業服務(開口契約) ","勞務","建築服務 ","27347500","27347500","112/07/19","112/07/31","桃園市－全區 ","否","","非受中央政府補助比率逾工程建造經費百分之五十且補助經費達新臺幣一億元以上之個案公共工程 "]
["212","桃園市政府 ","桃園市政府工務局 ","無 ","桃園市舊市區空間再生策略研究先期規劃案 ","勞務","都市計劃及景觀建築服務 ","17000000","16660000","112/07/10","112/07/13","桃園市－中壢區,桃園市－桃園區 ","否","","非受中央政府補助比率逾工程建造經費百分之五十且補助經費達新臺幣一億元以上之個案公共工程 "]
["213","桃園市政府 ","桃園市政府工務局 ","無 ","變更縱貫公路桃園內壢間都市計畫（貿聯倉儲及周邊土地整體開發工程先期計畫）案(略) ","勞務","都市計劃及景觀建築服務 ","5000000","4950000","112/07/26","112/07/28","桃園市－全區 ","否","","非受中央政府補助比率逾工程建造經費百分之五十且補助經費達新臺幣一億元以上之個案公共工程 "]
["214","桃園市政府 ","桃園市政府新建工程處 ","無 ","桃園市大湳森林公園區段徵收開發工程委託規劃設計及監造技術服務 ","勞務","工程服務 ","17145478","17012806","112/06/20","112/07/18","桃園市－八德區 ","否","","非受中央政府補助比率逾工程建造經費百分之五十且補助經費達新臺幣一億元以上之個案公共工程 "]
["215","桃園市政府 ","桃園市政府環境清潔稽查大隊 ","無 ","桃園市區域型資源回收貯存場興建計畫簡易水土保持申報委託技術服務(開口契約）-第1次契約變更 ","勞務","工程服務 ","560000","560000","112/07/06","112/07/11","桃園市－蘆竹區 ","否","","整修工程、拆除工程、疏濬工程、結構補強工程 "]
["216","桃園市政府 ","桃園市政府水務局 ","無 ","桃園市光華坑排水支線、羊稠坑支線、甘蔗園支線及林頭店小溝排水幹線治理規劃及治理計畫 ","勞務","工程服務 ","19370000","19370000","112/07/07","112/07/10","桃園市－桃園區,桃園市－龜山區,桃園市－蘆竹區 ","否","","非中央政府辦理新臺幣一億元以上之公共工程 "]
["217","桃園市政府 ","桃園市政府水務局 ","無 ","老街溪右岸斷面34至斷面41護岸新建工程 ","工程","水道、海港、水壩及其他水利工程 ","253402973","237150000","112/07/21","112/07/24","桃園市－中壢區 ","已依規定納入辦理節能減碳檢核 ","規劃設計階段納入辦理節能減碳檢核 ",""]
["218","桃園市政府 ","桃園市政府動物保護處 ","無 ","桃園市市區動物認養中心暨展示空間活化整修（第二期）統包工程委託監造案 ","勞務","建築服務 ","750000","750000","112/06/28","112/07/07","桃園市－桃園區 ","否","","整修工程、拆除工程、疏濬工程、結構補強工程 "]
["219","桃園市政府 ","桃園市政府都市發展局 ","無 ","「臺鐵林口線路廊第四期活化工程委託設計監造案」委託設計監造契約變更議價案 ","勞務","都市計劃及景觀建築服務 ","1317865","1230000","112/07/04","112/07/06","桃園市－蘆竹區 ","否","","整修工程、拆除工程、疏濬工程、結構補強工程 "]
["220","桃園市政府 ","桃園市政府都市發展局 ","無 ","112年度桃園市環境景觀總顧問服務計畫 ","勞務","都市計劃及景觀建築服務 ","3000000","3000000","112/06/29","112/07/04","桃園市－全區 ","否","","非受中央政府補助比率逾工程建造經費百分之五十且補助經費達新臺幣一億元以上之個案公共工程 "]
["221","桃園市政府 ","桃園市政府住宅發展處 ","無 ","112年度桃園市自主更新輔導團委託專業服務案 ","勞務","都市計劃及景觀建築服務 ","1000000","1000000","112/07/13","112/07/26","桃園市－全區 ","否","","非中央政府辦理新臺幣一億元以上之公共工程,非受中央政府補助比率逾工程建造經費百分之五十且補助經費達新臺幣一億元以上之個案公共工程 "]
["222","桃園市政府 ","桃園市政府捷運工程局 ","無 ","桃園捷運綠線G07車站工程結構複審勞務採購 ","勞務","工程服務 ","325000","295000","112/07/10","112/07/13","桃園市－全區 ","否","","非受中央政府補助比率逾工程建造經費百分之五十且補助經費達新臺幣一億元以上之個案公共工程,規劃取得綠建築標章之建築工程 "]
["223","桃園市政府 ","桃園市中壢區公所 ","無 ","中壢區112下半年~113年度公共工程委託技術服務(開口契約)  ","勞務","工程服務 ","11000000","11000000","112/07/07","112/07/10","桃園市－中壢區 ","否","","整修工程、拆除工程、疏濬工程、結構補強工程 "]
["224","桃園市政府 ","桃園市平鎮區公所 ","無 "," 平鎮區66快速道路橋下空間活化工程(市民活動中心)委託設計監造技術服務 ","勞務","建築服務 ","3200000","3200000","112/07/28","112/07/31","桃園市－平鎮區 ","否","","非中央政府辦理新臺幣一億元以上之公共工程 "]
["225","桃園市政府 ","桃園市平鎮區公所 ","無 "," 平鎮區66快速道路橋下空間活化工程(極限運動場)委託設計監造技術服務 ","勞務","工程服務 ","1950000","1898000","112/07/28","112/07/31","桃園市－平鎮區 ","否","","非中央政府辦理新臺幣一億元以上之公共工程 "]
["226","桃園市政府 ","桃園市楊梅區公所 ","無 ","楊梅區公園綠地兒童遊戲場改善(開口合約)委託監造服務 ","勞務","工程服務 ","2186945","2162000","112/06/26","112/07/04","桃園市－楊梅區 ","否","","整修工程、拆除工程、疏濬工程、結構補強工程 "]
["227","桃園市政府 ","桃園市大溪區公所 ","無 ","大溪區瑞源市民活動中心新建工程委託技術服務(變更契約追加服務費) ","勞務","建築服務 ","651695","475000","112/07/20","112/07/24","桃園市－大溪區 ","否","","非中央政府辦理新臺幣一億元以上之公共工程,非受中央政府補助比率逾工程建造經費百分之五十且補助經費達新臺幣一億元以上之個案公共工程 "]
["228","桃園市政府 ","桃園市龜山區公所 ","無 ","桃園市龜山棒球場改善及周邊相關設施興建工程委託設計及監造技術服務-第1次契約變更  ","勞務","工程服務 ","300000","285600","112/07/06","112/07/11","桃園市－龜山區 ","否","","非受中央政府補助比率逾工程建造經費百分之五十且補助經費達新臺幣一億元以上之個案公共工程 "]
["229","桃園市政府 ","桃園市龍潭區公所 ","無 ","桃園市龍潭區三林市民活動中心耐震補強工程委外設計監造案 ","勞務","工程服務 ","509083","509083","112/07/05","112/07/06","桃園市－龍潭區 ","否","","非受中央政府補助比率逾工程建造經費百分之五十且補助經費達新臺幣一億元以上之個案公共工程 "]
["230","桃園市政府 ","桃園市觀音區公所 ","桃園市政府 ","桃園市觀音區藍埔市民活動中心新建工程委託規劃設計及監造技術服務勞務案 ","勞務","建築服務 ","2420000","2400000","112/07/10","112/07/11","桃園市－觀音區 ","否","","整修工程、拆除工程、疏濬工程、結構補強工程 "]
["231","財政部 ","臺灣菸酒股份有限公司 ","無 ","「南投酒廠威士忌生產工場裝修及機電空調工程」委託規劃設計及監造技術服務案 ","勞務","工程服務 ","4735000","4680000","112/07/19","112/07/27","臺北市－中正區,南投縣－南投 ","否","","非受中央政府補助比率逾工程建造經費百分之五十且補助經費達新臺幣一億元以上之個案公共工程 "]
["232","財政部 ","臺灣菸酒股份有限公司宜蘭酒廠 ","無 ","宜蘭酒廠廠房屋頂整修委託規畫設計及監造技術服務 ","勞務","工程服務 ","240000","208000","112/07/18","112/07/20","宜蘭縣－宜蘭 ","否","","非中央政府辦理新臺幣一億元以上之公共工程,整修工程、拆除工程、疏濬工程、結構補強工程 "]
["233","財政部 ","臺灣銀行股份有限公司 ","無 ","高屏地區區域性服務設施新建計畫可行性評估 ","勞務","建築服務 ","480000","480000","112/07/17","112/07/25","高雄市－前金區 ","否","","非受中央政府補助比率逾工程建造經費百分之五十且補助經費達新臺幣一億元以上之個案公共工程 "]
["234","財政部 ","臺灣銀行股份有限公司 ","無 ","宜蘭分行戶外人行道舖面等改善工程委託規劃設計監造技術服務 ","勞務","建築服務 ","833394","833394","112/07/18","112/07/20","宜蘭縣－宜蘭 ","否","","整修工程、拆除工程、疏濬工程、結構補強工程 "]
["235","財政部 ","臺灣土地銀行股份有限公司 ","無 ","新竹分行行舍大樓結構耐震補強工程委託設計及監造 ","勞務","工程服務 ","455639","455000","112/07/11","112/07/13","新竹市－全區 ","否","","非中央政府辦理新臺幣一億元以上之公共工程 "]
["236","財政部 ","臺灣土地銀行股份有限公司 ","無 ","嘉義分行一樓營業廳整修工程委託設計及監造 ","勞務","工程服務 ","929000","915000","112/07/25","112/07/31","嘉義市－全區 ","否","","非受中央政府補助比率逾工程建造經費百分之五十且補助經費達新臺幣一億元以上之個案公共工程 "]
["237","財政部 ","臺灣土地銀行股份有限公司 ","無 ","澳洲布里斯本分行行舍裝修工程委託設計及監造 ","勞務","建築服務 ","1480000","1446984","112/07/10","112/07/13","其他－其他 ","否","","非受中央政府補助比率逾工程建造經費百分之五十且補助經費達新臺幣一億元以上之個案公共工程 "]
["238","高雄市政府 ","高雄市政府 ","無 ","國防部軍備局生產製造中心第205廠光復營區暨大樹北營區新建工程(光復營區)委託規劃設計技術服務（第二次變更服務） ","勞務","建築服務 ","31161028","31005402","112/07/11","112/07/18","高雄市－大樹區 ","已依規定納入辦理節能減碳檢核 ","規劃設計階段納入辦理節能減碳檢核 ",""]
["239","高雄市政府 ","高雄市殯葬管理處 ","無 ","「大社殯儀館擴充設置工程及旗山樹葬區可行性評估」委託技術服務勞務採購案 ","勞務","工程服務 ","310000","310000","112/06/30","112/07/03","高雄市－大社區,高雄市－旗山區 ","否","","非中央政府辦理新臺幣一億元以上之公共工程 "]
["240","高雄市政府 ","高雄市立橋頭國民中學 ","無 ","112年度游泳池整建維修規劃設計監造技術服務案 ","勞務","工程服務 ","360000","350000","112/07/07","112/07/11","高雄市－橋頭區 ","否","","非中央政府辦理新臺幣一億元以上之公共工程 "]
["241","高雄市政府 ","高雄市立燕巢國民中學 ","教育部國民及學前教育署 ","112年度體育館耐震補強工程委託規劃設計監造技術服務 ","勞務","工程服務 ","695525","695525","112/07/26","112/07/31","高雄市－燕巢區 ","否","","整修工程、拆除工程、疏濬工程、結構補強工程 "]
["242","高雄市政府 ","高雄市立巴楠花部落國民中小學 ","教育部國民及學前教育署 ","高雄市巴楠花部落小學改制國高中增建校舍工程委託規劃設計暨監造技術服務案－後續擴充監造案 ","勞務","建築服務 ","4155829","4151673","112/06/30","112/07/06","高雄市－全區 ","否","","規劃取得綠建築標章之建築工程 "]
["243","高雄市政府 ","高雄市苓雅區福康國民小學 ","內政部營建署 ","112福康國小校園周邊暨行車安全道路改善工程委托規劃設計監造技術服務 ","勞務","工程服務 ","1094930","1094930","112/07/20","112/07/21","高雄市－苓雅區 ","否","","非中央政府辦理新臺幣一億元以上之公共工程,非受中央政府補助比率逾工程建造經費百分之五十且補助經費達新臺幣一億元以上之個案公共工程,整修工程、拆除工程、疏濬工程、結構補強工程 "]
["244","高雄市政府 ","高雄市苓雅區福康國民小學 ","教育部國民及學前教育署 ","112福康國小運動操場及周邊設施整建工程委托規劃設計監造技術服務 ","勞務","工程服務 ","444902","444902","112/07/25","112/07/26","高雄市－苓雅區 ","否","","非中央政府辦理新臺幣一億元以上之公共工程,非受中央政府補助比率逾工程建造經費百分之五十且補助經費達新臺幣一億元以上之個案公共工程,整修工程、拆除工程、疏濬工程、結構補強工程 "]
["245","高雄市政府 ","高雄市前鎮區明正國民小學 ","教育部體育署、高雄市政府教育局 ","112年度修整建運動場地─體操訓練館新建工程委託規劃設計監造技術服務 ","勞務","建築服務 ","2126610","2126610","112/06/28","112/07/03","高雄市－前鎮區 ","否","","非受中央政府補助比率逾工程建造經費百分之五十且補助經費達新臺幣一億元以上之個案公共工程 "]
["246","高雄市政府 ","高雄市鳳山區五福國民小學 ","內政部 ","五福國小校園周邊暨行車安全道路改善工程委託規劃設計監造技術服務 ","勞務","工程服務 ","364932","360000","112/07/26","112/07/31","高雄市－鳳山區 ","否","","非中央政府辦理新臺幣一億元以上之公共工程,非受中央政府補助比率逾工程建造經費百分之五十且補助經費達新臺幣一億元以上之個案公共工程,整修工程、拆除工程、疏濬工程、結構補強工程 "]
["247","高雄市政府 ","高雄市政府工務局 ","無 ","高雄市112年度騎樓整修順平工程委託調查設計及監造技術服務 ","勞務","建築服務 ","1992600","1900000","112/06/06","112/07/05","高雄市－新興區,高雄市－三民區,高雄市－鳳山區 ","否","","非中央政府辦理新臺幣一億元以上之公共工程,非受中央政府補助比率逾工程建造經費百分之五十且補助經費達新臺幣一億元以上之個案公共工程 "]
["248","高雄市政府 ","高雄市政府工務局 ","無 ","「112年度高雄市道路挖掘、寬頻管道管理暨三維圖資系統等維護及擴充」委託監審案 ","勞務","綜合工程服務 ","760000","755000","112/07/20","112/07/27","高雄市－新興區 ","否","","非中央政府辦理新臺幣一億元以上之公共工程,非受中央政府補助比率逾工程建造經費百分之五十且補助經費達新臺幣一億元以上之個案公共工程 "]
["249","高雄市政府 ","高雄市政府工務局新建工程處 ","台灣中油股份有限公司 ","高雄市立林園高級中學圖資大樓新建工程 ","工程","教育用建築工程 ","162212343","162212343","112/07/24","112/07/27","高雄市－林園區 ","已依規定納入辦理節能減碳檢核 ","規劃設計階段納入辦理節能減碳檢核 ",""]
["250","高雄市政府 ","高雄市政府工務局公園處 ","無 ","112年度鳳山等七區公園土木設施改善及緊急搶修工程(開口契約)委託設計監造技術服務案 ","勞務","工程服務 ","1360000","1309000","112/06/29","112/07/06","高雄市－仁武區,高雄市－大社區,高雄市－鳳山區,高雄市－大寮區,高雄市－林園區,高雄市－鳥松區,高雄市－大樹區 ","否","","災後緊急處理、搶修、搶險 "]
["251","高雄市政府 ","高雄市政府水利局 ","無 ","「民間參與高雄市臨海污水處理廠暨放流水回收再利用BTO計畫」委託履約管理技術服務(第二期) ","勞務","綜合工程服務 ","32490000","32290000","112/07/18","112/07/20","高雄市－小港區 ","否","","非受中央政府補助比率逾工程建造經費百分之五十且補助經費達新臺幣一億元以上之個案公共工程 "]
["252","高雄市政府 ","高雄市政府交通局 ","無 ","高雄市苓雅區林德官土地公辦都市更新服務案 ","勞務","都市計劃及景觀建築服務 ","15000000","14800000","112/07/10","112/07/26","高雄市－苓雅區 ","否","","非中央政府辦理新臺幣一億元以上之公共工程 "]
["253","高雄市政府 ","高雄市政府文化局 ","無 ","高雄市歷史建築原高雄市議會修復工程規劃設計案 ","勞務","建築服務 ","4680000","4680000","112/07/13","112/07/20","高雄市－前金區 ","否","","非中央政府辦理新臺幣一億元以上之公共工程 "]
["254","高雄市政府 ","高雄市政府文化局 ","無 ","光榮街1號結構物整修工程委託規劃設計監造服務案 ","勞務","建築服務 ","872513","872513","112/06/07","112/07/14","高雄市－鹽埕區 ","否","","整修工程、拆除工程、疏濬工程、結構補強工程 "]
["255","高雄市政府 ","高雄市政府客家事務委員會 ","無 ","客語沉浸非營利幼兒園空間營造委託規劃設計暨監造勞務採購案第一次變更契約新增項目議價 ","勞務","工程服務 ","268937","268900","112/07/12","112/07/18","高雄市－三民區 ","否","","非中央政府辦理新臺幣一億元以上之公共工程,非受中央政府補助比率逾工程建造經費百分之五十且補助經費達新臺幣一億元以上之個案公共工程 "]
["256","高雄市政府 ","高雄市政府都市發展局 ","無 ","燕巢橫山共創基地活化利用規劃設計及監造 ","勞務","工程服務 ","2000000","1980000","112/07/13","112/07/14","高雄市－燕巢區 ","否","","非中央政府辦理新臺幣一億元以上之公共工程 "]
["257","高雄市政府 ","高雄市政府海洋局 ","行政院農業委員會漁業署 ","蚵子寮漁港航道口疏浚工程委託設計及監造服務 ","勞務","工程服務 ","695455","660682","112/06/29","112/07/04","高雄市－梓官區 ","否","","非中央政府辦理新臺幣一億元以上之公共工程 "]
["258","高雄市政府 ","高雄市政府海洋局 ","無 ","高雄港三號船渠遊艇碼頭整建工程(第一期)委託規劃設計及監造服務 ","勞務","工程服務 ","6090000","5907300","112/07/12","112/07/13","高雄市－鹽埕區 ","否","","非中央政府辦理新臺幣一億元以上之公共工程 "]
["259","高雄市政府 ","高雄市鼓山區公所 ","衛生福利部社會及家庭署 ","高雄市鼓山區中鼓山老人活動中心耐震補強工程委託規劃設計及監造技術服務 ","勞務","工程服務 ","261222","261222","112/06/30","112/07/05","高雄市－鼓山區 ","否","","整修工程、拆除工程、疏濬工程、結構補強工程 "]
["260","高雄市政府 ","高雄市燕巢區公所 ","無 ","112-115年度燕巢區工程委託設計監造(開口契約) ","勞務","工程服務 ","4400000","4350000","112/07/06","112/07/07","高雄市－燕巢區 ","否","","非中央政府辦理新臺幣一億元以上之公共工程 "]
["261","高雄市政府 ","高雄市梓官區公所 ","高雄市政府工務局養護工程處 ","112年度高雄市梓官區蚵寮公園綠美化維護工作 ","勞務","都市計劃及景觀建築服務 ","807694","792000","112/05/26","112/07/11","高雄市－梓官區 ","否","","非中央政府辦理新臺幣一億元以上之公共工程 "]
["262","高雄市政府 ","高雄市梓官區公所 ","無 ","112年度高雄市梓官區土木及水利工程委託專業設計監造技術服務（開口契約） ","勞務","工程服務 ","1497542","1449620","112/05/30","112/07/11","高雄市－梓官區 ","否","","非中央政府辦理新臺幣一億元以上之公共工程 "]
["263","國防部 ","國防部 ","無 ","三○機砲教訓場地整建工程專案管理及監造委託技術服務案 ","勞務","綜合工程服務 ","11764000","11764000","112/07/05","112/07/12","高雄市－鳳山區 ","否","","非中央政府辦理新臺幣一億元以上之公共工程 "]
["264","國防部 ","國防部軍備局生產製造中心 ","無 ","後棟單身宿舍屋頂防水暨外牆整建工程等3項委託監造服務案 ","勞務","建築服務 ","1305000","1305000","112/07/27","112/07/28","臺北市－南港區 ","否","","非中央政府辦理新臺幣一億元以上之公共工程,非受中央政府補助比率逾工程建造經費百分之五十且補助經費達新臺幣一億元以上之個案公共工程 "]
["265","國防部 ","國防部陸軍司令部 ","無 ","「113-114年度陸軍南部地區設施修繕維護工程」委託規劃設計及監造技術服務 ","勞務","綜合工程服務 ","4920000","4920000","112/07/11","112/07/20","南部地區－全區 ","否","","非中央政府辦理新臺幣一億元以上之公共工程 "]
["266","國防部 ","國防部陸軍司令部 ","無 ","戰場抗壓館新建工程先期規劃作業及專案管理監造委託技術服務 ","勞務","工程服務 ","6646687","6646687","112/07/06","112/07/13","臺中市－烏日區 ","否","","非中央政府辦理新臺幣一億元以上之公共工程 "]
["267","國防部 ","國防部陸軍司令部 ","無 ","戰場抗壓館新建工程先期規劃作業及專案管理監造委託技術服務 ","勞務","工程服務 ","6689029","6689029","112/07/06","112/07/13","雲林縣－古坑 ","否","","非中央政府辦理新臺幣一億元以上之公共工程 "]
["268","國防部 ","國防部陸軍司令部 ","無 ","大城北營區車庫新建工程委託規劃設計暨監造技術服務案 ","勞務","綜合工程服務 ","2469000","2460000","112/06/08","112/07/10","澎湖縣－全區 ","否","","非中央政府辦理新臺幣一億元以上之公共工程 "]
["269","國防部 ","國防部陸軍司令部 ","無 ","11.4KV 發電機同步並聯系統檢修 ","勞務","工程服務 ","732400","620000","112/07/18","112/07/20","北部地區－全區 ","否","","整修工程、拆除工程、疏濬工程、結構補強工程 "]
["270","國防部 ","陸軍金門防衛指揮部 ","無 ","中興崗營區新建工程委託設計暨監造服務案 ","勞務","工程服務 ","1511000","1511000","112/06/09","112/07/18","金門縣－全區 ","否","","非中央政府辦理新臺幣一億元以上之公共工程 "]
["271","國防部 ","國防部海軍司令部 ","無 ","海軍(中)南部單位設施整修工程委託設計技術服務共同供應契約 ","勞務","綜合工程服務 ","9900000","9900000","112/07/04","112/07/21","中部地區－全區,南部地區－全區,金門縣－全區 ","已依規定納入辦理節能減碳檢核 ","規劃設計階段納入辦理節能減碳檢核 ",""]
["272","國防部 ","國防醫學院 ","無 ","工程規劃設計及監造委託技術服務案 ","勞務","建築服務 ","6000000","6000000","112/05/24","112/07/12","臺北市－松山區 ","否","","非中央政府辦理新臺幣一億元以上之公共工程,非受中央政府補助比率逾工程建造經費百分之五十且補助經費達新臺幣一億元以上之個案公共工程,整修工程、拆除工程、疏濬工程、結構補強工程 "]
["273","國防部 ","國防部憲兵指揮部 ","無 ","堅實營區新建工程公共藝術設置 ","勞務","都市計劃及景觀建築服務 ","6330000","6330000","112/07/20","112/07/24","新北市－泰山區 ","否","","非中央政府辦理新臺幣一億元以上之公共工程 "]
["274","國軍退除役官兵輔導委員會 ","臺北榮民總醫院 ","無 ","立體停車場600KW及精神樓戶外貨櫃500KW之緊急發電機安裝委託設計監造技術服務 ","勞務","綜合工程服務 ","850000","817870","112/07/10","112/07/19","臺北市－北投區 ","否","","整修工程、拆除工程、疏濬工程、結構補強工程 "]
["275","國軍退除役官兵輔導委員會 ","臺北榮民總醫院 ","無 ","中正樓UPS線路安裝及門診區UPS線路安裝委託設計監造技術服務 ","勞務","綜合工程服務 ","1450000","1350000","112/07/10","112/07/17","臺北市－北投區 ","否","","整修工程、拆除工程、疏濬工程、結構補強工程 "]
["276","國軍退除役官兵輔導委員會 ","臺北榮民總醫院 ","無 ","口腔醫學部遷移二門診5樓整修工程委託規劃設計監造技術服務 ","勞務","建築服務 ","2854000","2854000","112/07/18","112/07/20","臺北市－北投區 ","否","","整修工程、拆除工程、疏濬工程、結構補強工程 "]
["277","國軍退除役官兵輔導委員會 ","臺中榮民總醫院 ","無 ","臺中榮民總醫院第三醫療大樓新建工程-第1次變更設計 ","工程","其他用途建築工程 ","208244277","208244277","112/06/16","112/07/05","臺中市－西屯區 ","否","","規劃取得綠建築標章之建築工程 "]
["278","國軍退除役官兵輔導委員會 ","臺中榮民總醫院嘉義分院 ","無 ","110年度嘉義分院洗腎室擴充工程委託規劃設計監造技術服務案-契約變更 ","勞務","建築服務 ","788500","775000","112/07/11","112/07/17","嘉義市－西區 ","否","","整修工程、拆除工程、疏濬工程、結構補強工程 "]
["279","國軍退除役官兵輔導委員會 ","高雄榮民總醫院 ","無 ","「醫療大樓及門診大樓建築物耐震補強工程」委託規劃設計及監造技術服務 ","勞務","建築服務 ","14785000","14785000","112/07/21","112/07/25","高雄市－左營區 ","否","","整修工程、拆除工程、疏濬工程、結構補強工程 "]
["280","國家科學及技術委員會 ","國家科學及技術委員會南部科學園區管理局 ","無 ","南部科學園區台南園區擴建土地開發工程設計監造工作委託技術服務案第一次契約變更 ","勞務","工程服務 ","6798204","6760000","112/07/13","112/07/17","臺南市－新市區 ","否","","非中央政府辦理新臺幣一億元以上之公共工程 "]
["281","國家發展委員會 ","國家發展委員會 ","無 ","寶慶大樓屋頂防水工程設計監造委託技術服務案 ","勞務","建築服務 ","600000","588000","112/07/20","112/07/27","臺北市－中正區 ","否","","非中央政府辦理新臺幣一億元以上之公共工程 "]
["282","基隆市政府 ","基隆市政府 ","內政部營建署 ","112年度基隆市社區規劃師(建築師)駐地輔導計畫 ","勞務","都市計劃及景觀建築服務 ","9000000","8980000","112/06/28","112/07/04","基隆市－全區 ","否","","非中央政府辦理新臺幣一億元以上之公共工程,非受中央政府補助比率逾工程建造經費百分之五十且補助經費達新臺幣一億元以上之個案公共工程 "]
["283","基隆市政府 ","基隆市政府 ","無 ","「設計與建築者之家」委託專業服務案 ","勞務","都市計劃及景觀建築服務 ","1200000","1200000","112/07/19","112/07/20","基隆市－全區 ","否","","非中央政府辦理新臺幣一億元以上之公共工程 "]
["284","基隆市政府 ","基隆市安樂區武崙國民小學 ","基隆市政府 ","舊校區專科教室大樓校舍耐震詳評委託技術服務 ","勞務","工程服務 ","306000","300000","112/07/27","112/07/31","基隆市－安樂區 ","否","","非中央政府辦理新臺幣一億元以上之公共工程,整修工程、拆除工程、疏濬工程、結構補強工程 "]
["285","基隆市政府 ","基隆市暖暖區碇內國民小學 ","基隆市政府 ","基隆市碇內國小112年度校園入口地坪及校門整修工程委託規劃設計監造案 ","勞務","工程服務 ","1084932","1084932","112/07/11","112/07/12","基隆市－暖暖區 ","否","","整修工程、拆除工程、疏濬工程、結構補強工程 "]
["286","基隆市政府 ","基隆市七堵區長興國民小學 ","基隆市政府 ","111年長興國小運動操場及周邊設施整建工程委託監造勞務採購第一次契約變更 ","勞務","建築服務 ","51722","51000","112/06/02","112/07/05","北部地區－全區 ","否","","非中央政府辦理新臺幣一億元以上之公共工程 "]
["287","教育部 ","國立臺灣科學教育館 ","教育部 ","士林189.9 新型態閱讀共享空間及國際友善交流場域土建工程 ","工程","其他裝修工程 ","184679905","184600000","112/06/16","112/07/13","臺北市－士林區 ","否","","整修工程、拆除工程、疏濬工程、結構補強工程 "]
["288","教育部 ","國立自然科學博物館 ","無 ","「112 年度中部海洋保育教育中心設計規劃與建置」委託監 造服務案 ","勞務","建築服務 ","229600","210000","112/07/06","112/07/13","臺中市－北區 ","否","","非中央政府辦理新臺幣一億元以上之公共工程 "]
["289","教育部 ","國立臺灣大學 ","無 ","國立臺灣大學教研實習大樓新建工程委託規劃設計監造技術服務第1次契約變更 ","勞務","建築服務 ","1800000","1720000","112/07/11","112/07/13","臺北市－大安區 ","否","","規劃取得綠建築標章之建築工程 "]
["290","教育部 ","國立臺灣大學 ","無 ","國立臺灣大學敬賢樓3、4樓室內裝修工程委託技術服務第一次契約變更 ","勞務","建築服務 ","290038","288000","112/07/11","112/07/14","臺北市－大安區 ","否","","整修工程、拆除工程、疏濬工程、結構補強工程 "]
["291","教育部 ","國立臺灣大學 ","無 ","管理學院一號館1樓教師休息室整修工程委託技術服務 ","勞務","建築服務 ","337000","330000","112/07/18","112/07/25","臺北市－大安區 ","否","","整修工程、拆除工程、疏濬工程、結構補強工程 "]
["292","教育部 ","國立臺灣大學 ","無 ","農業療癒與綠色健康環境研究中心整修工程委託技術服務 ","勞務","建築服務 ","172000","170000","112/07/06","112/07/10","臺北市－大安區 ","否","","非中央政府辦理新臺幣一億元以上之公共工程,整修工程、拆除工程、疏濬工程、結構補強工程 "]
["293","教育部 ","國立臺灣大學 ","無 ","112年度校園數位電錶監視系統維護保養採購案 ","勞務","工程服務 ","995254","963000","112/07/13","112/07/21","臺北市－大安區 ","否","","非中央政府辦理新臺幣一億元以上之公共工程,非受中央政府補助比率逾工程建造經費百分之五十且補助經費達新臺幣一億元以上之個案公共工程 "]
["294","教育部 ","國立臺灣大學醫學院附設醫院 ","無 ","健康大樓新建工程(裝修水電空調第3標) ","工程","其他用途建築工程 ","1171000000","1164000000","112/06/21","112/07/05","北部地區－全區 ","否","","非中央政府辦理新臺幣一億元以上之公共工程,非受中央政府補助比率逾工程建造經費百分之五十且補助經費達新臺幣一億元以上之個案公共工程,規劃取得綠建築標章之建築工程 "]
["295","教育部 ","國立臺灣大學醫學院附設醫院 ","無 ","「金山分院長照暨醫療綜合大樓新建工程委託專案管理(含規劃、基設及監造)技術服務」採購案 ","勞務","建築服務 ","44480000","41569536","112/07/21","112/07/31","北部地區－全區 ","否","","非受中央政府補助比率逾工程建造經費百分之五十且補助經費達新臺幣一億元以上之個案公共工程,規劃取得綠建築標章之建築工程 "]
["296","教育部 ","國立臺灣大學醫學院附設醫院雲林分院 ","無 ","112年度多年期委託建築師技術服務開口合約 ","勞務","建築服務 ","8385000","7000000","112/07/18","112/07/27","雲林縣－虎尾,雲林縣－斗六 ","否","","整修工程、拆除工程、疏濬工程、結構補強工程 "]
["297","教育部 ","國立清華大學 ","無 ","科技管理學院新館新建工程可行性評估委託技術服務案 ","勞務","工程服務 ","700000","650000","112/07/27","112/07/31","新竹市－東區 ","已依規定納入辦理節能減碳檢核 ","規劃設計階段納入辦理節能減碳檢核 ",""]
["298","教育部 ","國立中央大學 ","無 ","新創交流空間改善裝修工程委託設計監造 ","勞務","工程服務 ","384589","370000","112/06/29","112/07/13","桃園市－中壢區 ","否","","整修工程、拆除工程、疏濬工程、結構補強工程 "]
["299","教育部 ","國立中央大學 ","無 ","人行道改善工程委託設計監造服務 ","勞務","工程服務 ","812318","780000","112/07/14","112/07/20","桃園市－中壢區 ","否","","整修工程、拆除工程、疏濬工程、結構補強工程 "]
["300","教育部 ","國立中興大學 ","行政院 ","循環經濟研究學院、能源與材料專業學院與金屬研發中心等2件整建統包工程委託監造技術服務 ","勞務","建築服務 ","3512475","3512475","112/07/10","112/07/18","臺中市－南區,南投縣－南投 ","否","","整修工程、拆除工程、疏濬工程、結構補強工程 "]
["301","教育部 ","國立中山大學 ","無 ","校園火警自動警報設備改善工程監造技術服務 ","勞務","綜合工程服務 ","1280000","1220000","112/07/05","112/07/18","高雄市－鼓山區 ","否","","非中央政府辦理新臺幣一億元以上之公共工程,非受中央政府補助比率逾工程建造經費百分之五十且補助經費達新臺幣一億元以上之個案公共工程,整修工程、拆除工程、疏濬工程、結構補強工程 "]
["302","教育部 ","國立體育大學 ","無 ","行政大樓及科技大樓5台電梯汰換工程委託規劃設計暨監造技術服務 ","勞務","工程服務 ","740000","710000","112/06/27","112/07/03","桃園市－龜山區 ","否","","非中央政府辦理新臺幣一億元以上之公共工程 "]
["303","教育部 ","國立臺灣科技大學 ","文化部文化資產局 ","「市定古蹟總督府農業試驗所昆蟲部修復工程」委託設計(含因應計畫)技術服務 ","勞務","建築服務 ","2160000","2160000","112/07/03","112/07/06","臺北市－大安區 ","否","","整修工程、拆除工程、疏濬工程、結構補強工程 "]
["304","教育部 ","國立臺灣科技大學 ","無 ","工程二館屋頂抽風過濾設備遷移復原案 ","勞務","工程服務 ","2606365","2288400","112/07/14","112/07/24","臺北市－大安區 ","否","","非中央政府辦理新臺幣一億元以上之公共工程,非受中央政府補助比率逾工程建造經費百分之五十且補助經費達新臺幣一億元以上之個案公共工程,整修工程、拆除工程、疏濬工程、結構補強工程 "]
["305","教育部 ","國立臺北科技大學 ","無 ","東校區學生二舍外牆安全診斷檢測及申報勞務採購案 ","勞務","建築服務 ","600000","312900","112/07/05","112/07/05","臺北市－大安區 ","否","","非中央政府辦理新臺幣一億元以上之公共工程,非受中央政府補助比率逾工程建造經費百分之五十且補助經費達新臺幣一億元以上之個案公共工程 "]
["306","教育部 ","國立臺北大學 ","無 ","「112年民生校區第二出口景觀優化改善暨畸零地活化工程」委託規劃、設計及監造技術服務採購案 ","勞務","工程服務 ","1485000","1480500","112/06/21","112/07/11","臺北市－中山區 ","否","","非中央政府辦理新臺幣一億元以上之公共工程 "]
["307","教育部 ","國立臺北大學 ","無 ","112年度「三峽校區社會科學大樓、田徑場及宿舍棟消防設備改善工程委託設計監造技術服務」勞務採購案 ","勞務","工程服務 ","1156058","1109816","112/06/14","112/07/03","新北市－三峽區 ","否","","整修工程、拆除工程、疏濬工程、結構補強工程 "]
["308","教育部 ","國立科學工藝博物館 ","教育部 ","園區全方位優化細部設計及監造 ","勞務","工程服務 ","1705448","1553617","112/06/30","112/07/04","高雄市－三民區 ","否","","非中央政府辦理新臺幣一億元以上之公共工程,非受中央政府補助比率逾工程建造經費百分之五十且補助經費達新臺幣一億元以上之個案公共工程 "]
["309","教育部 ","國立鹿港高級中學 ","教育部體育署 ","112年度學校游泳池整建維修工程委託規劃設計監造技術服務勞務採購案 ","勞務","工程服務 ","275000","273000","112/07/14","112/07/14","彰化縣－鹿港 ","否","","非中央政府辦理新臺幣一億元以上之公共工程,非受中央政府補助比率逾工程建造經費百分之五十且補助經費達新臺幣一億元以上之個案公共工程 "]
["310","教育部 ","國立虎尾高級中學 ","教育部體育署 ","112年度游泳池整建維修委託設計監造技術服務採購 ","勞務","建築服務 ","385000","380000","112/07/13","112/07/14","雲林縣－虎尾 ","否","","整修工程、拆除工程、疏濬工程、結構補強工程 "]
["311","教育部 ","國立虎尾高級中學 ","無 ","112年度介壽樓西側廁所整修委託規劃設計監造技術服務採購 ","勞務","建築服務 ","490000","475000","112/07/20","112/07/24","雲林縣－虎尾 ","否","","非中央政府辦理新臺幣一億元以上之公共工程 "]
["312","教育部 ","國立嘉義高級中學 ","教育部國民及學前教育署 ","旭陵樓北側廁所修繕美化工程設計監造勞務採購案 ","勞務","工程服務 ","376200","340000","112/07/05","112/07/06","嘉義市－全區 ","否","","非中央政府辦理新臺幣一億元以上之公共工程,非受中央政府補助比率逾工程建造經費百分之五十且補助經費達新臺幣一億元以上之個案公共工程 "]
["313","教育部 ","國立善化高級中學 ","教育部 ","至善樓廁所整修工程委託設計服務案 ","勞務","建築服務 ","300675","294662","112/07/11","112/07/14","臺南市－善化區 ","否","","非中央政府辦理新臺幣一億元以上之公共工程,整修工程、拆除工程、疏濬工程、結構補強工程 "]
["314","教育部 ","國立花蓮高級中學 ","無 ","112年游泳池屋頂整修工程設計監造勞務案 ","勞務","工程服務 ","610000","610000","112/07/04","112/07/25","花蓮縣－花蓮 ","否","","整修工程、拆除工程、疏濬工程、結構補強工程 "]
["315","教育部 ","國立東石高級中學 ","教育部國民及學前教育署 ","112年綜合大樓東側廁所修繕美化工程委託規畫設計監造服務案 ","勞務","工程服務 ","224708","224708","112/07/14","112/07/14","南部地區－全區 ","否","","整修工程、拆除工程、疏濬工程、結構補強工程 "]
["316","教育部 ","國立基隆女子高級中學 ","教育部國民及學前教育署 ","科學館廁所整修工程委託規劃設計監造技術服務案 ","勞務","建築服務 ","374275","366195","112/07/14","112/07/25","基隆市－信義區 ","否","","非中央政府辦理新臺幣一億元以上之公共工程 "]
["317","教育部 ","國立關西高級中學 ","無 ","國立關西高級中學「教學大樓防水及窗戶整修工程」委託設計監造案 ","勞務","工程服務 ","250000","250000","112/07/06","112/07/07","新竹縣－全區 ","否","","整修工程、拆除工程、疏濬工程、結構補強工程 "]
["318","教育部 ","國立臺南高級工業職業學校 ","教育部國民及學前教育署 ","D棟教學大樓無障礙電梯新建工程委託設計監造服務 ","勞務","工程服務 ","418369","414185","112/07/12","112/07/25","臺南市－永康區 ","否","","非中央政府辦理新臺幣一億元以上之公共工程,非受中央政府補助比率逾工程建造經費百分之五十且補助經費達新臺幣一億元以上之個案公共工程,整修工程、拆除工程、疏濬工程、結構補強工程 "]
["319","教育部 ","國立羅東高級工業職業學校 ","教育部國民及學前教育署 ","游藝樓廁所整修美化工程委託規劃、設計與監造技術服務勞務採購 ","勞務","工程服務 ","309861","300565","112/06/28","112/07/03","宜蘭縣－全區 ","否","","整修工程、拆除工程、疏濬工程、結構補強工程 "]
["320","教育部 ","國立民雄高級農工職業學校 ","無 ","總變電站暨其他老舊危險電力改善工程規劃設計監造案 ","勞務","工程服務 ","325000","325000","112/07/04","112/07/06","嘉義縣－民雄 ","否","","非中央政府辦理新臺幣一億元以上之公共工程,非受中央政府補助比率逾工程建造經費百分之五十且補助經費達新臺幣一億元以上之個案公共工程 "]
["321","教育部 ","國立鳳山高級商工職業學校 ","教育部體育署 ","綜合體育館教學游泳池整建維修工程委託設計監造服務 ","勞務","工程服務 ","325000","325000","112/07/11","112/07/14","高雄市－鳳山區 ","否","","非中央政府辦理新臺幣一億元以上之公共工程 "]
["322","教育部 ","國立曾文高級家事商業職業學校 ","教育部 ","112年度整建運動場地工程委託技術服務 ","勞務","工程服務 ","638233","638233","112/06/30","112/07/07","臺南市－麻豆區 ","否","","非中央政府辦理新臺幣一億元以上之公共工程,整修工程、拆除工程、疏濬工程、結構補強工程 "]
["323","教育部 ","國立蘇澳高級海事水產職業學校 ","教育部國民及學前教育署 ","樂群樓廁所美化修繕工程委託設計監造技術服務案 ","勞務","工程服務 ","529581","487744","112/07/04","112/07/24","宜蘭縣－蘇澳 ","否","","非中央政府辦理新臺幣一億元以上之公共工程,整修工程、拆除工程、疏濬工程、結構補強工程 "]
["324","教育部 ","國立臺東大學 ","無 ","臺東校區綜合大樓結構耐震補強工程委託設計及監造服務 ","勞務","建築服務 ","1340683","1340000","112/07/12","112/07/13","臺東縣－臺東 ","否","","整修工程、拆除工程、疏濬工程、結構補強工程 "]
["325","教育部 ","國立臺北護理健康大學 ","無 ","112-113 年校園工程委託技術服務開口契約 ","勞務","建築服務 ","1450000","1450000","112/07/11","112/07/17","臺北市－北投區 ","否","","非中央政府辦理新臺幣一億元以上之公共工程 "]
["326","教育部 ","國立金門大學 ","教育部 ","112年金門大學資訊教學場域建置案(固定金額決標) ","勞務","建築服務 ","1400000","1400000","112/07/06","112/07/07","金門縣－金寧 ","否","","非中央政府辦理新臺幣一億元以上之公共工程,非受中央政府補助比率逾工程建造經費百分之五十且補助經費達新臺幣一億元以上之個案公共工程 "]
["327","教育部 ","國立臺中科技大學 ","經濟部 ","經濟部商業服務業系統節能專案補助計畫委託專案管理及監造技術服務 ","勞務","工程服務 ","624317","618074","112/07/25","112/07/26","臺中市－北區 ","否","","非中央政府辦理新臺幣一億元以上之公共工程 "]
["328","教育部 ","國立高雄餐旅大學附屬餐旅高級中等學校 ","教育部國民及學前教育署 ","西側教學大樓廁所整修技術服務案 ","勞務","工程服務 ","527048","500696","112/06/29","112/07/06","高雄市－小港區 ","否","","非中央政府辦理新臺幣一億元以上之公共工程 "]
["329","教育部 ","國立陽明交通大學 ","無 ","樹木修剪.防治暨災害搶修工作案 ","勞務","工程服務 ","2276734","2235000","112/07/20","112/07/21","北部地區－全區 ","否","","非中央政府辦理新臺幣一億元以上之公共工程,災後緊急處理、搶修、搶險 "]
["330","教育部 ","國立陽明交通大學 ","無 ","光復校區綜合一館1樓至3樓教學空間廁所及週邊設施整修工程委託規劃設計監造技術服務案 ","勞務","建築服務 ","907859","900000","112/07/07","112/07/10","新竹市－全區 ","否","","整修工程、拆除工程、疏濬工程、結構補強工程 "]
["331","教育部 ","國立陽明交通大學 ","無 ","博愛校區增強防洪韌性排水工程委託規劃設計監造服務案 ","勞務","工程服務 ","1498000","1489000","112/07/10","112/07/11","新竹市－全區 ","否","","整修工程、拆除工程、疏濬工程、結構補強工程 "]
["332","教育部 ","國立陽明交通大學 ","無 ","客家學院及綜合一館空調設備汰換委託設計監造 ","勞務","工程服務 ","400000","380000","112/07/25","112/07/26","新竹市－全區 ","否","","非中央政府辦理新臺幣一億元以上之公共工程,非受中央政府補助比率逾工程建造經費百分之五十且補助經費達新臺幣一億元以上之個案公共工程 "]
["333","教育部 ","國立臺灣圖書館 ","教育部 ","主體外牆結構維護及檢測採購案（第1次契約變更） ","勞務","建築服務 ","251850","250000","112/06/08","112/07/07","新北市－中和區 ","否","","整修工程、拆除工程、疏濬工程、結構補強工程 "]
["334","教育部 ","國立中興大學附屬臺中高級農業職業學校 ","教育部 ","森林科館結構耐震補強工程委託設計監造技術服務 ","勞務","工程服務 ","855670","849000","112/07/12","112/07/19","中部地區－全區 ","否","","整修工程、拆除工程、疏濬工程、結構補強工程 "]
["335","教育部 ","國立中興大學附屬臺中高級農業職業學校 ","無 ","112年排球場及網球場整修工程委託設計監造技術服務案 ","勞務","工程服務 ","892927","828000","112/07/13","112/07/19","中部地區－全區 ","否","","整修工程、拆除工程、疏濬工程、結構補強工程 "]
["336","教育部 ","國立卓蘭高級中等學校 ","無 ","112年度補助偏遠及非山非市地區國立高中學校廁所修繕計畫監造案 ","勞務","工程服務 ","176315","176315","112/07/06","112/07/14","苗栗縣－卓蘭 ","否","","非中央政府辦理新臺幣一億元以上之公共工程 "]
["337","教育部 ","國立彰化特殊教育學校 ","無 ","112年度改善無障礙校園環境-教學大樓無障礙廁所整 建工程委託規劃設計監造技術服務 ","勞務","建築服務 ","234486","231759","112/06/30","112/07/12","彰化縣－社頭 ","否","","整修工程、拆除工程、疏濬工程、結構補強工程 "]
["338","連江縣政府 ","連江縣政府 ","無 ","112年連江縣四島社會住宅初步規劃委託專業服務案 ","勞務","都市計劃及景觀建築服務 ","1490000","1490000","112/07/10","112/07/12","連江縣－全區 ","否","","規劃取得綠建築標章之建築工程 "]
["339","連江縣政府 ","連江縣立中山國民中學 ","教育部 ","連江縣立中山國民中學遷校計畫-校舍新建工程 ","工程","教育用建築工程 ","421115969","421115000","112/06/30","112/07/06","離島地區－全區 ","否","","規劃取得綠建築標章之建築工程 "]
["340","連江縣政府 ","連江縣東引鄉公所 ","國防部陸軍司令部 ","體育館燈具整修及電力線路改善 ","勞務","工程服務 ","430000","428000","112/07/21","112/07/21","連江縣－東引 ","否","","非中央政府辦理新臺幣一億元以上之公共工程,非受中央政府補助比率逾工程建造經費百分之五十且補助經費達新臺幣一億元以上之個案公共工程 "]
["341","雲林縣政府 ","雲林縣政府 ","內政部營建署 ","東勢鄉昌南村參與式創生環境改造計畫 ","勞務","綜合工程服務 ","8000000","7600000","112/07/06","112/07/18","雲林縣－東勢 ","否","","非中央政府辦理新臺幣一億元以上之公共工程 "]
["342","雲林縣政府 ","雲林縣政府 ","內政部營建署 ","112年度推動綠建築宣導計畫 ","勞務","建築服務 ","510000","500000","112/07/18","112/07/31","雲林縣－全區 ","否","","非中央政府辦理新臺幣一億元以上之公共工程 "]
["343","雲林縣政府 ","雲林縣政府 ","內政部營建署 ","112年度建立綠建築審核及抽查計畫 ","勞務","建築服務 ","1100000","1090000","112/07/18","112/07/31","雲林縣－全區 ","否","","非中央政府辦理新臺幣一億元以上之公共工程 "]
["344","雲林縣政府 ","雲林縣政府 ","無 ","雲林縣議會冰水主機汰換工程委託設計監造等工作 ","勞務","工程服務 ","344100","344100","112/07/07","112/07/10","雲林縣－斗六 ","否","","非中央政府辦理新臺幣一億元以上之公共工程,非受中央政府補助比率逾工程建造經費百分之五十且補助經費達新臺幣一億元以上之個案公共工程,整修工程、拆除工程、疏濬工程、結構補強工程 "]
["345","雲林縣政府 ","雲林縣政府 ","無 ","雲林縣歷史建築西螺戲院修復及再利用工程委託規劃設計(含因應計畫) ","勞務","建築服務 ","2300000","2260000","112/06/28","112/07/05","雲林縣－西螺 ","否","","非中央政府辦理新臺幣一億元以上之公共工程,非受中央政府補助比率逾工程建造經費百分之五十且補助經費達新臺幣一億元以上之個案公共工程 "]
["346","雲林縣政府 ","雲林縣斗六市公所 ","無 ","斗六市梅林活動中心2樓地坪改善委託服務 ","勞務","工程服務 ","320000","320000","112/07/11","112/07/12","雲林縣－斗六 ","否","","非中央政府辦理新臺幣一億元以上之公共工程 "]
["347","雲林縣政府 ","雲林縣斗南鎮公所 ","行政院環境保護署、雲林縣政府 ","112年雲林縣斗南鎮掩埋場轉型及整理整頓計畫委託設計監造技術服務 ","勞務","工程服務 ","618912","575588","112/07/18","112/07/31","雲林縣－斗南 ","否","","非中央政府辦理新臺幣一億元以上之公共工程 "]
["348","雲林縣政府 ","雲林縣虎尾鎮公所 ","雲林縣政府 ","虎尾鎮中溪社區活動中心拆除重建計畫委託技術服務 ","勞務","建築服務 ","1423014","1400000","112/07/11","112/07/21","雲林縣－虎尾 ","否","","非中央政府辦理新臺幣一億元以上之公共工程,非受中央政府補助比率逾工程建造經費百分之五十且補助經費達新臺幣一億元以上之個案公共工程 "]
["349","雲林縣政府 ","雲林縣土庫鎮公所 ","雲林縣政府 ","土庫鎮內17里新設及汰換路燈改善工程(開口契約)委託設計及監造技術服務案 ","勞務","工程服務 ","166054","162733","112/07/13","112/07/25","雲林縣－土庫 ","否","","非中央政府辦理新臺幣一億元以上之公共工程,整修工程、拆除工程、疏濬工程、結構補強工程 "]
["350","雲林縣政府 ","雲林縣莿桐鄉公所 ","雲林縣政府 ","112年度莿桐鄉轄內市區道路改善工程委託規劃設計監造技術服務案 ","勞務","工程服務 ","311430","305498","112/06/29","112/07/06","雲林縣－莿桐 ","否","","非中央政府辦理新臺幣一億元以上之公共工程,非受中央政府補助比率逾工程建造經費百分之五十且補助經費達新臺幣一億元以上之個案公共工程 "]
["351","雲林縣政府 ","雲林縣二崙鄉公所 ","行政院環境保護署 ","112年雲林縣二崙鄉垃圾衛生掩埋場轉型及整理整頓計畫設計監造 ","勞務","工程服務 ","577000","519300","112/06/29","112/07/25","雲林縣－二崙 ","否","","非中央政府辦理新臺幣一億元以上之公共工程,非受中央政府補助比率逾工程建造經費百分之五十且補助經費達新臺幣一億元以上之個案公共工程 "]
["352","雲林縣政府 ","雲林縣二崙鄉公所 ","雲林縣政府 ","酒姑社區活動中心修繕工程設計監造 ","勞務","工程服務 ","164158","147742","112/07/11","112/07/17","雲林縣－二崙 ","否","","非中央政府辦理新臺幣一億元以上之公共工程,非受中央政府補助比率逾工程建造經費百分之五十且補助經費達新臺幣一億元以上之個案公共工程,整修工程、拆除工程、疏濬工程、結構補強工程 "]
["353","雲林縣政府 ","雲林縣麥寮鄉公所 ","雲林縣政府 ","112年度雲林縣麥寮鄉上級補助及鄉內建設等工程委託規劃設計及監造（開口契約） ","勞務","工程服務 ","4000000","3640000","112/07/11","112/07/20","雲林縣－麥寮 ","否","","非中央政府辦理新臺幣一億元以上之公共工程,非受中央政府補助比率逾工程建造經費百分之五十且補助經費達新臺幣一億元以上之個案公共工程 "]
["354","雲林縣政府 ","雲林縣臺西鄉公所 ","無 ","112年度臺西鄉第二期委託設計監造技術服務案(開口契約) ","勞務","工程服務 ","4166667","3833334","112/07/11","112/07/13","雲林縣－臺西 ","否","","非中央政府辦理新臺幣一億元以上之公共工程 "]
["355","雲林縣政府 ","雲林縣臺西鄉公所 ","無 ","112年度臺西鄉第2期災害搶險搶修(開口契約)委託監造技術服務案 ","勞務","工程服務 ","376667","365367","112/07/18","112/07/20","雲林縣－臺西 ","否","","非中央政府辦理新臺幣一億元以上之公共工程 "]
["356","雲林縣政府 ","雲林縣臺西鄉公所 ","無 ","雲林縣臺西鄉港西段126地號變更編定(含興辦事業計畫)委託技術服務案 ","勞務","都市計劃及景觀建築服務 ","400000","320000","112/07/11","112/07/12","雲林縣－臺西 ","否","","非中央政府辦理新臺幣一億元以上之公共工程 "]
["357","雲林縣政府 ","雲林縣四湖鄉公所 ","衛生福利部 ","四湖鄉老人文康活動中心耐震補強工程委託規劃設計監造服務 ","勞務","建築服務 ","151582","151430","112/06/27","112/07/03","雲林縣－四湖 ","否","","整修工程、拆除工程、疏濬工程、結構補強工程 "]
["358","雲林縣政府 ","雲林縣水林鄉公所 ","無 ","水林鄉公所清潔隊資源回收貯存場暨細分類場興建計畫委託規劃設計技術服務 ","勞務","建築服務 ","2456820","2284843","112/07/06","112/07/18","雲林縣－水林 ","否","","規劃取得綠建築標章之建築工程 "]
["359","雲林縣政府 ","雲林縣斗六市鎮南國民小學 ","雲林縣政府 ","雲林縣斗六市教師研習中心裝修工程-委託監造技術服務案 ","勞務","綜合工程服務 ","972378","972378","112/07/28","112/07/31","雲林縣－全區 ","否","","非中央政府辦理新臺幣一億元以上之公共工程 "]
["360","雲林縣政府 ","雲林縣斗南鎮斗南國民小學 ","教育部國民及學前教育署、雲林縣政府 ","斗南國小非營利幼兒園建築物室內裝修工程委託規劃設計監造案 ","勞務","建築服務 ","1027695","1027695","112/07/05","112/07/17","雲林縣－斗南 ","否","","非中央政府辦理新臺幣一億元以上之公共工程 "]
["361","雲林縣政府 ","雲林縣斗南鎮斗南國民小學 ","雲林縣政府、教育部體育署 ","斗南國小新建棒球打擊練習場委託規劃設計及監造案 ","勞務","工程服務 ","236965","236965","112/07/03","112/07/04","雲林縣－斗南 ","否","","非中央政府辦理新臺幣一億元以上之公共工程 "]
["362","雲林縣政府 ","雲林縣虎尾鎮拯民國民小學 ","雲林縣政府 ","112年雲林縣拯民國小廁所整建計畫之委託規劃設計監造勞務採購案 ","勞務","建築服務 ","198919","198919","112/07/26","112/07/27","雲林縣－全區 ","否","","整修工程、拆除工程、疏濬工程、結構補強工程 "]
["363","雲林縣政府 ","雲林縣土庫鎮越港國民小學 ","雲林縣政府 ","雲林智慧教育中心週邊環境改善工程委託設計監造技術服務案 ","勞務","工程服務 ","1011000","1011000","112/06/30","112/07/03","雲林縣－土庫 ","否","","非中央政府辦理新臺幣一億元以上之公共工程 "]
["364","新北市政府 ","新北市立淡水高級商工職業學校 ","新北市政府教育局 ","112年電機電子大樓南側教室天花板維修工程委託規畫設計監造技術服務 ","勞務","工程服務 ","339185","339185","112/07/05","112/07/05","新北市－淡水區 ","否","","非中央政府辦理新臺幣一億元以上之公共工程 "]
["365","新北市政府 ","新北市立汐止國民中學 ","無 ","7樓圓面屋頂結構鏽蝕除鏽油漆工程委託技術服務 ","勞務","工程服務 ","239955","239000","112/07/20","112/07/24","新北市－汐止區 ","否","","非中央政府辦理新臺幣一億元以上之公共工程,非受中央政府補助比率逾工程建造經費百分之五十且補助經費達新臺幣一億元以上之個案公共工程 "]
["366","新北市政府 ","新北市立蘆洲國民中學 ","新北市政府教育局 ","「111年度公立國民中小學校舍防水隔熱工程計畫(第二次)」(信義樓、仁愛樓、懷恩樓)之委託技術服務採購案 ","勞務","工程服務 ","264349","264349","112/06/16","112/07/17","北部地區－全區 ","否","","非中央政府辦理新臺幣一億元以上之公共工程 "]
["367","新北市政府 ","新北市立福和國民中學 ","新北市政府環境保護局 ","新北市福和國中懿芳樓五樓綠屋頂計畫勞務採購案 ","勞務","都市計劃及景觀建築服務 ","900000","900000","112/07/06","112/07/06","北部地區－全區 ","否","","非中央政府辦理新臺幣一億元以上之公共工程,非受中央政府補助比率逾工程建造經費百分之五十且補助經費達新臺幣一億元以上之個案公共工程 "]
["368","新北市政府 ","新北市立頭前國民中學 ","無 ","112年頭前國中庶務性工作委外服務案(第1次契約變更) ","勞務","工程服務 ","132000","132000","112/07/19","112/07/21","新北市－新莊區 ","否","","非中央政府辦理新臺幣一億元以上之公共工程,非受中央政府補助比率逾工程建造經費百分之五十且補助經費達新臺幣一億元以上之個案公共工程 "]
["369","新北市政府 ","新北市立正德國民中學 ","教育部體育署 ","新北市淡水區文中八學校用地橄欖球場地整修工程委託設計監造技術服務 ","勞務","工程服務 ","3130164","3130164","112/06/30","112/07/24","新北市－淡水區 ","否","","整修工程、拆除工程、疏濬工程、結構補強工程 "]
["370","新北市政府 ","新北市立正德國民中學 ","新北市政府教育局 ","新北市立正德國民中學代管淡水文中九校地周邊新做防護網圍籬工程計畫委託設計及監造技術服務 ","勞務","工程服務 ","181089","181089","112/06/29","112/07/21","新北市－淡水區 ","否","","整修工程、拆除工程、疏濬工程、結構補強工程 "]
["371","新北市政府 ","新北市立正德國民中學 ","新北市政府教育局 ","112年度技藝(職探)中心專科教室屋頂漏水修繕及建置工程（賢孝校區）委託設計及監造技術服務 ","勞務","工程服務 ","245872","245872","112/07/13","112/07/25","新北市－淡水區 ","否","","整修工程、拆除工程、疏濬工程、結構補強工程 "]
["372","新北市政府 ","新北市立二重國民中學 ","新北市政府教育局 ","新北市立二重國民中學112學年度附設幼兒園增班案委託技術服務採購(後續擴充) ","勞務","建築服務 ","348013","348013","112/06/30","112/07/27","新北市－三重區 ","否","","非中央政府辦理新臺幣一億元以上之公共工程 "]
["373","新北市政府 ","新北市鶯歌區中湖國民小學 ","新北市政府教育局 ","校門地坪暨周邊環境整修工程委託技術服務 ","勞務","工程服務 ","196364","196364","112/07/12","112/07/12","新北市－鶯歌區 ","否","","整修工程、拆除工程、疏濬工程、結構補強工程 "]
["374","新北市政府 ","新北市石門區乾華國民小學 ","新北市政府教育局 ","禮堂大樓防水層補強暨校園禮堂屋頂防水隔熱工程程委託技術服務 ","勞務","工程服務 ","230276","230276","112/07/19","112/07/26","新北市－石門區 ","否","","非中央政府辦理新臺幣一億元以上之公共工程 "]
["375","新北市政府 ","新北市貢寮區貢寮國民小學 ","新北市政府教育局 ","新北市貢寮國民小學吉林校區地方創生監造技術服務採購案 ","勞務","綜合工程服務 ","235499","235499","112/07/21","112/07/24","新北市－貢寮區 ","否","","非中央政府辦理新臺幣一億元以上之公共工程 "]
["376","新北市政府 ","新北市坪林區坪林國民小學 ","新北市政府教育局 ","112年坪林國小漁光分校校舍整修工程委託技術服務採購案 ","勞務","工程服務 ","512554","512554","112/06/08","112/07/07","新北市－坪林區 ","否","","非中央政府辦理新臺幣一億元以上之公共工程 "]
["377","新北市政府 ","新北市五股區五股國民小學 ","新北市政府環境保護局 ","新北市五股區五股國民小學112年建物綠化示範推廣計畫-建物降溫綠簾專業服務採購案 ","勞務","都市計劃及景觀建築服務 ","731000","731000","112/06/30","112/07/27","新北市－五股區 ","否","","非中央政府辦理新臺幣一億元以上之公共工程 "]
["378","新北市政府 ","新北市林口區南勢國民小學 ","教育部 ","112年度南勢國小綠籬專案補助計畫 ","勞務","都市計劃及景觀建築服務 ","1456440","1456440","112/06/02","112/07/05","新北市－林口區 ","否","","非中央政府辦理新臺幣一億元以上之公共工程 "]
["379","新北市政府 ","新北市板橋區國光國民小學 ","新北市政府教育局 ","綜合運動場地坪改善計畫工程委託技術服務採購 ","勞務","工程服務 ","183373","183373","112/07/07","112/07/10","新北市－板橋區 ","否","","非中央政府辦理新臺幣一億元以上之公共工程 "]
["380","新北市政府 ","新北市永和區永平國民小學 ","新北市政府教育局 ","新建無障礙電梯工程委託技術服務 (第一次修正) ","勞務","建築服務 ","462290","462290","112/07/04","112/07/11","新北市－永和區 ","否","","非受中央政府補助比率逾工程建造經費百分之五十且補助經費達新臺幣一億元以上之個案公共工程 "]
["381","新北市政府 ","新北市土城區安和國民小學 ","無 ","幼兒園地坪改善工程委託技術服務採購 ","勞務","工程服務 ","187621","187621","112/07/20","112/07/25","新北市－土城區 ","否","","非中央政府辦理新臺幣一億元以上之公共工程 "]
["382","新北市政府 ","新北市蘆洲區蘆洲國民小學 ","新北市政府教育局 ","新北市蘆洲區蘆洲國民小學112年學校草地運動場整建委託技術服務採購案 ","勞務","建築服務 ","592816","592816","112/07/07","112/07/18","新北市－蘆洲區 ","否","","非中央政府辦理新臺幣一億元以上之公共工程,非受中央政府補助比率逾工程建造經費百分之五十且補助經費達新臺幣一億元以上之個案公共工程,整修工程、拆除工程、疏濬工程、結構補強工程 "]
["383","新北市政府 ","新北市汐止區金龍國民小學 ","新北市政府教育局 ","112年卓越樓護欄整修工程委託技術服務勞務採購 ","勞務","工程服務 ","127378","127378","112/07/21","112/07/26","新北市－汐止區 ","否","","非中央政府辦理新臺幣一億元以上之公共工程 "]
["384","新北市政府 ","新北市樹林區三多國民小學 ","新北市政府教育局 ","感恩樓3樓禮堂木質地板及周邊設施設備採購 ","勞務","工程服務 ","500000","500000","112/07/14","112/07/24","新北市－樹林區 ","否","","非受中央政府補助比率逾工程建造經費百分之五十且補助經費達新臺幣一億元以上之個案公共工程,整修工程、拆除工程、疏濬工程、結構補強工程 "]
["385","新北市政府 ","新北市林口區新林國民小學 ","教育部 ","新北市林口區新林國小學112年度校園綠籬專案計畫採購案 ","勞務","都市計劃及景觀建築服務 ","1418510","1418510","112/06/26","112/07/21","新北市－林口區 ","否","","非中央政府辦理新臺幣一億元以上之公共工程 "]
["386","新北市政府 ","新北市政府工務局 ","經濟部中央地質調查所 ","新北市土壤液化調查與風險評估總顧問(地調所110年度計畫) ","勞務","綜合工程服務 ","1010000","1010000","112/07/20","112/07/24","新北市－萬里區,新北市－金山區,新北市－瑞芳區,新北市－石門區 ","否","","非中央政府辦理新臺幣一億元以上之公共工程,非受中央政府補助比率逾工程建造經費百分之五十且補助經費達新臺幣一億元以上之個案公共工程 "]
["387","新北市政府 ","新北市政府採購處 ","內政部營建署 ","板橋區第一運動場暨周邊整體環境提升計畫 ","勞務","都市計劃及景觀建築服務 ","1927730","1927730","112/06/30","112/07/05","新北市－板橋區 ","否","","非中央政府辦理新臺幣一億元以上之公共工程,非受中央政府補助比率逾工程建造經費百分之五十且補助經費達新臺幣一億元以上之個案公共工程 "]
["388","新北市政府 ","新北市政府採購處 ","交通部、內政部營建署 ","淡水河北側沿河平面道路工程 ","工程","快速道路(不含高架快速道路), 街道, 馬路, 鐵路及機場跑道 ","6600000000","6599999900","112/07/25","112/07/28","臺北市－北投區,新北市－淡水區 ","已依規定納入辦理節能減碳檢核 ","計畫提報核定階段納入辦理節能減碳檢核 ",""]
["389","新北市政府 ","新北市政府採購處 ","交通部公路總局 ","板橋區信義國小停車場新建工程 ","工程","其他用途建築工程 ","541782000","541500000","112/07/07","112/07/20","新北市－板橋區 ","否","","非受中央政府補助比率逾工程建造經費百分之五十且補助經費達新臺幣一億元以上之個案公共工程 "]
["390","新北市政府 ","新北市政府採購處 ","交通部公路總局 ","112年度前瞻基礎建設計畫(公路系統)新北市提升道路及附屬設施改善工程(第1~4標) ","工程","快速道路(不含高架快速道路), 街道, 馬路, 鐵路及機場跑道 ","163597130","150024000","112/06/21","112/07/11","新北市－三峽區,新北市－樹林區,新北市－鶯歌區,新北市－淡水區,新北市－三芝區 ","否","","非中央政府辦理新臺幣一億元以上之公共工程,非受中央政府補助比率逾工程建造經費百分之五十且補助經費達新臺幣一億元以上之個案公共工程 "]
["391","新北市政府 ","新北市政府採購處 ","無 ","新北市板橋第二國民運動中心興建統包工程 ","工程","健身用建築工程 ","1194238286","1194238286","112/06/29","112/07/04","新北市－板橋區 ","否","","非受中央政府補助比率逾工程建造經費百分之五十且補助經費達新臺幣一億元以上之個案公共工程 "]
["392","新北市政府 ","新北市政府採購處 ","無 ","蘆洲區長安機械停車場改建統包工程 ","工程","其他土木工程 ","592393340","592393288","112/07/11","112/07/24","新北市－蘆洲區 ","已依規定納入辦理節能減碳檢核 ","規劃設計階段納入辦理節能減碳檢核 ",""]
["393","新北市政府 ","新北市政府採購處 ","新北市政府教育局 ","112年度新北市各級公立學校建築物公共安全檢查簽證及申報 ","勞務","建築服務 ","20399883","19909056","112/07/13","112/07/27","新北市－全區 ","否","","非中央政府辦理新臺幣一億元以上之公共工程 "]
["394","新北市政府 ","新北市政府養護工程處 ","無 ","110年新北市橋梁、隧道委託安檢、耐震評估及設計服務(第B區)-第1次契約變更 ","勞務","綜合工程服務 ","255245","245000","112/07/03","112/07/06","新北市－全區 ","否","","整修工程、拆除工程、疏濬工程、結構補強工程 "]
["395","新北市政府 ","新北市政府養護工程處 ","無 ","111年度新北市轄區內道路、橋梁改善工程委託設計監造(第3區)-第1次變更設計 ","勞務","工程服務 ","4211927","4211927","112/06/08","112/07/03","新北市－三峽區,新北市－鶯歌區,新北市－新莊區,新北市－泰山區,新北市－五股區,新北市－八里區,新北市－三芝區,新北市－石門區 ","否","","整修工程、拆除工程、疏濬工程、結構補強工程 "]
["396","新北市政府 ","新北市政府新建工程處 ","無 ","新北市土城區柑城橋連通中山路委託調查分析 ","勞務","工程服務 ","970000","950000","112/06/07","112/07/07","新北市－土城區 ","否","","非中央政府辦理新臺幣一億元以上之公共工程,非受中央政府補助比率逾工程建造經費百分之五十且補助經費達新臺幣一億元以上之個案公共工程 "]
["397","新北市政府 ","新北市政府市場處 ","無 ","汐止中正公有零售市場拆除重建暨附屬相關工程委託規劃設計監造技術服務案 ","勞務","工程服務 ","9911090","9415536","112/07/07","112/07/13","新北市－汐止區 ","否","","非中央政府辦理新臺幣一億元以上之公共工程 "]
["398","新北市政府 ","新北市政府水利局 ","無 ","「二重疏洪道左岸加高工程委託設計檢討及監造技術服務」第1次契約變更 ","勞務","工程服務 ","7194630","7194630","112/07/03","112/07/25","新北市－五股區 ","否","","整修工程、拆除工程、疏濬工程、結構補強工程 "]
["399","新北市政府 ","新北市政府農業局 ","行政院農業委員會水土保持局 ","112年新北市農村總合發展計畫－新北軸帶品牌遊程建立計畫 ","勞務","工程服務 ","5250000","5250000","112/07/13","112/07/20","新北市－全區 ","否","","非受中央政府補助比率逾工程建造經費百分之五十且補助經費達新臺幣一億元以上之個案公共工程 "]
["400","新北市政府 ","新北市政府交通局 ","無 ","三鶯轉運站興建工程委託設計監造技術服務案(第1次契約變更) ","勞務","工程服務 ","579614","544837","112/07/13","112/07/25","新北市－鶯歌區 ","否","","非中央政府辦理新臺幣一億元以上之公共工程 "]
["401","新北市政府 ","新北市政府消防局 ","無 ","新北市政府消防局鶯歌區南靖段北區複合型災害環境事故應變暨訓練中心預定地非都市土地開發委託技術服務 ","勞務","都市計劃及景觀建築服務 ","8000000","7890000","112/07/18","112/07/20","新北市－鶯歌區 ","否","","非中央政府辦理新臺幣一億元以上之公共工程,非受中央政府補助比率逾工程建造經費百分之五十且補助經費達新臺幣一億元以上之個案公共工程 "]
["402","新北市政府 ","新北市政府文化局 ","無 ","「新北市市定古蹟台北放送局板橋放送所修復及再利用工程」監造委託技術服務案契約變更 ","勞務","建築服務 ","671852","665000","112/06/20","112/07/12","新北市－板橋區 ","否","","整修工程、拆除工程、疏濬工程、結構補強工程 "]
["403","新北市政府 ","新北市政府捷運工程局 ","無 ","「環狀線南(十四張)機廠辦公廳舍裝修工程委託專案管理暨監造技術服務」勞務採購案契約變更(第1次) ","勞務","工程服務 ","216125","216125","112/07/19","112/07/20","北部地區－全區 ","否","","非中央政府辦理新臺幣一億元以上之公共工程 "]
["404","新北市政府 ","新北市政府捷運工程局 ","無 ","「淡海輕軌運輸系統計畫基本設計及第1期專案管理顧問委託技術服務案」第15次契約變更 ","勞務","工程服務 ","1829092","1810000","112/06/27","112/07/06","新北市－淡水區 ","否","","非受中央政府補助比率逾工程建造經費百分之五十且補助經費達新臺幣一億元以上之個案公共工程 "]
["405","新北市政府 ","新北市政府捷運工程局 ","無 ","「淡海輕軌運輸系統計畫基本設計及第1期專案管理顧問委託技術服務案」第16次契約變更 ","勞務","工程服務 ","215280","214000","112/07/05","112/07/17","新北市－淡水區 ","否","","非中央政府辦理新臺幣一億元以上之公共工程 "]
["406","新北市政府 ","新北大眾捷運股份有限公司 ","無 ","環狀線建築物及橋梁隧道定期檢測工作 ","勞務","工程服務 ","6183376","4692492","112/07/03","112/07/12","新北市－板橋區,新北市－新店區,新北市－中和區,新北市－新莊區 ","否","","非中央政府辦理新臺幣一億元以上之公共工程 "]
["407","新北市政府 ","新北市三峽區公所 ","新北市政府水利局 ","112年度簡易自來水工程(開口合約)委外設計監造技術服務 ","勞務","工程服務 ","736786","694052","112/06/28","112/07/05","新北市－三峽區 ","否","","非中央政府辦理新臺幣一億元以上之公共工程 "]
["408","新北市政府 ","新北市三峽區公所 ","新北市政府地政局 ","新北市三峽區海洋公園環境改善工程委外設計監造技術服務-第1次變更設計 ","勞務","工程服務 ","164034","164034","112/06/16","112/07/03","新北市－三峽區 ","否","","非中央政府辦理新臺幣一億元以上之公共工程 "]
["409","新北市政府 ","新北市淡水區公所 ","無 ","新北淡水區112年道路養護橋梁其附屬設施災害搶修交通及補助型案件工程(開口)（A區）委託設計監造技術服務第二次契約變更 ","勞務","工程服務 ","50016","50016","112/06/26","112/07/07","新北市－淡水區 ","否","","災後緊急處理、搶修、搶險 "]
["410","新北市政府 ","新北市泰山區公所 ","無 ","泰山區112年公園綠地廣場設施暨道路綠美化工程委託技術服務案(後續擴充) ","勞務","工程服務 ","1243745","1243745","112/07/04","112/07/07","新北市－泰山區 ","否","","非中央政府辦理新臺幣一億元以上之公共工程 "]
["411","新北市政府 ","新北市深坑區公所 ","無 ","112年度深坑區道路路面養護及改善工程(開口合約)委託設計監造技術服務 ","勞務","工程服務 ","130277","130277","112/05/30","112/07/25","新北市－深坑區 ","否","","非中央政府辦理新臺幣一億元以上之公共工程,非受中央政府補助比率逾工程建造經費百分之五十且補助經費達新臺幣一億元以上之個案公共工程 "]
["412","新北市政府 ","新北市石碇區公所 ","新北市政府養護工程處 ","112年度新北市石碇區災害緊急搶修復建作業工程等委託設計監造技術服務案(開口合約)-第4次後續擴充 ","勞務","綜合工程服務 ","126311","126311","112/07/24","112/07/26","新北市－石碇區 ","否","","非中央政府辦理新臺幣一億元以上之公共工程,非受中央政府補助比率逾工程建造經費百分之五十且補助經費達新臺幣一億元以上之個案公共工程 "]
["413","新北市政府 ","新北市石碇區公所 ","新北市政府養護工程處 ","112年度新北市石碇區災害緊急搶修復建作業工程委託設計監造技術服務案(開口合約)-第5次後續擴充 ","勞務","綜合工程服務 ","12632","12632","112/07/24","112/07/26","新北市－石碇區 ","否","","非中央政府辦理新臺幣一億元以上之公共工程,非受中央政府補助比率逾工程建造經費百分之五十且補助經費達新臺幣一億元以上之個案公共工程 "]
["414","新北市政府 ","新北市石碇區公所 ","新北市政府養護工程處 ","112年度新北市石碇區災害緊急搶修復建作業工程委託設計監造技術服務案(開口合約)-第6次後續擴充 ","勞務","綜合工程服務 ","21052","21052","112/07/24","112/07/26","新北市－石碇區 ","否","","非中央政府辦理新臺幣一億元以上之公共工程,非受中央政府補助比率逾工程建造經費百分之五十且補助經費達新臺幣一億元以上之個案公共工程 "]
["415","新北市政府 ","新北市石碇區公所 ","新北市政府養護工程處 ","112年度新北市石碇區災害緊急搶修復建作業工程委託設計監造技術服務(開口合約)-第7次後續擴充 ","勞務","綜合工程服務 ","50525","50525","112/07/24","112/07/31","新北市－石碇區 ","否","","非中央政府辦理新臺幣一億元以上之公共工程,非受中央政府補助比率逾工程建造經費百分之五十且補助經費達新臺幣一億元以上之個案公共工程 "]
["416","新北市政府 ","新北市三芝區公所 ","新北市政府養護工程處 ","新北市三芝區112年度轄內道路養護及改善工程(路平專案開口合約)委託設計監造服務第一次契約變更 ","勞務","工程服務 ","265613","265613","112/06/27","112/07/05","新北市－三芝區 ","否","","非受中央政府補助比率逾工程建造經費百分之五十且補助經費達新臺幣一億元以上之個案公共工程 "]
["417","新北市政府 ","新北市汐止區公所 ","無 ","112年度下半年至113年度汐止區公園、綠美化、防災及農業相關工程委託技術服務(開口契約) ","勞務","工程服務 ","2500000","2500000","112/07/21","112/07/28","新北市－汐止區 ","否","","非中央政府辦理新臺幣一億元以上之公共工程,非受中央政府補助比率逾工程建造經費百分之五十且補助經費達新臺幣一億元以上之個案公共工程,災後緊急處理、搶修、搶險,災後原地復建 "]
["418","新北市政府 ","新北市樹林區公所 ","新北市政府 ","112年度樹林區公園改善工程委託設計監造技術服務(開口合約) ","勞務","綜合工程服務 ","692909","692909","112/07/19","112/07/20","新北市－樹林區 ","否","","非中央政府辦理新臺幣一億元以上之公共工程,非受中央政府補助比率逾工程建造經費百分之五十且補助經費達新臺幣一億元以上之個案公共工程 "]
["419","新竹市政府 ","新竹市政府 ","無 ","新竹市東區建華里民眾活動中心新建工程委託規劃設計監造技術服務案第一次契約變更案 ","勞務","工程服務 ","617362","614784","112/07/25","112/07/26","新竹市－東區 ","否","","非中央政府辦理新臺幣一億元以上之公共工程,非受中央政府補助比率逾工程建造經費百分之五十且補助經費達新臺幣一億元以上之個案公共工程 "]
["420","新竹市政府 ","新竹市政府 ","無 ","新竹市北區南寮市民活動中心新建工程委託規劃設計監造技術服務案第一次契約變更案 ","勞務","建築服務 ","365838","365838","112/07/04","112/07/06","新竹市－北區 ","否","","非中央政府辦理新臺幣一億元以上之公共工程 "]
["421","新竹市政府 ","新竹市環境保護局 ","行政院環境保護署 ","新竹市垃圾資源回收廠升級整備(第一期)統包工程 ","工程","預鑄式組合及安裝工程 ","448910000","445300000","112/07/03","112/07/07","新竹市－全區 ","否","","整修工程、拆除工程、疏濬工程、結構補強工程 "]
["422","新竹市政府 ","新竹市地政事務所 ","無 ","新竹市112年地價基準地委外估價勞務採購 ","勞務","工程服務 ","610000","610000","112/06/30","112/07/07","北部地區－全區 ","否","","非受中央政府補助比率逾工程建造經費百分之五十且補助經費達新臺幣一億元以上之個案公共工程 "]
["423","新竹市政府 ","新竹市文化局 ","文化部 ","歷史建築新竹少年刑務所職務官舍群修復再利用第一期工程委託監造案 ","勞務","建築服務 ","9180000","9150000","112/07/17","112/07/20","新竹市－全區 ","否","","整修工程、拆除工程、疏濬工程、結構補強工程 "]
["424","新竹市政府 ","新竹市立成德高級中學 ","新竹市政府 ","忠德樓無障礙電梯新建工程委託規畫設計監造採購案 ","勞務","工程服務 ","234734","234734","112/07/24","112/07/25","新竹市－北區 ","否","","非中央政府辦理新臺幣一億元以上之公共工程,非受中央政府補助比率逾工程建造經費百分之五十且補助經費達新臺幣一億元以上之個案公共工程,整修工程、拆除工程、疏濬工程、結構補強工程 "]
["425","新竹市政府 ","新竹市立內湖國民中學 ","教育部國民及學前教育署 ","食農育所及周邊環境整建工程委託設計及監造技術服務契約變更 ","勞務","建築服務 ","243200","240000","112/07/17","112/07/18","新竹市－香山區 ","否","","非中央政府辦理新臺幣一億元以上之公共工程 "]
["426","新竹市政府 ","新竹市東區陽光國民小學 ","新竹市政府 ","「校園周邊暨行車安全道路改善計畫－陽光國小人本交通環境改善工程」委託規劃設計監造勞務採購案 ","勞務","工程服務 ","815310","815310","112/07/18","112/07/19","新竹市－東區 ","否","","非中央政府辦理新臺幣一億元以上之公共工程,整修工程、拆除工程、疏濬工程、結構補強工程 "]
["427","新竹市政府 ","新竹市北區北門國民小學 ","新竹市政府 ","新竹市北門國小通學路徑及接駁所需停車空間改善建置工程委託規劃設計監造技術服務 ","勞務","都市計劃及景觀建築服務 ","1558770","1543182","112/07/21","112/07/25","北部地區－全區 ","否","","非中央政府辦理新臺幣一億元以上之公共工程,非受中央政府補助比率逾工程建造經費百分之五十且補助經費達新臺幣一億元以上之個案公共工程 "]
["428","新竹市政府 ","新竹市東區竹蓮國民小學 ","新竹市政府 ","112年竹蓮國小學校運動操場及周邊設施整建工程委託規劃設計監造技術服務採購案 ","勞務","工程服務 ","1180666","1168859","112/06/13","112/07/05","新竹市－東區 ","否","","非中央政府辦理新臺幣一億元以上之公共工程,非受中央政府補助比率逾工程建造經費百分之五十且補助經費達新臺幣一億元以上之個案公共工程 "]
["429","新竹市政府 ","新竹市東區東園國民小學 ","新竹市政府 ","書香樓東側防水隔熱工程規劃設計監造 ","勞務","工程服務 ","247548","247548","112/07/11","112/07/12","新竹市－全區 ","否","","整修工程、拆除工程、疏濬工程、結構補強工程 "]
["430","新竹市政府 ","新竹市東區建功國民小學 ","新竹市政府 ","新竹市建功國小向陽藝術館整建工程委託規劃設計監造 ","勞務","建築服務 ","676194","676194","112/07/20","112/07/27","新竹市－東區 ","否","","整修工程、拆除工程、疏濬工程、結構補強工程 "]
["431","新竹市政府 ","新竹市東區高峰國民小學 ","新竹市政府 ","改善本校消防安全設施建置消防明管工程委託規畫設計監造技術服務 ","勞務","建築服務 ","378076","360817","112/06/20","112/07/10","新竹市－東區 ","否","","整修工程、拆除工程、疏濬工程、結構補強工程 "]
["432","新竹縣政府 ","新竹縣政府 ","交通部公路總局 ","新竹縣頭前溪右岸自行車道延伸路線串聯計畫委託設計監造技術服務 ","勞務","工程服務 ","2000000","1940000","112/07/20","112/07/24","新竹縣－竹北,新竹縣－新埔 ","否","","非中央政府辦理新臺幣一億元以上之公共工程 "]
["433","新竹縣政府 ","新竹縣政府文化局 ","文化部文化資產局 ","新竹縣縣定古蹟關西分駐所第三期修復及再利用工程監造暨工作報告書委託技術服務案 ","勞務","建築服務 ","3200000","3200000","112/07/07","112/07/11","新竹縣－關西 ","否","","整修工程、拆除工程、疏濬工程、結構補強工程 "]
["434","新竹縣政府 ","新竹縣政府文化局 ","文化部文化資產局 ","新竹縣歷史建築竹北東平問禮堂修復及再利用工程設計監造（含因應計畫）暨工作報告書委託技術服務案 ","勞務","建築服務 ","3000000","3000000","112/07/13","112/07/14","新竹縣－竹北 ","否","","整修工程、拆除工程、疏濬工程、結構補強工程 "]
["435","新竹縣政府 ","新竹縣政府文化局 ","文化部文化資產局 ","新竹縣縣定古蹟竹東甘屋渤海堂修復及再利用設計（含因應計畫）委託技術服務案 ","勞務","建築服務 ","2200000","2180000","112/07/20","112/07/21","新竹縣－竹東 ","否","","整修工程、拆除工程、疏濬工程、結構補強工程 "]
["436","新竹縣政府 ","新竹瓦斯股份有限公司 ","無 ","竹北市中正東路211號(帝王至尊大樓)建築物結構安全檢測委託服務 ","勞務","建築服務 ","1142000","1140000","112/07/17","112/07/21","新竹縣－竹北 ","否","","整修工程、拆除工程、疏濬工程、結構補強工程 "]
["437","新竹縣政府 ","新竹縣竹東鎮公所 ","無 ","「112年度竹東鎮公園兒童遊具修繕工程」委託設計監造技術服務案 ","勞務","工程服務 ","2000000","2000000","112/07/17","112/07/18","新竹縣－竹東 ","否","","整修工程、拆除工程、疏濬工程、結構補強工程 "]
["438","新竹縣政府 ","新竹縣新豐鄉公所 ","無 ","新豐鄉明新街道路排水溝改善工程委託設計監造技術服務案 ","勞務","工程服務 ","212489","206777","112/06/29","112/07/03","新竹縣－新豐 ","否","","非中央政府辦理新臺幣一億元以上之公共工程,非受中央政府補助比率逾工程建造經費百分之五十且補助經費達新臺幣一億元以上之個案公共工程 "]
["439","新竹縣政府 ","新竹縣北埔鄉公所 ","無 ","新竹縣北埔鄉公所綜合行政大樓新建工程委託設計監造技術服務 ","勞務","建築服務 ","19795001","19795001","112/06/27","112/07/06","新竹縣－北埔 ","否","","規劃取得綠建築標章之建築工程 "]
["440","新竹縣政府 ","新竹縣竹北市公所 ","無 ","幼兒園聯興分班建物修繕等工程委託設計監造服務 ","勞務","建築服務 ","1142000","1070000","112/07/07","112/07/11","新竹縣－竹北 ","否","","整修工程、拆除工程、疏濬工程、結構補強工程 "]
["441","新竹縣政府 ","新竹縣立六家高級中學 ","新竹縣政府 ","新設校舍整建及圍籬設置計畫 ","勞務","建築服務 ","711923","705000","112/07/05","112/07/10","新竹縣－竹北 ","否","","整修工程、拆除工程、疏濬工程、結構補強工程 "]
["442","新竹縣政府 ","新竹縣立富光國民中學 ","教育部國民及學前教育署 ","新竹縣立富光國民中學設置學校社區共讀站-委託設計監造採購案第一次契約變更 ","勞務","建築服務 ","205631","205631","112/07/14","112/07/24","新竹縣－關西 ","否","","非中央政府辦理新臺幣一億元以上之公共工程 "]
["443","新竹縣政府 ","新竹縣湖口鄉長安國民小學 ","新竹縣政府 ","新竹縣長安國小112年度屋頂防漏工程委託規劃設計監造勞務採購案 ","勞務","工程服務 ","220317","220000","112/07/06","112/07/07","新竹縣－湖口 ","否","","非中央政府辦理新臺幣一億元以上之公共工程,整修工程、拆除工程、疏濬工程、結構補強工程 "]
["444","新竹縣政府 ","新竹縣北埔鄉北埔國民小學 ","新竹縣政府教育局 ","文興國小基地植栽移植工程委託技術服務案 ","勞務","工程服務 ","323600","323600","112/07/19","112/07/21","新竹縣－全區 ","否","","非中央政府辦理新臺幣一億元以上之公共工程 "]
["445","新竹縣政府 ","新竹縣竹北市東海國民小學 ","新竹縣政府教育局 ","中央教學大樓整建工程委託規劃設計監造技術服務 ","勞務","建築服務 ","12930000","12930000","112/07/24","112/07/25","新竹縣－竹北 ","否","","規劃取得綠建築標章之建築工程 "]
["446","經濟部 ","經濟部工業局 ","無 ","112年度平鎮工業區南豐路、工業六路及工業十路零星道路及排水設施改善工程委託設計監造服務 ","勞務","工程服務 ","630017","598516","112/07/04","112/07/05","桃園市－平鎮區 ","否","","整修工程、拆除工程、疏濬工程、結構補強工程 "]
["447","經濟部 ","經濟部工業局 ","無 ","新材料循環產業園區招商及申請設置計畫(第2次計畫變更)  ","勞務","都市計劃及景觀建築服務 ","7010000","6248517","112/06/30","112/07/03","南部地區－全區 ","否","","非中央政府辦理新臺幣一億元以上之公共工程 "]
["448","經濟部 ","經濟部水利署北區水資源局 ","無 ","石門水庫至新竹聯通管-隧道銜接段工程 ","工程","水道、海港、水壩及其他水利工程 ","3920000000","3920000000","112/07/18","112/07/27","桃園市－龍潭區,新竹縣－關西 ","已依規定納入辦理節能減碳檢核 ","規劃設計階段納入辦理節能減碳檢核 ",""]
["449","經濟部 ","經濟部水利署北區水資源局 ","無 ","石門水庫至新竹聯通管－道路埋設段工程 ","工程","水道、海港、水壩及其他水利工程 ","2650000000","2649900000","112/07/05","112/07/27","新竹縣－關西,新竹縣－橫山 ","已依規定納入辦理節能減碳檢核 ","規劃設計階段納入辦理節能減碳檢核 ",""]
["450","經濟部 ","經濟部水利署北區水資源局 ","無 ","112及113年石門水庫中下游區淤積物清除設計監造委託技術服務 ","勞務","工程服務 ","15000000","14950000","112/07/25","112/07/28","桃園市－龍潭區,桃園市－大溪區,桃園市－復興區 ","否","","非中央政府辦理新臺幣一億元以上之公共工程 "]
["451","經濟部 ","經濟部水利署南區水資源局 ","無 ","荖濃溪（里嶺）伏流水統包工程 ","工程","水道、海港、水壩及其他水利工程 ","1050000000","1050000000","112/06/14","112/07/13","高雄市－旗山區,屏東縣－里港 ","已依規定納入辦理節能減碳檢核 ","規劃設計階段納入辦理節能減碳檢核 ",""]
["452","經濟部 ","經濟部水利署南區水資源局 ","無 ","烏山頭水庫至下游淨水場專管工程可行性評估 ","勞務","工程服務 ","4500000","4200000","112/06/13","112/07/06","臺南市－官田區 ","否","","非中央政府辦理新臺幣一億元以上之公共工程,非受中央政府補助比率逾工程建造經費百分之五十且補助經費達新臺幣一億元以上之個案公共工程 "]
["453","經濟部 ","經濟部水利署臺北水源特定區管理局 ","無 ","直潭污水處理廠材料備品倉庫新建工程委託規劃設計暨監造技術服務案 ","勞務","建築服務 ","4203350","4067216","112/07/26","112/07/27","北部地區－全區 ","否","","非中央政府辦理新臺幣一億元以上之公共工程 "]
["454","經濟部 ","台灣糖業股份有限公司花東區處 ","無 ","花蓮廠區高壓變壓器汰換工程設計監造勞務委託案 ","勞務","工程服務 ","418992","390000","112/07/19","112/07/20","花蓮縣－光復 ","否","","非中央政府辦理新臺幣一億元以上之公共工程,非受中央政府補助比率逾工程建造經費百分之五十且補助經費達新臺幣一億元以上之個案公共工程 "]
["455","經濟部 ","台灣電力股份有限公司 ","無 ","訓練所高訓中心及谷訓中心電梯新設工程規劃設計技術服務工作第1次契約變更 ","勞務","工程服務 ","356840","356840","112/07/10","112/07/20","臺北市－中正區,臺中市－和平區,高雄市－大寮區 ","否","","非中央政府辦理新臺幣一億元以上之公共工程 "]
["456","經濟部 ","台灣電力股份有限公司 ","無 ","遠信雲端資料中心資訊機房建置委託設計監造技術服務工作 ","勞務","工程服務 ","8265250","7809519","112/07/18","112/07/26","臺北市－全區 ","否","","規劃取得綠建築標章之建築工程 "]
["457","經濟部 ","台灣電力股份有限公司 ","無 ","興達電廠燃氣機組更新改建計畫161kV氣體絕緣開關及附屬設備工程 ","工程","電力工程 ","358000000","331505000","112/06/27","112/07/10","高雄市－永安區 ","已依規定納入辦理節能減碳檢核 ","規劃設計階段納入辦理節能減碳檢核 ",""]
["458","經濟部 ","台灣電力股份有限公司台北北區營業處 ","無 ","台北北區營業處112年甲工區配電管路及零星外線綜合工程 ","工程","電力工程 ","190000000","185000000","112/06/20","112/07/06","臺北市－中山區,臺北市－內湖區,臺北市－南港區,新北市－汐止區,新北市－深坑區,新北市－石碇區 ","否","","非中央政府辦理新臺幣一億元以上之公共工程,非受中央政府補助比率逾工程建造經費百分之五十且補助經費達新臺幣一億元以上之個案公共工程,災後緊急處理、搶修、搶險 "]
["459","經濟部 ","台灣電力股份有限公司台北南區營業處 ","無 ","台北南區營業處112年甲工區配電外線工程 ","工程","電力工程 ","155200000","149468076","112/07/11","112/07/20","新北市－板橋區,新北市－土城區 ","否","","非受中央政府補助比率逾工程建造經費百分之五十且補助經費達新臺幣一億元以上之個案公共工程 "]
["460","經濟部 ","台灣電力股份有限公司台北南區營業處 ","無 ","台北南區營業處112年乙工區配電外線工程 ","工程","電力工程 ","119500000","116000000","112/07/25","112/07/31","新北市－永和區,新北市－中和區 ","否","","非受中央政府補助比率逾工程建造經費百分之五十且補助經費達新臺幣一億元以上之個案公共工程 "]
["461","經濟部 ","台灣電力股份有限公司桃園區營業處 ","無 ","桃園區營業處112年丁工區配電外線工程 ","工程","電力工程 ","198000000","172000000","112/07/05","112/07/18","桃園市－龍潭區,桃園市－八德區,桃園市－大溪區,桃園市－復興區 ","否","","非中央政府辦理新臺幣一億元以上之公共工程,整修工程、拆除工程、疏濬工程、結構補強工程 "]
["462","經濟部 ","台灣電力股份有限公司台中區營業處 ","無 ","台電台中區處榮德路配電設備儲放場建置工程委託規劃設計監造技術服務 ","勞務","建築服務 ","1333041","1316871","112/07/26","112/07/27","臺中市－北屯區 ","否","","非中央政府辦理新臺幣一億元以上之公共工程,非受中央政府補助比率逾工程建造經費百分之五十且補助經費達新臺幣一億元以上之個案公共工程 "]
["463","經濟部 ","台灣電力股份有限公司台中區營業處 ","無 ","台中區營業處112年甲工區配電外線工程 ","工程","電力工程 ","192963000","192330000","112/07/06","112/07/11","臺中市－中區,臺中市－東區,臺中市－南區,臺中市－西區,臺中市－北區,臺中市－北屯區,臺中市－太平區,臺中市－大里區 ","否","","非中央政府辦理新臺幣一億元以上之公共工程 "]
["464","經濟部 ","台灣電力股份有限公司彰化區營業處 ","無 ","彰化區營業處112年乙工區配電管路工程 ","工程","電力工程 ","199900000","141777000","112/07/21","112/07/28","彰化縣－全區 ","否","","非中央政府辦理新臺幣一億元以上之公共工程 "]
["465","經濟部 ","台灣電力股份有限公司嘉義區營業處 ","無 ","嘉義區營業處112年甲工區配電管路工程 ","工程","地區性管線及電纜; 輔助性工程 ","190000000","161000000","112/07/07","112/07/13","嘉義市－全區,嘉義縣－全區 ","否","","非中央政府辦理新臺幣一億元以上之公共工程 "]
["466","經濟部 ","台灣電力股份有限公司高雄區營業處 ","無 ","高雄新市鎮第二期發展區(三區)整體規劃管路預埋工程 ","工程","電力工程 ","122000000","64200000","112/06/20","112/07/05","高雄市－全區 ","否","","非受中央政府補助比率逾工程建造經費百分之五十且補助經費達新臺幣一億元以上之個案公共工程 "]
["467","經濟部 ","台灣電力股份有限公司台北供電區營運處 ","無 ","112年度建築物公共安全檢查簽證及申報委託服務 ","勞務","建築服務 ","336000","307650","112/07/03","112/07/04","臺北市－全區,基隆市－全區,新北市－全區,宜蘭縣－全區 ","否","","非中央政府辦理新臺幣一億元以上之公共工程,非受中央政府補助比率逾工程建造經費百分之五十且補助經費達新臺幣一億元以上之個案公共工程 "]
["468","經濟部 ","台灣電力股份有限公司新桃供電區營運處 ","無 "," 161kV新竹~六家線#4-#7連接站暨電纜管路工程 ","工程","電力工程 ","119700000","104250000","112/07/11","112/07/18","新竹市－東區 ","否","","非中央政府辦理新臺幣一億元以上之公共工程,非受中央政府補助比率逾工程建造經費百分之五十且補助經費達新臺幣一億元以上之個案公共工程 "]
["469","經濟部 ","台灣電力股份有限公司核能火力發電工程處南部施工處 ","無 ","興達電廠燃氣機組更新改建計畫事業用電力站及地下生水池/泵室電氣設備工程 ","工程","電力工程 ","133000000","109200000","112/07/12","112/07/20","高雄市－永安區 ","已依規定納入辦理節能減碳檢核 ","規劃設計階段納入辦理節能減碳檢核 ",""]
["470","經濟部 ","台灣電力股份有限公司輸變電工程處南區施工處 ","無 ","龍崎E/S改建工程(第一期南臨開關場)及大鵬E/S 161kV GIS裝設工程委託設計服務工作(第1次契約變更) ","勞務","工程服務 ","5260500","5154345","112/07/06","112/07/11","南部地區－全區 ","否","","非中央政府辦理新臺幣一億元以上之公共工程,非受中央政府補助比率逾工程建造經費百分之五十且補助經費達新臺幣一億元以上之個案公共工程 "]
["471","經濟部 ","台灣電力股份有限公司輸變電工程處北區施工處 ","無 ","161kV深美~七張線地下電纜管路等4案工程 ","工程","電力工程 ","135000000","121418000","112/06/20","112/07/10","新北市－深坑區,新北市－新店區,新北市－五股區,桃園市－中壢區 ","否","","整修工程、拆除工程、疏濬工程、結構補強工程 "]
["472","經濟部 ","台灣中油股份有限公司 ","無 ","113年度基隆及台北處油槽非破壞檢查長約工作(2年) ","勞務","綜合工程服務 ","29719094","26000000","112/07/07","112/07/11","其他－其他 ","否","","非中央政府辦理新臺幣一億元以上之公共工程,非受中央政府補助比率逾工程建造經費百分之五十且補助經費達新臺幣一億元以上之個案公共工程 "]
["473","經濟部 ","台灣中油股份有限公司 ","無 ","梓官及楠梓加油站改建工程委託規劃設計及重點監造技術服務工作 ","勞務","建築服務 ","4906000","4900000","112/07/12","112/07/13","高雄市－全區 ","否","","規劃取得綠建築標章之建築工程 "]
["474","經濟部 ","台灣中油股份有限公司 ","無 ","林園石化廠污泥脫水輸送、脫水污泥回收、飛灰裝袋…等工作 ","勞務","綜合工程服務 ","12592983","8151000","112/07/19","112/07/20","高雄市－林園區 ","否","","非中央政府辦理新臺幣一億元以上之公共工程 "]
["475","經濟部 ","台灣中油股份有限公司液化天然氣工程處 ","無 ","台中廠增建第二席天然氣碼頭、護岸及管線工程等技術服務工作(第5次契約變更) ","勞務","綜合工程服務 ","5333861","5300000","112/07/13","112/07/31","臺北市－內湖區,臺中市－大肚區,臺中市－梧棲區 ","否","","非中央政府辦理新臺幣一億元以上之公共工程 "]
["476","經濟部 ","台灣中油股份有限公司油品行銷事業部東區營業處 ","無 ","112年台東行銷大樓室內裝修審查作業及消防改善工作(含竣工查驗合格) ","勞務","綜合工程服務 ","1372795","1301000","112/07/12","112/07/12","臺東縣－全區 ","否","","整修工程、拆除工程、疏濬工程、結構補強工程 "]
["477","經濟部 ","台灣中油股份有限公司探採事業部 ","無 ","112年度注儲處管線設備除鏽油漆工作 ","勞務","綜合工程服務 ","4510848","4100000","112/07/19","112/07/21","苗栗縣－通霄 ","否","","非中央政府辦理新臺幣一億元以上之公共工程,非受中央政府補助比率逾工程建造經費百分之五十且補助經費達新臺幣一億元以上之個案公共工程 "]
["478","經濟部 ","台灣自來水股份有限公司 ","無 ","鳥嘴潭人工湖下游─送水管B-6 ","工程","水管及排水設施鋪設工程 ","215040000","193000000","112/06/28","112/07/04","彰化縣－全區 ","已依規定納入辦理節能減碳檢核 ","規劃設計階段納入辦理節能減碳檢核 ",""]
["479","經濟部 ","台灣自來水股份有限公司第五區管理處 ","無 ","湖山場綠色能源模組暨教育館改善作業 ","勞務","工程服務 ","1197525","1122000","112/07/18","112/07/27","雲林縣－斗六 ","否","","非中央政府辦理新臺幣一億元以上之公共工程,整修工程、拆除工程、疏濬工程、結構補強工程 "]
["480","經濟部 ","台灣自來水股份有限公司屏東區管理處 ","無 ","「屏東縣三地門鄉德文部落供水工程」委託規劃技術服務 ","勞務","工程服務 ","6720000","6720000","112/07/04","112/07/06","屏東縣－三地門 ","已依規定納入辦理節能減碳檢核 ","規劃設計階段納入辦理節能減碳檢核 ",""]
["481","經濟部 ","台灣自來水股份有限公司中區工程處 ","無 ","「草屯淨水場新建工程場內管線配合辦理淺埋現地試驗」委託專業服務 ","勞務","工程服務 ","246000","240000","112/07/26","112/07/28","南投縣－草屯 ","否","","非中央政府辦理新臺幣一億元以上之公共工程 "]
["482","經濟部 ","經濟部專業人員研究中心 ","無 ","經濟部專業人員研究中心庭園、盆栽養護服務工作-第2次擴充 ","勞務","都市計劃及景觀建築服務 ","1257900","1235000","112/06/20","112/07/04","新竹市－東區 ","否","","非中央政府辦理新臺幣一億元以上之公共工程 "]
["483","嘉義市政府 ","嘉義市政府 ","無 ","嘉義市111年度區域排水(含側溝)興建、修繕工程委託技術服務(後續擴充) ","勞務","工程服務 ","2616800","2616800","112/06/29","112/07/18","嘉義市－全區 ","否","","非受中央政府補助比率逾工程建造經費百分之五十且補助經費達新臺幣一億元以上之個案公共工程 "]
["484","嘉義市政府 ","嘉義市政府 ","無 ","穿城之水。藍綠環圈-道將圳水綠廊道營造-第二期委託設計案後續擴充 ","勞務","工程服務 ","2566396","2566396","112/06/29","112/07/21","其他－其他 ","否","","整修工程、拆除工程、疏濬工程、結構補強工程 "]
["485","嘉義市政府 ","嘉義市政府 ","無 ","嘉義市雨水下水道安全檢查及改善方案評估委託技術服務(後續擴充) ","勞務","工程服務 ","2540000","2540000","112/07/10","112/07/13","嘉義市－全區 ","否","","整修工程、拆除工程、疏濬工程、結構補強工程 "]
["486","嘉義市政府 ","嘉義市政府 ","無 ","嘉義市112年度都市計畫樁位測定、清理及補建案 ","勞務","都市計劃及景觀建築服務 ","570000","570000","112/06/29","112/07/04","嘉義市－全區 ","否","","非受中央政府補助比率逾工程建造經費百分之五十且補助經費達新臺幣一億元以上之個案公共工程 "]
["487","嘉義市政府 ","嘉義市政府 ","無 ","西區大發展整體策略規劃委託服務案 ","勞務","都市計劃及景觀建築服務 ","9000000","9000000","112/07/06","112/07/14","嘉義市－全區 ","否","","非受中央政府補助比率逾工程建造經費百分之五十且補助經費達新臺幣一億元以上之個案公共工程 "]
["488","嘉義市政府 ","嘉義市政府 ","無 ","嘉義市蘭潭水庫與國立嘉義大學遊憩動線縫合計畫可行性評估及先期規劃委託技術服務 ","勞務","工程服務 ","1000000","1000000","112/06/30","112/07/12","嘉義市－全區 ","否","","非受中央政府補助比率逾工程建造經費百分之五十且補助經費達新臺幣一億元以上之個案公共工程 "]
["489","嘉義市政府 ","嘉義市政府 ","無 ","文化新絲路2.0-嘉義車站周邊地區、文藝森粼整體規劃案 ","勞務","都市計劃及景觀建築服務 ","13000000","13000000","112/07/20","112/07/27","嘉義市－全區 ","否","","非中央政府辦理新臺幣一億元以上之公共工程 "]
["490","嘉義市政府 ","嘉義市政府文化局 ","教育部 ","嘉義市世賢圖書館耐震補強工程委託規劃設計監造技術服務案 ","勞務","建築服務 ","1243000","1243000","112/07/27","112/07/28","嘉義市－全區 ","否","","非中央政府辦理新臺幣一億元以上之公共工程,非受中央政府補助比率逾工程建造經費百分之五十且補助經費達新臺幣一億元以上之個案公共工程 "]
["491","嘉義市政府 ","嘉義市西區區公所 ","行政院農業委員會水土保持局 ","紅瓦厝社區友善人行空間環境改善工程委託規劃設計監造 ","勞務","工程服務 ","453600","453600","112/07/03","112/07/05","嘉義市－西區 ","否","","非中央政府辦理新臺幣一億元以上之公共工程 "]
["492","嘉義市政府 ","嘉義市立南興國民中學 ","嘉義市政府 ","112年改善國民中小學校園環境冷氣安裝及拆機等額外項勞務採購 ","勞務","工程服務 ","432960","430000","112/07/11","112/07/11","嘉義市－東區 ","否","","非中央政府辦理新臺幣一億元以上之公共工程,非受中央政府補助比率逾工程建造經費百分之五十且補助經費達新臺幣一億元以上之個案公共工程 "]
["493","嘉義市政府 ","嘉義市育人國民小學 ","嘉義市政府、教育部體育署 ","112年育人國小辦理整建學校草地運動場計畫工程委託規劃設計監造技術服務勞務採購 ","勞務","建築服務 ","393713","374027","112/06/29","112/07/05","南部地區－全區 ","否","","非中央政府辦理新臺幣一億元以上之公共工程,非受中央政府補助比率逾工程建造經費百分之五十且補助經費達新臺幣一億元以上之個案公共工程,災後緊急處理、搶修、搶險,災後原地復建,規劃取得綠建築標章之建築工程 "]
["494","嘉義縣政府 ","嘉義縣政府 ","教育部 ","嘉義縣竹崎高中老舊校舍整建工程委託勘測規劃、設計及監造技術服務(含水土保持計畫及山坡地審查)（第二次變更） ","勞務","建築服務 ","107527","107527","112/06/27","112/07/11","嘉義縣－竹崎 ","否","","規劃取得綠建築標章之建築工程 "]
["495","嘉義縣政府 ","嘉義縣政府 ","無 ","嘉義縣112年度城鎮風貌整體型塑、聚落公共空間及景觀改善工程委託製作計畫書、勘測規劃、設計及監造開口契約(後續擴充) ","勞務","建築服務 ","5503651","5503651","112/07/18","112/07/24","嘉義縣－全區 ","否","","非受中央政府補助比率逾工程建造經費百分之五十且補助經費達新臺幣一億元以上之個案公共工程 "]
["496","嘉義縣政府 ","嘉義縣中埔鄉公所 ","無 ","嘉義縣中埔鄉第二公立納骨塔興辦事業計畫及水土保持計畫 (含土地變更編定)委託技術服務案 ","勞務","工程服務 ","1780000","1700000","112/06/30","112/07/03","嘉義縣－中埔 ","否","","規劃取得綠建築標章之建築工程 "]
["497","嘉義縣政府 ","嘉義縣立溪口國民中學 ","嘉義縣政府 ","嘉義縣立溪口國民中學委託辦理112年度活動中心耐震能力詳細評估 ","勞務","建築服務 ","706311","706311","112/07/26","112/07/26","嘉義縣－溪口 ","否","","整修工程、拆除工程、疏濬工程、結構補強工程 "]
["498","彰化縣政府 ","彰化縣政府 ","交通部公路總局 ","洋仔厝溪堤岸道路第二標南北岸工程(第二標) ","工程","其他土木工程 ","720000000","719950000","112/07/06","112/07/07","彰化縣－鹿港 ","否","","為111年8月前核定案件，毋須補辦節能減碳檢核"]
["499","彰化縣政府 ","彰化縣政府 ","無 ","112年度彰化縣天空步道等景觀橋梁檢修維護工作委託設計監造服務案 ","勞務","工程服務 ","1045220","599956","112/07/04","112/07/13","彰化縣－彰化,彰化縣－溪湖,彰化縣－北斗 ","否","","整修工程、拆除工程、疏濬工程、結構補強工程 "]
["500","彰化縣政府 ","彰化縣政府 ","經濟部水利署 ","舊社排水(第二期)改善及橋梁改建工程併辦土石標售(二工區) ","工程","水道、海港、水壩及其他水利工程 ","101960000","94733000","112/07/11","112/07/12","彰化縣－社頭 ","已依規定納入辦理節能減碳檢核 ","規劃設計階段納入辦理節能減碳檢核 ",""]
["501","彰化縣政府 ","彰化縣彰化市公所 ","內政部營建署 ","112年彰化縣彰化市扇形車庫旁公三公園綠廊道串聯整合營造計畫委託規劃設計監造技術服務 ","勞務","工程服務 ","352193","345149","112/07/05","112/07/11","彰化縣－彰化 ","否","","非受中央政府補助比率逾工程建造經費百分之五十且補助經費達新臺幣一億元以上之個案公共工程 "]
["502","彰化縣政府 ","彰化縣北斗鎮公所 ","無 ","北斗鎮新生社區活動中心(一樓含屋突)新建工程委託規劃設計監造技術服務 ","勞務","建築服務 ","2028866","1988289","112/06/28","112/07/04","彰化縣－北斗 ","否","","非受中央政府補助比率逾工程建造經費百分之五十且補助經費達新臺幣一億元以上之個案公共工程 "]
["503","彰化縣政府 ","彰化縣二林鎮公所 ","彰化縣政府 ","「二林鎮原斗、東興、興華、中西及華崙里道路改善工程」委託設計監造 ","勞務","工程服務 ","326800","308826","112/07/06","112/07/19","彰化縣－二林 ","否","","整修工程、拆除工程、疏濬工程、結構補強工程 "]
["504","彰化縣政府 ","彰化縣福興鄉公所 ","無 ","新訂福興都市計畫未來發展地區申請劃設為城鄉發展地區第二類之三案 ","勞務","都市計劃及景觀建築服務 ","7000000","6869900","112/07/20","112/07/27","彰化縣－福興 ","否",null,"非受中央政府補助比率逾工程建造經費百分之五十且補助經費達新臺幣一億元以上之個案公共工程 "]
["505","彰化縣政府 ","彰化縣福興鄉公所 ","彰化縣政府 ","彰化縣福興鄉鎮平社區活動中心委託設計監造案 ","勞務","工程服務 ","1888000","1858000","112/07/18","112/07/25","彰化縣－福興 ","否","","非受中央政府補助比率逾工程建造經費百分之五十且補助經費達新臺幣一億元以上之個案公共工程 "]
["506","彰化縣政府 ","彰化縣花壇鄉公所 ","無 ","活動中心(文德社區)重建工程委託監造技術服務案 ","勞務","建築服務 ","880000","880000","112/07/05","112/07/25","彰化縣－花壇 ","否","","非受中央政府補助比率逾工程建造經費百分之五十且補助經費達新臺幣一億元以上之個案公共工程 "]
["507","彰化縣政府 ","彰化縣花壇鄉公所 ","無 ","花壇鄉第十公墓禮廳及靈堂新建工程委託規劃設計監造案 ","勞務","建築服務 ","11599957","11483957","112/06/28","112/07/10","彰化縣－花壇 ","否","","非中央政府辦理新臺幣一億元以上之公共工程,非受中央政府補助比率逾工程建造經費百分之五十且補助經費達新臺幣一億元以上之個案公共工程 "]
["508","彰化縣政府 ","彰化縣社頭鄉公所 ","無 ","社頭鄉小靈堂興建及水保工程規劃設計監造暨相關計畫修正與執照申請等委託技術服務 ","勞務","工程服務 ","3825900","3823442","112/07/18","112/07/28","彰化縣－社頭 ","否","","非中央政府辦理新臺幣一億元以上之公共工程,非受中央政府補助比率逾工程建造經費百分之五十且補助經費達新臺幣一億元以上之個案公共工程 "]
["509","彰化縣政府 ","彰化縣芳苑鄉公所 ","彰化縣政府 ","112年度芳苑鄉農地重劃區農路改善工程委託設計監造技術服務 ","勞務","工程服務 ","547300","506252","112/06/29","112/07/03","彰化縣－芳苑 ","否","","非中央政府辦理新臺幣一億元以上之公共工程,非受中央政府補助比率逾工程建造經費百分之五十且補助經費達新臺幣一億元以上之個案公共工程 "]
["510","彰化縣政府 ","彰化縣竹塘鄉公所 ","彰化縣政府 ","「竹塘鄉民靖村竹林路二段239號附近護岸改善工程」委託規劃設計監造技術服務案 ","勞務","工程服務 ","468622","449877","112/06/30","112/07/03","彰化縣－竹塘 ","否","","非受中央政府補助比率逾工程建造經費百分之五十且補助經費達新臺幣一億元以上之個案公共工程 "]
["511","彰化縣政府 ","彰化縣立原斗國民中小學 ","教育部國民及學前教育署 ","國小部1-4年級教室內部修繕工程委託規畫設計監造技術服務案 ","勞務","建築服務 ","183146","183146","112/07/06","112/07/07","彰化縣－二林 ","否","","整修工程、拆除工程、疏濬工程、結構補強工程 "]
["512","彰化縣政府 ","彰化縣彰化市南郭國民小學 ","教育部國民及學前教育署 ","南郭國小定靜樓新建無障礙電梯工程委託規劃設計監造技術服務 ","勞務","工程服務 ","307761","307761","112/06/27","112/07/06","彰化縣－彰化 ","否","","非中央政府辦理新臺幣一億元以上之公共工程,非受中央政府補助比率逾工程建造經費百分之五十且補助經費達新臺幣一億元以上之個案公共工程 "]
["513","彰化縣政府 ","彰化縣彰化市聯興國民小學 ","彰化縣政府 ","彰化縣彰化市聯興國民小學操場整修工程設計監造委託技術服務案 ","勞務","工程服務 ","445042","445042","112/06/27","112/07/14","彰化縣－彰化 ","否","","非中央政府辦理新臺幣一億元以上之公共工程,非受中央政府補助比率逾工程建造經費百分之五十且補助經費達新臺幣一億元以上之個案公共工程,整修工程、拆除工程、疏濬工程、結構補強工程 "]
["514","臺中市政府 ","臺中市立中港高級中學 ","臺中市政府教育局 ","中港高中新建無障礙電梯工程規劃設計監造服務 ","勞務","工程服務 ","400000","396000","112/07/03","112/07/10","臺中市－梧棲區 ","否","","整修工程、拆除工程、疏濬工程、結構補強工程 "]
["515","臺中市政府 ","臺中市立后綜高級中學 ","教育部國民及學前教育署 ","臺中市立后綜高級中學國中部老舊校舍改建工程委託規劃設計監造技術服務勞務採購案(11024-2)後續採購 ","勞務","建築服務 ","6961785","6752931","112/07/05","112/07/13","臺中市－后里區 ","否","","規劃取得綠建築標章之建築工程 "]
["516","臺中市政府 ","臺中市立大甲工業高級中等學校 ","教育部國民及學前教育署、臺中市政府教育局 ","112年弘道樓共3樓層(地上1樓至3樓)無障礙電梯新建工程委託規劃設計監造 ","勞務","建築服務 ","312882","312882","112/06/27","112/07/03","臺中市－大甲區 ","否","","非中央政府辦理新臺幣一億元以上之公共工程 "]
["517","臺中市政府 ","臺中市立烏日國民中學 ","臺中市政府教育局 ","臺中市立烏日國民中學活動中心興建計畫委託規劃設計監造技術服務 ","勞務","建築服務 ","5271200","5244844","112/06/30","112/07/05","臺中市－烏日區 ","否","","非受中央政府補助比率逾工程建造經費百分之五十且補助經費達新臺幣一億元以上之個案公共工程 "]
["518","臺中市政府 ","臺中市立四箴國民中學 ","臺中市政府教育局 ","臺中市立四箴國民中學體育館新建工程(含水土保持計畫修正)委託規畫設計及監造 ","勞務","建築服務 ","9346513","9196513","112/07/21","112/07/27","臺中市－龍井區 ","否","","規劃取得綠建築標章之建築工程 "]
["519","臺中市政府 ","臺中市立四箴國民中學 ","臺中市政府教育局 ","箴旭樓拆除規劃設計及監造(含拆除執照申辦及竣工簽證)勞務採購 ","勞務","建築服務 ","480000","480000","112/07/25","112/07/26","臺中市－龍井區 ","否","","整修工程、拆除工程、疏濬工程、結構補強工程 "]
["520","臺中市政府 ","臺中市南區和平國民小學 ","教育部國民及學前教育署 ","臺中市南區和平國民小學和平館老舊廁所整修工程委託設計監造技術服務採購案 ","勞務","工程服務 ","70746","70746","112/06/28","112/07/04","臺中市－南區 ","否","","非中央政府辦理新臺幣一億元以上之公共工程,非受中央政府補助比率逾工程建造經費百分之五十且補助經費達新臺幣一億元以上之個案公共工程 "]
["521","臺中市政府 ","臺中市西屯區協和國民小學 ","教育部體育署、臺中市政府教育局 ","臺中市西屯區協和國民小學整建學校草地運動場工程委託規劃設計及監造服務勞務採購 ","勞務","建築服務 ","614036","613527","112/07/12","112/07/17","臺中市－西屯區 ","否","","整修工程、拆除工程、疏濬工程、結構補強工程 "]
["522","臺中市政府 ","臺中市北屯區新興國民小學 ","臺中市政府 ","臺中市北屯區新興國民小學文化樓老舊校舍整建工程委託規劃設計監造技術服務採購案 ","勞務","建築服務 ","11376571","11331065","112/06/30","112/07/04","臺中市－北屯區 ","否","","規劃取得綠建築標章之建築工程 "]
["523","臺中市政府 ","臺中市南屯區永春國民小學 ","臺中市政府教育局 ","AB棟及C2棟校舍耐震能力補強工程委託設計監造技術服務 ","勞務","工程服務 ","2083925","2080000","112/07/18","112/07/25","臺中市－南屯區 ","否","","非中央政府辦理新臺幣一億元以上之公共工程 "]
["524","臺中市政府 ","臺中市龍井區龍峰國民小學 ","臺中市政府教育局 ","臺中市龍井區龍峰國民小學112年度新建無障礙電梯工程委託設計監造技術服務 ","勞務","工程服務 ","394710","390120","112/07/05","112/07/07","臺中市－龍井區 ","否","","整修工程、拆除工程、疏濬工程、結構補強工程 "]
["525","臺中市政府 ","臺中市沙鹿區鹿峰國民小學 ","臺中市政府教育局 ","109年老舊廁所整修工程-教學大樓西側老舊廁所整修工程委託設計及監造技術服務採購 ","勞務","建築服務 ","43649","43649","112/07/04","112/07/05","臺中市－沙鹿區 ","否","","整修工程、拆除工程、疏濬工程、結構補強工程 "]
["526","臺中市政府 ","臺中市大雅區大雅國民小學 ","教育部國民及學前教育署 ","「109年度行政大樓北側老舊廁所改建工程委託設計監造服務」第一次契約變更採購案 ","勞務","建築服務 ","34584","34584","112/07/17","112/07/17","臺中市－大雅區 ","否","","非中央政府辦理新臺幣一億元以上之公共工程,非受中央政府補助比率逾工程建造經費百分之五十且補助經費達新臺幣一億元以上之個案公共工程,整修工程、拆除工程、疏濬工程、結構補強工程 "]
["527","臺中市政府 ","臺中市龍井區龍津國民小學 ","教育部國民及學前教育署 ","龍津國小112年度海埔厝無障礙設施改善工程 委託規劃設計及監造技術服務勞務採購 ","勞務","工程服務 ","403283","400000","112/07/14","112/07/14","臺中市－龍井區 ","否","","整修工程、拆除工程、疏濬工程、結構補強工程 "]
["528","臺中市政府 ","臺中市烏日區喀哩國民小學 ","臺中市政府教育局 ","臺中市烏日區喀哩國民小學112年度充實設施設備-校園鋪面及排水系統改善工程委託規劃設計監造技術服務採購案 ","勞務","綜合工程服務 ","259332","259332","112/07/11","112/07/11","臺中市－烏日區 ","否","","非中央政府辦理新臺幣一億元以上之公共工程 "]
["529","臺中市政府 ","臺中市梧棲區永寧國民小學 ","無 ","臺中市梧棲區永寧國民小學109年度公立國民中小學至真樓、至善樓老舊廁所整修工程計畫（第三次補助）委託規劃設計監造技術服務採購 ","勞務","建築服務 ","105705","95705","112/07/26","112/07/27","臺中市－梧棲區 ","否","","整修工程、拆除工程、疏濬工程、結構補強工程 "]
["530","臺中市政府 ","臺中市東勢區新成國民小學 ","無 ","臺中市東勢區新成國民小學辦理教育部國民及學前教育署補助112年度偏遠地區上段校園環境改善工程委託規劃設計監造技術服務 ","勞務","工程服務 ","176055","176055","112/07/07","112/07/07","臺中市－東勢區 ","否","","非中央政府辦理新臺幣一億元以上之公共工程 "]
["531","臺中市政府 ","臺中市太平區光隆國民小學 ","臺中市政府教育局、教育部體育署 ","光隆國小112年度充實設施設備-圖書館防水防漏及整修工程委託設計監造服務採購 ","勞務","工程服務 ","242119","240000","112/07/07","112/07/13","臺中市－太平區 ","否","","整修工程、拆除工程、疏濬工程、結構補強工程 "]
["532","臺中市政府 ","臺中市大肚區瑞井國民小學 ","臺中市政府教育局 ","112年度視聽教室優化工程委託規劃設計監造技術服務採購案 ","勞務","建築服務 ","189443","186000","112/07/24","112/07/26","中部地區－全區 ","否","","整修工程、拆除工程、疏濬工程、結構補強工程 "]
["533","臺中市政府 ","臺中市政府建設局 ","無 ","臺中市豐原區葫蘆墩公園整體規劃委託技術服務 ","勞務","綜合工程服務 ","1200000","1120000","112/07/26","112/07/27","臺中市－豐原區 ","否","","非中央政府辦理新臺幣一億元以上之公共工程 "]
["534","臺中市政府 ","臺中市政府建設局 ","無 ","臺中市北區英才公園暨南屯區南苑公園整體規劃委託技術服務 ","勞務","綜合工程服務 ","1100000","1010000","112/07/12","112/07/13","臺中市－北區,臺中市－南屯區 ","否","","非中央政府辦理新臺幣一億元以上之公共工程 "]
["535","臺中市政府 ","臺中市新建工程處 ","無 ","「臺中市清水區清水車站人行跨站天橋工程委託設計監造技術服務」第1次契約變更 ","勞務","工程服務 ","885121","885121","112/07/06","112/07/07","臺中市－清水區 ","否","","規劃取得綠建築標章之建築工程 "]
["536","臺中市政府 ","臺中市養護工程處 ","無 ","臺中市養護工程處典禮、活動宣傳勞務案(第一次後續擴充) ","勞務","工程服務 ","1000000","1000000","112/07/26","112/07/27","臺中市－全區 ","否","","整修工程、拆除工程、疏濬工程、結構補強工程 "]
["537","臺中市政府 ","臺中市政府社會局 ","無 ","112年臺中市北屯親子館暨公設民營北屯同榮托嬰中心委託規劃設計監造技術服務 ","勞務","建築服務 ","1535097","1535097","112/06/28","112/07/05","臺中市－北屯區 ","否","","整修工程、拆除工程、疏濬工程、結構補強工程 "]
["538","臺中市政府 ","臺中市政府地政局 ","無 ","臺中市112年度住宅交易價格指數編製及資訊揭露作業 ","勞務","都市計劃及景觀建築服務 ","1300000","1190000","112/07/17","112/07/18","臺中市－全區 ","否","","非受中央政府補助比率逾工程建造經費百分之五十且補助經費達新臺幣一億元以上之個案公共工程 "]
["539","臺中市政府 ","臺中市政府地政局 ","無 ","臺中市第13期市地重劃西川二路生態景觀渠道後續改善工程委託規劃設計及監造技術服務 ","勞務","工程服務 ","2360000","2265600","112/07/17","112/07/25","臺中市－全區 ","否","","整修工程、拆除工程、疏濬工程、結構補強工程 "]
["540","臺中市政府 ","臺中市政府水利局 ","內政部營建署 ","臺中市污水下水道分支管網暨用戶接管工程7-10(西屯路及英才路等區域) ","工程","其他土木工程 ","262640000","260000000","112/07/20","112/07/21","臺中市－北區,臺中市－西區 ","未依規定於計畫提報核定、規劃設計階段納入辦理節能減碳檢核 ","",""]
["541","臺中市政府 ","臺中市政府觀光旅遊局 ","行政院農業委員會水土保持局 ","后里區風鼓崎綠美化景觀改善工程(第一期)委託設計監造技術服務-後續擴充 ","勞務","工程服務 ","250000","249000","112/07/18","112/07/20","臺中市－后里區 ","否","","非受中央政府補助比率逾工程建造經費百分之五十且補助經費達新臺幣一億元以上之個案公共工程 "]
["542","臺中市政府 ","臺中市政府文化局 ","無 ","臺灣民俗文物館污(排)水改善工程規劃設計監造委託技術服務案 ","勞務","建築服務 ","168538","168538","112/07/11","112/07/13","臺中市－北屯區 ","否","","非中央政府辦理新臺幣一億元以上之公共工程 "]
["543","臺中市政府 ","臺中市文化資產處 ","無 ","市定古蹟臺中張家祖廟修復工程規劃設計案 ","勞務","建築服務 ","2800000","2800000","112/07/10","112/07/13","臺中市－西屯區 ","否","","整修工程、拆除工程、疏濬工程、結構補強工程 "]
["544","臺中市政府 ","臺中市文化資產處 ","無 ","臺中市歷史建築林森路75號日式宿舍修復工程委託監造及工作報告書技術服務 ","勞務","建築服務 ","4839146","4839146","112/07/18","112/07/25","臺中市－西區 ","否","","非中央政府辦理新臺幣一億元以上之公共工程,非受中央政府補助比率逾工程建造經費百分之五十且補助經費達新臺幣一億元以上之個案公共工程,整修工程、拆除工程、疏濬工程、結構補強工程 "]
["545","臺中市政府 ","臺中市立圖書館 ","無 ","臺中市立圖書館豐原分館等3棟建築物耐震補強工程委託規劃設計監造技術服務 ","勞務","建築服務 ","2480200","2426389","112/07/05","112/07/10","臺中市－全區 ","否","","整修工程、拆除工程、疏濬工程、結構補強工程 "]
["546","臺中市政府 ","臺中市政府客家事務委員會 ","無 ","東勢客家文化園區全區整體規劃委託技術服務案 ","勞務","建築服務 ","1000000","1000000","112/07/12","112/07/17","臺中市－東勢區 ","否","","非受中央政府補助比率逾工程建造經費百分之五十且補助經費達新臺幣一億元以上之個案公共工程 "]
["547","臺中市政府 ","臺中市政府都市發展局 ","無 ","112年度臺中市景觀提升計畫 ","勞務","都市計劃及景觀建築服務 ","2000000","2000000","112/07/20","112/07/21","臺中市－全區 ","否","","非中央政府辦理新臺幣一億元以上之公共工程,非受中央政府補助比率逾工程建造經費百分之五十且補助經費達新臺幣一億元以上之個案公共工程 "]
["548","臺中市政府 ","臺中市政府都市發展局 ","無 ","臺灣轉運城整體規劃案 ","勞務","都市計劃及景觀建築服務 ","11000000","11000000","112/07/19","112/07/20","臺中市－全區 ","否","","非中央政府辦理新臺幣一億元以上之公共工程 "]
["549","臺中市政府 ","臺中市政府住宅發展工程處 ","無 ","臺中市西屯區鑫港尾段社會住宅統包工程 ","工程","多棟式住宅建築工程 ","775447754","775447754","112/07/07","112/07/21","臺中市－西屯區 ","否","","非受中央政府補助比率逾工程建造經費百分之五十且補助經費達新臺幣一億元以上之個案公共工程 "]
["550","臺中市政府 ","臺中市政府住宅發展工程處 ","無 ","臺中市東區練武段社會住宅統包工程 ","工程","多棟式住宅建築工程 ","2731017000","2731017000","112/07/13","112/07/28","臺中市－東區 ","否","","非中央政府辦理新臺幣一億元以上之公共工程,非受中央政府補助比率逾工程建造經費百分之五十且補助經費達新臺幣一億元以上之個案公共工程,規劃取得綠建築標章之建築工程 "]
["551","臺中市政府 ","臺中捷運股份有限公司 ","無 ","車站局部土建防雨設施改善委託設計及監造案 ","勞務","工程服務 ","2100000","2057802","112/07/14","112/07/21","臺中市－北屯區 ","否","","整修工程、拆除工程、疏濬工程、結構補強工程 "]
["552","臺中市政府 ","臺中市西屯區公所 ","無 ","何仁里活動中心修繕工程委託設計監造 ","勞務","建築服務 ","194064","194064","112/07/05","112/07/05","臺中市－全區 ","否","","非中央政府辦理新臺幣一億元以上之公共工程 "]
["553","臺中市政府 ","臺中市豐原區公所 ","無 ","大安大甲溪聯通管工程計畫-112年度臺中市豐原區公所屋頂防水修繕工程委託設計監造 ","勞務","工程服務 ","272878","259551","112/07/05","112/07/07","臺中市－豐原區 ","否","","非中央政府辦理新臺幣一億元以上之公共工程,非受中央政府補助比率逾工程建造經費百分之五十且補助經費達新臺幣一億元以上之個案公共工程,整修工程、拆除工程、疏濬工程、結構補強工程 "]
["554","臺中市政府 ","臺中市沙鹿區公所 ","無 ","臺中市沙鹿區斗潭路285巷排水改善工程委託設計監造技術服務 ","勞務","工程服務 ","318324","296041","112/07/26","112/07/28","臺中市－沙鹿區 ","否","","非中央政府辦理新臺幣一億元以上之公共工程 "]
["555","臺中市政府 ","臺中市東勢區公所 ","無 ","慶福社區周邊環境改善工程委託設計監造案 ","勞務","工程服務 ","481250","481250","112/07/04","112/07/05","臺中市－東勢區 ","否","","非受中央政府補助比率逾工程建造經費百分之五十且補助經費達新臺幣一億元以上之個案公共工程 "]
["556","臺中市政府 ","臺中市東勢區公所 ","無 ","112年度石岡壩清淤公益支出計畫-埤頭里、泰興里、茂興里等三里基礎建設工程委託設計監造技術服務 ","勞務","綜合工程服務 ","200415","200415","112/07/21","112/07/25","臺中市－東勢區 ","否","","非中央政府辦理新臺幣一億元以上之公共工程 "]
["557","臺中市政府 ","臺中市大肚區公所 ","臺中市政府水利局 ","臺中市大肚區新興里沙田路二段132巷80弄旁擋土牆及排水溝復建工程委託測量規劃設計監造服務 ","勞務","工程服務 ","435000","381033","112/06/29","112/07/03","臺中市－大肚區 ","否","","災後原地復建 "]
["558","臺中市政府 ","臺中市大雅區公所 ","行政院農業委員會農田水利署 ","大雅區忠義里大社支線圳路強化工程委託設計監造技術服務 ","勞務","工程服務 ","2398703","2326742","112/07/24","112/07/25","臺中市－大雅區 ","否","","非中央政府辦理新臺幣一億元以上之公共工程 "]
["559","臺中市政府 ","臺中市大雅區公所 ","行政院農業委員會農田水利署 ","大雅區平和南路中央支線主給末流圳路強化工程委託設計監造技術服務 ","勞務","工程服務 ","393331","381531","112/07/24","112/07/25","臺中市－大雅區 ","否","","非中央政府辦理新臺幣一億元以上之公共工程 "]
["560","臺中市政府 ","臺中市大雅區公所 ","行政院農業委員會農田水利署、臺中市政府地政局 ","112年大雅區緊急農路改善工程委託設計監造技術服務 ","勞務","工程服務 ","680875","660449","112/07/12","112/07/13","臺中市－大雅區 ","否","","非中央政府辦理新臺幣一億元以上之公共工程,非受中央政府補助比率逾工程建造經費百分之五十且補助經費達新臺幣一億元以上之個案公共工程 "]
["561","臺中市政府 ","臺中市后里區公所 ","無 ","112年度臺中市后里區廣福里、后里里、仁里里及泰安里等四里環境改善工程-工程委託技術服務案 ","勞務","工程服務 ","2014000","1933440","112/07/11","112/07/12","臺中市－后里區 ","否","","非中央政府辦理新臺幣一億元以上之公共工程 "]
["562","臺中市政府 ","臺中市霧峰區公所 ","無 ","光復新村道路維護小型工程執行計畫(開口契約)委託設計監造技術服務 ","勞務","綜合工程服務 ","157500","149625","112/07/04","112/07/05","臺中市－霧峰區 ","否","","整修工程、拆除工程、疏濬工程、結構補強工程 "]
["563","臺中市政府 ","臺中市龍井區公所 ","無 ","112年度龍井區麗水里及週邊鄰里基礎設施與綠美化改善工程委託設計監造技術服務 ","勞務","工程服務 ","649716","649716","112/07/14","112/07/17","臺中市－龍井區 ","否","","非中央政府辦理新臺幣一億元以上之公共工程,非受中央政府補助比率逾工程建造經費百分之五十且補助經費達新臺幣一億元以上之個案公共工程 "]
["564","臺中市政府 ","臺中市新社區公所 ","無 ","「112年度臺中市新社區道路及其附屬設施改善工程-第二階段(開口契約)」委託技術服務案 ","勞務","工程服務 ","183747","181997","112/07/07","112/07/10","臺中市－新社區 ","否","","整修工程、拆除工程、疏濬工程、結構補強工程 "]
["565","臺北市政府 ","臺北市立動物園 ","無 ","非洲區遊客走道與作業空間樓板改善先期規劃案（委託技術服務） ","勞務","工程服務 ","200000","200000","112/07/13","112/07/14","臺北市－文山區 ","否","","非中央政府辦理新臺幣一億元以上之公共工程,非受中央政府補助比率逾工程建造經費百分之五十且補助經費達新臺幣一億元以上之個案公共工程,整修工程、拆除工程、疏濬工程、結構補強工程 "]
["566","臺北市政府 ","臺北市立動物園 ","無 ","112年度環園道路修繕工程委託設計監造技術服務 ","勞務","工程服務 ","332768","330000","112/07/13","112/07/14","臺北市－文山區 ","否","","非中央政府辦理新臺幣一億元以上之公共工程,非受中央政府補助比率逾工程建造經費百分之五十且補助經費達新臺幣一億元以上之個案公共工程,整修工程、拆除工程、疏濬工程、結構補強工程 "]
["567","臺北市政府 ","臺北市立動物園 ","無 ","112年度收容動物複合式活動場更新工程委託設計與監造技術服務案 ","勞務","工程服務 ","540000","540000","112/07/14","112/07/17","臺北市－文山區 ","否","","非中央政府辦理新臺幣一億元以上之公共工程,非受中央政府補助比率逾工程建造經費百分之五十且補助經費達新臺幣一億元以上之個案公共工程,整修工程、拆除工程、疏濬工程、結構補強工程 "]
["568","臺北市政府 ","臺北市立成功高級中學 ","臺北市政府教育局 ","擊劍場整修工程委託技術服務勞務採購案後續擴充監造服務 ","勞務","工程服務 ","147244","147200","112/07/12","112/07/14","臺北市－中正區 ","否","","非中央政府辦理新臺幣一億元以上之公共工程,非受中央政府補助比率逾工程建造經費百分之五十且補助經費達新臺幣一億元以上之個案公共工程,整修工程、拆除工程、疏濬工程、結構補強工程 "]
["569","臺北市政府 ","臺北市立仁愛國民中學 ","臺北市政府教育局 ","112年度新世代學習空間(生活實境探索教室)改善工程技術服務採購案 ","勞務","工程服務 ","259115","259115","112/06/27","112/07/03","臺北市－大安區 ","否","","整修工程、拆除工程、疏濬工程、結構補強工程 "]
["570","臺北市政府 ","臺北市立北政國民中學 ","無 ","校園後山擋土牆樓梯柵欄整修工程委託技術服務 ","勞務","工程服務 ","708447","700000","112/06/30","112/07/07","北部地區－全區 ","否","","整修工程、拆除工程、疏濬工程、結構補強工程 "]
["571","臺北市政府 ","臺北市中山區中正國民小學 ","臺北市政府教育局 ","無障礙電梯工程委託規劃設計勞務採購案 ","勞務","工程服務 ","677963","677963","112/06/21","112/07/03","臺北市－中山區 ","否","","非受中央政府補助比率逾工程建造經費百分之五十且補助經費達新臺幣一億元以上之個案公共工程 "]
["572","臺北市政府 ","臺北市內湖區內湖國民小學 ","無 ","112年度操場及平靜樓前木棧板整修工程委託設計監造技術服務案 ","勞務","工程服務 ","808230","808230","112/07/04","112/07/19","北部地區－全區 ","否",null,"非中央政府辦理新臺幣一億元以上之公共工程,非受中央政府補助比率逾工程建造經費百分之五十且補助經費達新臺幣一億元以上之個案公共工程"]
["573","臺北市政府 ","臺北市內湖區內湖國民小學 ","臺北市政府教育局 ","112EMS及微電改勞務採購案 ","勞務","工程服務 ","430000","290000","112/07/24","112/07/26","北部地區－全區 ","否","","整修工程、拆除工程、疏濬工程、結構補強工程 "]
["574","臺北市政府 ","臺北市士林區士東國民小學 ","臺北市政府教育局、教育部體育署 ","112年度五人制人工草皮足球場整建工程委託設計監造技術服務勞務採購案 ","勞務","工程服務 ","444312","444312","112/07/12","112/07/18","臺北市－士林區 ","否","","非受中央政府補助比率逾工程建造經費百分之五十且補助經費達新臺幣一億元以上之個案公共工程 "]
["575","臺北市政府 ","臺北市士林區社子國民小學 ","臺北市政府教育局 ","至善樓無障礙電梯新建工程委託技術服務 ","勞務","建築服務 ","561883","561883","112/07/04","112/07/11","臺北市－士林區 ","否","","整修工程、拆除工程、疏濬工程、結構補強工程 "]
["576","臺北市政府 ","臺北市政府工務局 ","無 ","公館淨水場加壓站機電設備工程 ","工程","其他專業工程 ","348640000","339948600","112/06/30","112/07/05","臺北市－中正區 ","否","","非中央政府辦理新臺幣一億元以上之公共工程,非受中央政府補助比率逾工程建造經費百分之五十且補助經費達新臺幣一億元以上之個案公共工程 "]
["577","臺北市政府 ","臺北市政府工務局新建工程處 ","無 ","「112年度道路維護、緊急搶修、道路新（拓）建及騎樓整平等工程委託監造技術服務」A項（內湖區、南港區）-第1次契約變更 ","勞務","綜合工程服務 ","3328888","3328888","112/06/08","112/07/21","北部地區－全區 ","否",null,"非中央政府辦理新臺幣一億元以上之公共工程,非受中央政府補助比率逾工程建造經費百分之五十且補助經費達新臺幣一億元以上之個案公共工程"]
["578","臺北市政府 ","臺北市政府工務局公園路燈工程管理處 ","無 ","內湖117號綠地景觀改造工程委託設計暨監造技術服務案 ","勞務","工程服務 ","1742000","1742000","112/07/18","112/07/25","臺北市－內湖區 ","否","","非中央政府辦理新臺幣一億元以上之公共工程,非受中央政府補助比率逾工程建造經費百分之五十且補助經費達新臺幣一億元以上之個案公共工程,整修工程、拆除工程、疏濬工程、結構補強工程 "]
["579","臺北市政府 ","臺北市政府工務局公園路燈工程管理處 ","無 ","112年度兒童遊戲場修繕設計及監造委託技術服務案 ","勞務","工程服務 ","2690000","2690000","112/07/25","112/07/28","臺北市－全區 ","否","","非中央政府辦理新臺幣一億元以上之公共工程,非受中央政府補助比率逾工程建造經費百分之五十且補助經費達新臺幣一億元以上之個案公共工程,整修工程、拆除工程、疏濬工程、結構補強工程 "]
["580","臺北市政府 ","臺北市政府工務局水利工程處 ","無 ","百齡抽水站新建工程委託設計工作 ","勞務","工程服務 ","46000000","43500000","112/07/07","112/07/11","北部地區－全區 ","否","","非受中央政府補助比率逾工程建造經費百分之五十且補助經費達新臺幣一億元以上之個案公共工程 "]
["581","臺北市政府 ","臺北市政府工務局水利工程處 ","無 ","112年度臺北市都市積水即時模擬預報服務 ","勞務","工程服務 ","1300000","1300000","112/07/07","112/07/10","北部地區－全區 ","否","","非受中央政府補助比率逾工程建造經費百分之五十且補助經費達新臺幣一億元以上之個案公共工程 "]
["582","臺北市政府 ","臺北市政府工務局水利工程處 ","無 ","112年度圓山河濱公園周邊既有設施檢修維護委託技術服務工作 ","勞務","工程服務 ","1483000","1400000","112/07/18","112/07/20","北部地區－全區 ","否","","非受中央政府補助比率逾工程建造經費百分之五十且補助經費達新臺幣一億元以上之個案公共工程 "]
["583","臺北市政府 ","臺北市政府工務局水利工程處 ","無 ","磺港溪再造C段護岸及步道整建工程（延壽橋至三合橋） ","工程","其他土木工程 ","324912089","324912089","112/07/07","112/07/10","北部地區－全區 ","否","","非受中央政府補助比率逾工程建造經費百分之五十且補助經費達新臺幣一億元以上之個案公共工程 "]
["584","臺北市政府 ","臺北市政府工務局大地工程處 ","無 ","111年度山坡地住宅邊坡及老舊聚落緊急水土保持 工程委託設計監造技術服務案(112年續約)第4次契約變更 ","勞務","工程服務 ","1634281","1560000","112/07/10","112/07/21","臺北市－全區 ","否","","非中央政府辦理新臺幣一億元以上之公共工程,非受中央政府補助比率逾工程建造經費百分之五十且補助經費達新臺幣一億元以上之個案公共工程 "]
["585","臺北市政府 ","臺北市政府警察局 ","無 ","士林分局社子派出所新建工程公共藝術設置計畫採購案 ","勞務","都市計劃及景觀建築服務 ","6450000","6450000","112/07/11","112/07/14","臺北市－士林區 ","否","","規劃取得綠建築標章之建築工程 "]
["586","臺北市政府 ","臺北市立聯合醫院 ","無 ","112年度婦幼院區急性病床之空床過渡期收治長照個案整建工程(含搬遷)委託技術服務案 ","勞務","工程服務 ","2350000","1380000","112/06/26","112/07/12","臺北市－中正區 ","否","","整修工程、拆除工程、疏濬工程、結構補強工程 "]
["587","臺北市政府 ","臺北市政府捷運工程局 ","無 ","環狀線北環段DF117設計標CPN#2「Y28站北側人行道增設捷運出入口及連通至故宮地下通道相關細部設計工作」契約變更案 ","勞務","工程服務 ","20810230","20500000","112/07/04","112/07/25","北部地區－全區 ","已依規定納入辦理節能減碳檢核 ","計畫提報核定階段納入辦理節能減碳檢核 ",""]
["588","臺北市政府 ","臺北市政府捷運工程局第一區工程處 ","無 ","環狀線北環段Y19(不含)~Y20(含)土建及水電環控區段標工程 ","工程","橋樑, 高架快速道路, 隧道及地鐵 ","14831691047","14831000000","112/06/26","112/07/11","北部地區－全區 ","否","","非受中央政府補助比率逾工程建造經費百分之五十且補助經費達新臺幣一億元以上之個案公共工程 "]
["589","臺北市政府 ","臺北翡翠水庫管理局 ","無 ","水土保持工程(預約式)委託設計技術服務案 ","勞務","工程服務 ","3713","3713","112/07/10","112/07/14","新北市－新店區 ","否","","災後緊急處理、搶修、搶險 "]
["590","臺北市政府 ","臺北市都市更新處 ","無 ","112年度「臺北市南港區南港段四小段308地號公辦都市更新案公開評選實施者相關作業」委託專業服務案 ","勞務","都市計劃及景觀建築服務 ","4000000","4000000","112/07/28","112/07/31","臺北市－全區 ","否","","非中央政府辦理新臺幣一億元以上之公共工程,非受中央政府補助比率逾工程建造經費百分之五十且補助經費達新臺幣一億元以上之個案公共工程 "]
["591","臺北市政府 ","臺北市政府文化局 ","無 ","直轄市定古蹟國立臺灣大學日式宿舍─戴運軌寓所、潮州街9號修復工程委託監造技術服務 ","勞務","建築服務 ","4959329","4815329","112/07/13","112/07/26","臺北市－中正區 ","否","","整修工程、拆除工程、疏濬工程、結構補強工程 "]
["592","臺北市政府 ","臺北市政府文化局 ","無 ","歷史建築原巴旅館澡堂修復工程委託監造技術服務 ","勞務","建築服務 ","2361000","2310000","112/07/04","112/07/20","臺北市－士林區 ","否","","非中央政府辦理新臺幣一億元以上之公共工程,整修工程、拆除工程、疏濬工程、結構補強工程 "]
["593","臺北市政府 ","臺北大眾捷運股份有限公司 ","無 ","文湖、淡水線及交九行控大樓部分場站空調系統重置工程 ","工程","暖氣, 通風及空調工程 ","161013630","161000000","112/07/13","112/07/14","臺北市－全區,新北市－全區 ","否","","整修工程、拆除工程、疏濬工程、結構補強工程 "]
["594","臺北市政府 ","臺北大眾捷運股份有限公司 ","無 ","捷運全線橋梁、建造物及邊坡檢測工作 ","勞務","綜合工程服務 ","9234115","8680080","112/07/21","112/07/24","臺北市－全區,新北市－全區 ","否","","整修工程、拆除工程、疏濬工程、結構補強工程 "]
["595","臺北市政府 ","臺北大眾捷運股份有限公司 ","無 ","淡信線北投站北投車班辦公室空間裝修工程委託規劃設計及監造工作 ","勞務","工程服務 ","770000","580336","112/07/18","112/07/20","臺北市－北投區 ","否","","非中央政府辦理新臺幣一億元以上之公共工程,非受中央政府補助比率逾工程建造經費百分之五十且補助經費達新臺幣一億元以上之個案公共工程,整修工程、拆除工程、疏濬工程、結構補強工程,規劃取得綠建築標章之建築工程 "]
["596","臺北市政府 ","臺北市政府觀光傳播局 ","無 ","112年臺北市政府記者室空間優化服務案第1次變更契約 ","勞務","建築服務 ","166275","166275","112/07/03","112/07/04","臺北市－全區 ","否","","非中央政府辦理新臺幣一億元以上之公共工程 "]
["597","臺北市政府 ","臺北市中山地政事務所 ","無 ","中山地政大樓空調系統汰換工程委託規劃設計監造案第1次契約變更 ","勞務","工程服務 ","142500","120000","112/07/18","112/07/21","臺北市－中山區 ","否","","非中央政府辦理新臺幣一億元以上之公共工程,非受中央政府補助比率逾工程建造經費百分之五十且補助經費達新臺幣一億元以上之個案公共工程 "]
["598","臺東縣政府 ","臺東縣金峰鄉公所 ","原住民族委員會 ","嘉蘭村西側部落文化聚會所興建工程整體規劃設計委託技術服務 ","勞務","建築服務 ","1950000","1050000","112/07/13","112/07/21","臺東縣－金峰 ","否","","非中央政府辦理新臺幣一億元以上之公共工程 "]
["599","臺南市政府 ","臺南市政府 ","無 ","112年永華市政大樓空調智慧節能管理系統設備汰換委託設計監造技術服務 ","勞務","工程服務 ","976100","878490","112/07/19","112/07/20","臺南市－安平區 ","否","","非中央政府辦理新臺幣一億元以上之公共工程 "]
["600","臺南市政府 ","臺南市立海佃國民中學 ","內政部 ","海佃國中通學步道改善暨排水工程規劃設計及監造勞務委託案 ","勞務","工程服務 ","429368","428000","112/07/31","112/07/31","臺南市－安南區 ","否","","非中央政府辦理新臺幣一億元以上之公共工程,整修工程、拆除工程、疏濬工程、結構補強工程 "]
["601","臺南市政府 ","臺南市安南區土城國民小學 ","教育部體育署 ","臺南市土城國小112年度游泳池整建維修工程委託規劃設計監造勞務採購案 ","勞務","工程服務 ","207949","150000","112/07/10","112/07/10","臺南市－安南區 ","否","","整修工程、拆除工程、疏濬工程、結構補強工程 "]
["602","臺南市政府 ","臺南市仁德區長興國民小學 ","臺南市政府教育局 ","長興國小111學年度校園樹木修剪暨染病防治勞務採購案 ","勞務","都市計劃及景觀建築服務 ","449450","449450","112/06/29","112/07/03","臺南市－全區 ","否","","非中央政府辦理新臺幣一億元以上之公共工程 "]
["603","臺南市政府 ","臺南市南化區北寮國民小學 ","臺南市政府體育局 ","北寮國小學校運動操場整建工程委託技術服務規劃設計監造 ","勞務","建築服務 ","670157","670000","112/07/26","112/07/27","南部地區－全區 ","否","","整修工程、拆除工程、疏濬工程、結構補強工程 "]
["604","臺南市政府 ","臺南市麻豆區麻豆國民小學 ","臺南市政府教育局 ","臺南市麻豆國小112年及人堂補強工程委託設計監造技術服務勞務案 ","勞務","建築服務 ","561300","561300","112/07/03","112/07/04","南部地區－全區 ","否","","整修工程、拆除工程、疏濬工程、結構補強工程 "]
["605","臺南市政府 ","臺南市麻豆區北勢國民小學 ","臺南市政府體育局 ","臺南市北勢國小112年度整建計畫- 操場跑道整修工程委託規劃設計監造技術服務案 ","勞務","建築服務 ","618236","610000","112/07/06","112/07/07","臺南市－麻豆區 ","否","","非中央政府辦理新臺幣一億元以上之公共工程 "]
["606","臺南市政府 ","臺南市官田區官田國民小學 ","臺南市政府教育局 ","官田國小新建無障礙電梯工程委託規畫設計監造技術服務勞務採購 ","勞務","建築服務 ","230000","230000","112/07/06","112/07/07","臺南市－全區 ","否","","非受中央政府補助比率逾工程建造經費百分之五十且補助經費達新臺幣一億元以上之個案公共工程 "]
["607","臺南市政府 ","臺南市永康區五王國民小學 ","臺南市政府 ","臺南市五王國小無障礙電梯新建工程委託技術服務 ","勞務","建築服務 ","220000","220000","112/07/07","112/07/07","臺南市－永康區 ","否","","非中央政府辦理新臺幣一億元以上之公共工程,非受中央政府補助比率逾工程建造經費百分之五十且補助經費達新臺幣一億元以上之個案公共工程 "]
["608","臺南市政府 ","臺南市政府工務局 ","無 ","「衛生福利部台南醫院多房間職務宿舍新建工程計畫」...委託規劃、設計及監造技術服務案 ","勞務","建築服務 ","24517270","24460000","112/07/25","112/07/26","臺南市－中西區,臺南市－北區,臺南市－北門區 ","否","","規劃取得綠建築標章之建築工程 "]
["609","臺南市政府 ","臺南市政府工務局 ","無 ","110年度臺南市政府工務局市道173線等11條市道及大區道工程委託勘查、設計及監造開口契約第2次契約變更 ","勞務","工程服務 ","1840000","1840000","112/05/24","112/07/13","臺南市－全區 ","否","","非中央政府辦理新臺幣一億元以上之公共工程,災後緊急處理、搶修、搶險 "]
["610","臺南市政府 ","臺南市政府社會局 ","衛生福利部社會及家庭署 ","臺南市政府社會局委託辦理「臺南市中西區建國里活動中心變更使用及修繕工程」規劃、設計及監造技術服務 ","勞務","建築服務 ","761600","760000","112/07/04","112/07/07","臺南市－全區 ","否","","整修工程、拆除工程、疏濬工程、結構補強工程 "]
["611","臺南市政府 ","臺南市麻豆地政事務所 ","臺南市政府工務局 ","「臺南市麻豆地政事務所耐震補強工程委託設計監造」勞務採購案 ","勞務","工程服務 ","968914","420000","112/07/13","112/07/14","臺南市－麻豆區 ","否","","整修工程、拆除工程、疏濬工程、結構補強工程 "]
["612","臺南市政府 ","臺南市玉井地政事務所 ","臺南市政府工務局 ","臺南市玉井地政事務所耐震補強工程委託規劃設計監造技術服務 ","勞務","建築服務 ","712430","395000","112/07/13","112/07/13","臺南市－玉井區 ","否","","整修工程、拆除工程、疏濬工程、結構補強工程 "]
["613","臺南市政府 ","臺南市政府水利局 ","內政部營建署 ","「臺南市虎尾寮污水下水道系統分支管網及用戶接管工程第一標」及「臺南市虎尾寮污水下水道系統I幹管污水揚水站工程」 ","工程","水道、海港、水壩及其他水利工程 ","324300000","324300000","112/07/25","112/07/27","臺南市－東區 ","已依規定納入辦理節能減碳檢核 ","計畫提報核定階段納入辦理節能減碳檢核;規劃設計階段納入辦理節能減碳檢核 ",""]
["614","臺南市政府 ","臺南市政府水利局 ","無 ","臺南市官田水資源回收中心委託代操作管理-滾輪曝氣機及抽砂泵修繕作業擴充 ","勞務","工程服務 ","2862700","2786000","112/07/04","112/07/10","臺南市－官田區 ","否","","非中央政府辦理新臺幣一億元以上之公共工程 "]
["615","臺南市政府 ","臺南市政府水利局 ","無 ","臺南市仁德下水污泥燒結再利用廠委託代操作管理 ","勞務","工程服務 ","25830000","25500000","112/07/18","112/07/20","臺南市－仁德區 ","否","","非受中央政府補助比率逾工程建造經費百分之五十且補助經費達新臺幣一億元以上之個案公共工程 "]
["616","臺南市政府 ","臺南市政府水利局 ","無 ","臺南市安定區新吉社區淹水改善工程測設監造服務(開口契約) ","勞務","工程服務 ","8975325","8975325","112/07/25","112/07/26","臺南市－安定區 ","否","","非受中央政府補助比率逾工程建造經費百分之五十且補助經費達新臺幣一億元以上之個案公共工程 "]
["617","臺南市政府 ","臺南市動物防疫保護處 ","無 ","新營及忠義等2處所辦公廳舍耐震補強工程委託規劃設計及監造技術服務 ","勞務","工程服務 ","1471509","1427364","112/06/30","112/07/10","臺南市－中西區,臺南市－新營區 ","否","","整修工程、拆除工程、疏濬工程、結構補強工程 "]
["618","臺南市政府 ","臺南市政府交通局 ","無 ","臺南市第三期立體停車場整體規劃及可行性評估 ","勞務","建築服務 ","3600000","3420000","112/07/18","112/07/20","臺南市－全區 ","否","","非受中央政府補助比率逾工程建造經費百分之五十且補助經費達新臺幣一億元以上之個案公共工程 "]
["619","臺南市政府 ","臺南市南區區公所 ","經濟部水利署第六河川局、臺南市政府農業局 ","西機場排水0K+258無名橋改建暨上下游護岸改善工程委託設計監造 ","勞務","工程服務 ","1660086","1660086","112/07/19","112/07/20","臺南市－南區 ","否","","非受中央政府補助比率逾工程建造經費百分之五十且補助經費達新臺幣一億元以上之個案公共工程 "]
["620","臺南市政府 ","臺南市佳里區公所 ","臺南市政府都市發展局 ","112年度臺南市新設好望角計畫-佳里安西悠活綠廊道三期、四期委託設計監造技術服務案 ","勞務","工程服務 ","176611","168201","112/07/25","112/07/26","臺南市－佳里區 ","否","","非受中央政府補助比率逾工程建造經費百分之五十且補助經費達新臺幣一億元以上之個案公共工程 "]
["621","臺南市政府 ","臺南市善化區公所 ","無 ","112年度善化區水利工程及災後復建工程委託規劃設計監造(第二期)(開口契約) ","勞務","工程服務 ","1350000","1350000","112/07/04","112/07/20","臺南市－善化區 ","否","","非受中央政府補助比率逾工程建造經費百分之五十且補助經費達新臺幣一億元以上之個案公共工程,災後原地復建 "]
["622","臺南市政府 ","臺南市善化區公所 ","無 ","善化區文昌里公6公園特色遊戲場工程委託設計監造案 ","勞務","工程服務 ","1170000","1170000","112/07/12","112/07/20","臺南市－善化區 ","否","","非受中央政府補助比率逾工程建造經費百分之五十且補助經費達新臺幣一億元以上之個案公共工程 "]
["623","臺南市政府 ","臺南市六甲區公所 ","無 ","六甲區嘉南國小校園周邊暨行車安全道路改善計畫委託設計監造 ","勞務","工程服務 ","960000","960000","112/07/31","112/07/31","臺南市－六甲區 ","否","","非中央政府辦理新臺幣一億元以上之公共工程 "]
["624","臺南市政府 ","臺南市將軍區公所 ","臺南市政府社會局 ","112年度臺南市社區活動中心內部設施設備、修繕與維護補助-長榮社區活動中心建築物部分拆除及耐震能力補強工程委託測設監造 ","勞務","工程服務 ","386000","378280","112/06/29","112/07/04","臺南市－將軍區 ","否","","整修工程、拆除工程、疏濬工程、結構補強工程 "]
["625","臺南市政府 ","臺南市永康區公所 ","無 ","永康區112年度道路排水等公共工程委託設計監造開口契約 ","勞務","工程服務 ","7950000","7155000","112/07/11","112/07/12","臺南市－永康區 ","否","","整修工程、拆除工程、疏濬工程、結構補強工程 "]
["626","臺灣高等法院 ","臺灣士林地方法院 ","無 ","臺灣士林地方法院112年度士東院區中庭整修工程委託設計監造服務採購案 ","勞務","建築服務 ","289000","285000","112/06/21","112/07/10","臺北市－士林區 ","否","","整修工程、拆除工程、疏濬工程、結構補強工程 "]
["627","澎湖縣政府 ","澎湖縣政府 ","內政部營建署 ","112年度城鎮風貌及創生環境營造計畫委託設計監造技術服務 ","勞務","工程服務 ","1381000","1367190","112/06/20","112/07/12","澎湖縣－全區 ","否","","非中央政府辦理新臺幣一億元以上之公共工程 "]
["628","澎湖縣政府 ","澎湖縣政府 ","內政部營建署 ","澎湖縣馬公地區污水下水道系統第一期工程-分支管網及用戶接管工程第三標 ","工程","水道、海港、水壩及其他水利工程 ","246365000","243200000","112/07/04","112/07/05","澎湖縣－馬公 ","否","","整修工程、拆除工程、疏濬工程、結構補強工程 "]
["629","澎湖縣政府 ","澎湖縣政府 ","無 ","小鎮青旅示範計畫-微笑湖西軸線營造計畫委託設計監造技術服務案 ","勞務","工程服務 ","315000","305000","112/07/06","112/07/17","澎湖縣－全區 ","否","","非中央政府辦理新臺幣一億元以上之公共工程 "]
["630","澎湖縣政府 ","澎湖縣政府 ","無 ","馬公中正路商圈公廁興建工程委託設計監造技術服務採購案 ","勞務","建築服務 ","1100000","1050000","112/07/13","112/07/21","離島地區－全區 ","否","","非受中央政府補助比率逾工程建造經費百分之五十且補助經費達新臺幣一億元以上之個案公共工程 "]
["631","澎湖縣政府 ","澎湖縣政府 ","無 ","「澎湖縣政府警察局馬公分局都市計畫變更及都市更新計畫」委託技術服務案 ","勞務","都市計劃及景觀建築服務 ","2800000","2800000","112/06/29","112/07/06","離島地區－全區 ","否","","非中央政府辦理新臺幣一億元以上之公共工程,非受中央政府補助比率逾工程建造經費百分之五十且補助經費達新臺幣一億元以上之個案公共工程 "]
["632","澎湖縣政府 ","澎湖縣政府 ","無 ","111年度都市計畫樁測定及復補建工作(後續擴充) ","勞務","都市計劃及景觀建築服務 ","638000","638000","112/06/28","112/07/11","澎湖縣－全區 ","否","","非中央政府辦理新臺幣一億元以上之公共工程 "]
["633","澎湖縣政府 ","澎湖縣政府警察局 ","無 ","「公務船建造委託專案管理(含監造)採購」第2次契約價金變更採購案 ","勞務","工程服務 ","150000","147300","112/07/05","112/07/14","澎湖縣－馬公 ","否","","非受中央政府補助比率逾工程建造經費百分之五十且補助經費達新臺幣一億元以上之個案公共工程 "]
["634","澎湖縣政府 ","澎湖縣望安鄉公所 ","無 ","112年度望安鄉東安村及花嶼村道路及擋土牆整修工程委託設計監造服務 ","勞務","工程服務 ","738182","410000","112/07/07","112/07/14","離島地區－全區 ","否","","整修工程、拆除工程、疏濬工程、結構補強工程 "]
["635","衛生福利部 ","衛生福利部社會及家庭署 ","無 ","111年度本署臺中兒童福利館耐震補強及整修工程委託規劃設計及監造技術服務採購案 ","勞務","工程服務 ","711500","700000","112/07/12","112/07/20","臺中市－西區 ","否","","非中央政府辦理新臺幣一億元以上之公共工程,整修工程、拆除工程、疏濬工程、結構補強工程 "]
["636","衛生福利部 ","衛生福利部南區兒童之家 ","無 ","鋼構棚架工程委託設計及監造勞務採購案 ","勞務","建築服務 ","454110","445027","112/06/29","112/07/03","高雄市－楠梓區 ","否","","非中央政府辦理新臺幣一億元以上之公共工程 "]
["637","衛生福利部 ","衛生福利部雲林教養院 ","無 ","112年梅軒老化專區照顧環境改善工程設計暨監造服務委外案 ","勞務","工程服務 ","400000","395990","112/07/14","112/07/19","雲林縣－斗南 ","否","","非中央政府辦理新臺幣一億元以上之公共工程,非受中央政府補助比率逾工程建造經費百分之五十且補助經費達新臺幣一億元以上之個案公共工程,整修工程、拆除工程、疏濬工程、結構補強工程 "]
["638","衛生福利部 ","衛生福利部澎湖醫院 ","無 ","中正院區空調汰換(3期)規劃設計監造案 ","勞務","工程服務 ","2064034","1600000","112/07/04","112/07/24","澎湖縣－全區 ","否","","非中央政府辦理新臺幣一億元以上之公共工程,非受中央政府補助比率逾工程建造經費百分之五十且補助經費達新臺幣一億元以上之個案公共工程,整修工程、拆除工程、疏濬工程、結構補強工程 "]
["639","總統府 ","總統府 ","無 ","總統府外牆門窗先期規劃暨1、5樓木窗及4向梯間門窗露台防水檢修工程委託規劃設計及監造(含工作紀錄)技術服務 ","勞務","建築服務 ","6840000","6750000","112/07/18","112/07/31","臺北市－中正區 ","否","","整修工程、拆除工程、疏濬工程、結構補強工程 "]